{"text_format":"1","workbook":"xlsx","n_sheets":6,"sheets":["Pivot","Data","Home","General Information","Employment Information","Further Studies"],"not_rendered":{"charts":29,"images":9,"macros":1,"external_links":0,"defined_names":9,"comments":0,"pivot_tables":36},"unopened":[],"bounds":{"document_bytes":16777216,"sheet_cells":100000,"rows_first":2000,"rows_last":500,"rows_between":2000,"halvings":0,"cell_chars":16384,"cell_head_chars":4096},"cells_cut":0,"cells_raw":0,"read":"whole","date_system":"1900"}

{"sheet":"Pivot","index":0,"n_rows":323,"n_cols":13,"rows_kept":323,"cut":false,"hidden":true,"merged":[]}
[null,null,null,null,"Programme followed","(All)"]
[]
["Respondents"]
[531]
[]
[]
["Mature Student","Count of No"]
["No",0.72504708097928439]
["Not Stated",6.5913370998116755E-2]
["Yes",0.20903954802259886]
["Grand Total",1]
[]
[]
["Activity","Count of No"]
["Full time Employment",0.42937853107344631]
["Unemployed",0.2504708097928437]
["Further Studies",0.16384180790960451]
["Part time Employment",8.4745762711864403E-2]
["Unknown",3.5781544256120526E-2]
["Short term contract",3.2015065913370999E-2]
["Other",3.766478342749529E-3]
["Grand Total",1]
[]
["Q15","(Multiple Items)"]
[]
["Salary","Count of No"]
["SCR8,000 - SCR9,999",0.41964285714285715]
["SCR6,000 - SCR7,999",0.30357142857142855]
["SCR10,000 - SCR11,999",0.14732142857142858]
["Less than SCR5,999",8.4821428571428575E-2]
["Above SCR12,000",4.4642857142857144E-2]
["Grand Total",1]
[]
[]
["Female No.","Male No."]
[329,202]
[]
[]
["Q11","Count of ID"]
["Yes",0.82297551789077217]
["Not Stated",9.03954802259887E-2]
["No",8.6629001883239173E-2]
[]
[]
["Q12a","Count of ID"]
["Well",0.46704331450094161]
["Very Well",0.4463276836158192]
["Not very well",4.519774011299435E-2]
["Did not answer",2.0715630885122412E-2]
["No opinion",1.5065913370998116E-2]
["Not all",5.6497175141242938E-3]
[]
[]
["Q12b","Count of ID"]
["Well",0.47080979284369112]
["Very Well",0.35969868173258002]
["Not very well",6.5913370998116755E-2]
["Did not answer",5.0847457627118647E-2]
["No opinion",4.7080979284369114E-2]
["Not at all",5.6497175141242938E-3]
[]
[]
["Q12c","Count of ID"]
["Well",0.46139359698681731]
["Very Well",0.22033898305084745]
["Not very well",0.10734463276836158]
["Did not answer",8.6629001883239173E-2]
["No opinion",8.2862523540489647E-2]
["Not at all",4.1431261770244823E-2]
[]
[]
["Q13","Count of ID"]
["Did not answer",3.7664783427495289E-2]
["No",3.7664783427495289E-2]
["Yes",0.92467043314500941]
[]
[]
["Q13","Count of ID"]
["Yes it was just right",0.89830508474576276]
["I do not know",3.954802259887006E-2]
["No, I should have learned something else",3.3898305084745763E-2]
["Did not answer",2.8248587570621469E-2]
[]
[]
["Q13","employment"]
["Employed",0.54425612052730699]
["Further Studies",0.17702448210922786]
["Potential labour force entrant ",2.4482109227871938E-2]
["Status Unknown",6.4030131826741998E-2]
["Unemployed",0.19020715630885121]
[]
[]
["Employment Status","Employed"]
[]
["Q13","Count of Q10"]
["No",0.73702422145328716]
["Not Stated",5.1903114186851208E-2]
["Yes",0.21107266435986158]
[]
[]
["Employment Status","Employed"]
[]
["Count of Female","Count of Male","Count of ID"]
[173,116,289]
[]
[]
[]
[]
["Employment Status","Employed"]
[]
["Sector","Count of ID"]
["Private",0.55017301038062283]
["Public Service",0.24221453287197231]
["Not Stated",0.11764705882352941]
["Parastatal",8.9965397923875437E-2]
[]
[]
["Employment Status","Employed"]
[]
["Industry","Count of ID"]
["Agriculture, forestry and fishing",3.4602076124567475E-3]
["Water supply; sewerage, waste management and remediation activities",3.4602076124567475E-3]
["Electricity, gas, steam and air conditioning supply",6.920415224913495E-3]
["Arts, entertainment and recreation",2.4221453287197232E-2]
["Professional, scientific and technical activities",2.768166089965398E-2]
["Construction",3.1141868512110725E-2]
["Financial and insurance activities",3.4602076124567477E-2]
["Information and communication",3.4602076124567477E-2]
["Other service activities",3.8062283737024222E-2]
["Administrative and support services activities",5.1903114186851208E-2]
["Education",5.536332179930796E-2]
["Human health and social work activities",6.228373702422145E-2]
["Wholesale and retail trade; repair of motor vehicles and motorcycles",6.228373702422145E-2]
["Manufacturing",6.5743944636678195E-2]
["Transportation and storage",7.6124567474048443E-2]
["Public Administration and defence; compulsory social security",0.11418685121107267]
["Unknown",0.1245674740484429]
["Accommodation and food service activities",0.18339100346020762]
[]
[]
["Employment Status","Employed"]
[]
["Industry","Count of ID"]
["Yes",0.7162629757785467]
["No",0.15570934256055363]
["Unknown",0.12802768166089964]
[]
[]
["Employment Status","Employed"]
[]
["Industry","Count of ID",null,null,null,"Employment Status","Employed"]
["Ministry of Finance, Trade, Investment & Economic Planning",3]
["Glorious Bakery",3,null,null,null,"Industry","Count of ID"]
["Registration Division",3,null,null,null,"Ministry of Health",14]
["Public Utilitites Corporation",3,null,null,null,"Ministry of Education and Human Resource Development",14]
["Eden Bleu Hotel",3,null,null,null,"Air Seychelles",10]
["National Biosecurity Agency",3,null,null,null,"Mauritius Commercial Bank",7]
["7° South",4,null,null,null,"Constance Ephelia Resort",7]
["Seychelles Broadcasting Corporation",4,null,null,null,"Ministry of Habitat, Infrastructure and Land Transport",6]
["Banyan Tree Resort",4,null,null,null,"Seychelles Trading Company ",4]
["Seychelles Trading Company ",4,null,null,null,"Banyan Tree Resort",4]
["Ministry of Habitat, Infrastructure and Land Transport",6,null,null,null,"Seychelles Broadcasting Corporation",4]
["Mauritius Commercial Bank",7,null,null,null,"7° South",4]
["Constance Ephelia Resort",7,null,null,null,"Glorious Bakery",3]
["Air Seychelles",10,null,null,null,"National Biosecurity Agency",3]
["Ministry of Health",14,null,null,null,"Eden Bleu Hotel",3]
["Ministry of Education and Human Resource Development",14,null,null,null,"Registration Division",3]
[null,null,null,null,null,"Public Utilitites Corporation",3]
[null,null,null,null,null,"Ministry of Finance, Trade, Investment & Economic Planning",3]
["Employment Status","Further Studies"]
[]
["Count of ID"]
[94]
[]
[]
["Employment Status","Further Studies"]
[]
["Industry","Count of ID"]
["No",0.75531914893617025]
["Not Stated",7.4468085106382975E-2]
["Yes",0.1702127659574468]
[]
[]
[]
["Employment Status","Further Studies"]
[]
["Count of Female","Count of Male"]
[67,27]
[]
[]
["Employment Status","Further Studies"]
[]
["Industry","Count of Q34"]
["Seychelles Institute of Art and Design (SIAD)",30]
["Did not state",16]
["Seychelles Institute of Technology (SIT)",8]
["Asia Pacific University",7]
["Seychelles Institute of Teacher Education (SITE)",6]
["National Institute of Health and Social Studies (NIHSS)",5]
["Shannon College of Hotel Management",4]
["University of Seychelles",4]
["Seychelles Tourism Academy (STA)",4]
["Seychelles Maritime Academy (SMA)",4]
["The Guy Morel Institute",2]
["Seychelles Business Studies Academy (SBSA)",1]
["School of Advanced Level Studies (SALS)",1]
["Sunway University",1]
["Seychelles Institute of Agriculture and Horticulture (SIAH)",1]
[]
[]
[]
["Employment Status","Further Studies"]
[]
["Programme","Number"]
["ACCA",1]
["Advance Certificate in Electrical Installation",2]
["Advanced Certificate in Agriculture",1]
["Advanced Certificate in Fashion",2]
["Advanced Certificate in Fine Art",4]
["Advanced Certificate in Graphic",2]
["Advanced Certificate in Textile",1]
["Art in Primary & Secondary School",1]
["Art Teaching Education",1]
["BA (Hons) Accounting and Finance",1]
["BA in Accounting and Finance with Specialised in Forensic Accounting",1]
["BA in Accounting and Finance with Specialised in forex and investment",1]
["BA(Hons) in Marketing Management Specialised in Digital Marketing",1]
["BA(Hons) Marketing Management Specialised in Digital Marketing",1]
["Bachelor of Business Studies in Hotel Management",4]
["Bar and Restaurant",2]
["Biology and Chemistry",1]
["BSC Accounting",1]
["BSc Culinary Management",1]
["Bsc in Business Administration",3]
["BSc in Business Administration & Marketing",1]
["BSC in Tourism Management",1]
["Did not State",36]
["Diploma in Administration and Management",1]
["Diploma in Art and Design",2]
["Diploma in Construction",1]
["Diploma in Information System Engineer",2]
["Diploma in Mechanical and Electrical Engineering ",1]
["Diploma in Mechanical engineering",1]
["Diploma Motor Vehicle Engineering",1]
["Food and Beverage",1]
["Forensic Accounting",1]
["Marine Mechanic",1]
["Midwifery",1]
["Nautical Science",2]
["Nursing",1]
["Pharmaceutical Science",1]
["Sewing and Textile",1]
["Social Work",1]
["Teaching",2]
["The Arts Secondary Diploma",1]
["Upgrading Programme",1]
["Wellness and Spa",1]
[]
[]
["Employment Status","Further Studies"]
[]
["Industry","Count of Q35"]
["Through ANHRD website/facebook",1.0638297872340425E-2]
["Through Social Media",2.1276595744680851E-2]
["Through a Friend",8.5106382978723402E-2]
["Through ANHRD Career Talks",0.15957446808510639]
["Other",0.21276595744680851]
["Did not answer",0.51063829787234039]
[]
[]
[]
["Programme followed","(All)"]
[]
[]
[]
[]
["Industry","Count of ID"]
["No",0.72504708097928439,null,null,null,"Employment Status","Further Studies"]
["Not Stated",6.5913370998116755E-2,null,null,null,null,null,null,null,null,null,null,1]
["Yes",0.20903954802259886,null,null,null,"Programme","Number",null,null,"Programme","Number"]
[null,null,null,null,null,"BSC in Tourism Management",1,null,null,{"$f":"INDEX($F$281:$G$323,$M$279+ROWS($I$281:I281)-1,COLUMNS($I$281:I281))","v":"BSC in Tourism Management"},{"$f":"INDEX($F$281:$G$323,$M$279+ROWS($I$281:J281)-1,COLUMNS($I$281:J281))","v":1}]
[null,null,null,null,null,"ACCA",1,null,null,{"$f":"INDEX($F$281:$G$323,$M$279+ROWS($I$281:I282)-1,COLUMNS($I$281:I282))","v":"ACCA"},{"$f":"INDEX($F$281:$G$323,$M$279+ROWS($I$281:J282)-1,COLUMNS($I$281:J282))","v":1}]
[null,null,null,null,null,"Advanced Certificate in Agriculture",1,null,null,{"$f":"INDEX($F$281:$G$323,$M$279+ROWS($I$281:I283)-1,COLUMNS($I$281:I283))","v":"Advanced Certificate in Agriculture"},{"$f":"INDEX($F$281:$G$323,$M$279+ROWS($I$281:J283)-1,COLUMNS($I$281:J283))","v":1}]
[null,null,null,null,null,"Upgrading Programme",1,null,null,{"$f":"INDEX($F$281:$G$323,$M$279+ROWS($I$281:I284)-1,COLUMNS($I$281:I284))","v":"Upgrading Programme"},{"$f":"INDEX($F$281:$G$323,$M$279+ROWS($I$281:J284)-1,COLUMNS($I$281:J284))","v":1}]
[null,null,null,null,null,"Diploma in Administration and Management",1,null,null,{"$f":"INDEX($F$281:$G$323,$M$279+ROWS($I$281:I285)-1,COLUMNS($I$281:I285))","v":"Diploma in Administration and Management"},{"$f":"INDEX($F$281:$G$323,$M$279+ROWS($I$281:J285)-1,COLUMNS($I$281:J285))","v":1}]
["Employment Status","Employed",null,null,null,"Art in Primary & Secondary School",1,null,null,{"$f":"INDEX($F$281:$G$323,$M$279+ROWS($I$281:I286)-1,COLUMNS($I$281:I286))","v":"Art in Primary & Secondary School"},{"$f":"INDEX($F$281:$G$323,$M$279+ROWS($I$281:J286)-1,COLUMNS($I$281:J286))","v":1}]
[null,null,null,null,null,"Diploma in Construction",1,null,null,{"$f":"INDEX($F$281:$G$323,$M$279+ROWS($I$281:I287)-1,COLUMNS($I$281:I287))","v":"Diploma in Construction"},{"$f":"INDEX($F$281:$G$323,$M$279+ROWS($I$281:J287)-1,COLUMNS($I$281:J287))","v":1}]
["Industry","Count of ID",null,null,null,"BA (Hons) Accounting and Finance",1,null,null,{"$f":"INDEX($F$281:$G$323,$M$279+ROWS($I$281:I288)-1,COLUMNS($I$281:I288))","v":"BA (Hons) Accounting and Finance"},{"$f":"INDEX($F$281:$G$323,$M$279+ROWS($I$281:J288)-1,COLUMNS($I$281:J288))","v":1}]
["Yes",0.7162629757785467,null,null,null,"Diploma in Mechanical and Electrical Engineering ",1,null,null,{"$f":"INDEX($F$281:$G$323,$M$279+ROWS($I$281:I289)-1,COLUMNS($I$281:I289))","v":"Diploma in Mechanical and Electrical Engineering "},{"$f":"INDEX($F$281:$G$323,$M$279+ROWS($I$281:J289)-1,COLUMNS($I$281:J289))","v":1}]
["No",0.15570934256055363,null,null,null,"BA in Accounting and Finance with Specialised in forex and investment",1,null,null,{"$f":"INDEX($F$281:$G$323,$M$279+ROWS($I$281:I290)-1,COLUMNS($I$281:I290))","v":"BA in Accounting and Finance with Specialised in forex and investment"},{"$f":"INDEX($F$281:$G$323,$M$279+ROWS($I$281:J290)-1,COLUMNS($I$281:J290))","v":1}]
["Unknown",0.12802768166089964,null,null,null,"Diploma in Mechanical engineering",1]
[null,null,null,null,null,"BA(Hons) Marketing Management Specialised in Digital Marketing",1]
[null,null,null,null,null,"Diploma Motor Vehicle Engineering",1]
[null,null,null,null,null,"BSC Accounting",1]
["Employment Status","Employed",null,null,null,"Food and Beverage",1]
[null,null,null,null,null,"BSc in Business Administration & Marketing",1]
["Industry","Count of ID",null,null,null,"Forensic Accounting",1]
["Always",0.51211072664359858,null,null,null,"Advanced Certificate in Textile",1]
["Often",0.22491349480968859,null,null,null,"Marine Mechanic",1]
["Seldom",3.8062283737024222E-2,null,null,null,"BA in Accounting and Finance with Specialised in Forensic Accounting",1]
["Never",3.8062283737024222E-2,null,null,null,"Midwifery",1]
["Did answer",0.18685121107266436,null,null,null,"Biology and Chemistry",1]
[null,null,null,null,null,"Nursing",1]
[null,null,null,null,null,"Wellness and Spa",1]
[null,null,null,null,null,"Pharmaceutical Science",1]
["Employment Status","Employed",null,null,null,"BA(Hons) in Marketing Management Specialised in Digital Marketing",1]
[null,null,null,null,null,"Sewing and Textile",1]
["Count of ID",null,null,null,null,"Art Teaching Education",1]
[1,null,null,null,null,"Social Work",1]
[null,null,null,null,null,"BSc Culinary Management",1]
[null,null,null,null,null,"The Arts Secondary Diploma",1]
[null,null,null,null,null,"Advance Certificate in Electrical Installation",2]
[null,null,null,null,null,"Diploma in Art and Design",2]
[null,null,null,null,null,"Advanced Certificate in Fashion",2]
[null,null,null,null,null,"Bar and Restaurant",2]
[null,null,null,null,null,"Diploma in Information System Engineer",2]
[null,null,null,null,null,"Teaching",2]
[null,null,null,null,null,"Nautical Science",2]
[null,null,null,null,null,"Advanced Certificate in Graphic",2]
[null,null,null,null,null,"Bsc in Business Administration",3]
[null,null,null,null,null,"Advanced Certificate in Fine Art",4]
[null,null,null,null,null,"Bachelor of Business Studies in Hotel Management",4]
[null,null,null,null,null,"Did not State",36]

{"sheet":"Data","index":1,"n_rows":532,"n_cols":50,"rows_kept":532,"cut":false,"hidden":true,"merged":[]}
["No","ID","PC","Gender","Female","Male","Programme followed","Programme Level","Q10","Q11","Q12a","Q12b","Q12c","Q13","Q14","Q15","Q15_Other","Employment Status","Related","Industry","Sector","Q16","Q17","Q19","Q20a","Q20b","Q20c","Q20d","Q20e","Q20f","Q20g","Q21","Q22","Q22_Other","Q23","Q24","Q25","Q26","Q27","Q27_Agency","Q28","Q29","Q30","Q31","Q31_Other","Q32","Q33","Q34","Q35","Q35_Other"]
[1,"SBSA1","SBSA","Female",1,null,"Diploma in Office Management and Administration","Diploma","No","Yes",4,4,4,"Yes","Yes it was just right","Unemployed","","Potential labour force entrant ",0,0,0,0,0,"#NULL!","#NULL!","#NULL!","#NULL!","#NULL!","#NULL!","#NULL!","#NULL!","#NULL!","#NULL!",{"$error":"#NULL!"},"#NULL!","","#NULL!","No","No","",2,1,"Yes",5,{"$error":"#NULL!"},"Yes",0,0,"#NULL!",""]
[2,"SBSA2","SBSA","Female",1,null,"Diploma in Office Management and Administration","Diploma","No","Yes",5,4,3,"Yes","Yes it was just right","Part time Employment","","Employed","Yes","Public Administration and defence; compulsory social security","Public Service","Registration Division","Senior Registration Officer","#NULL!","#NULL!","#NULL!","#NULL!","#NULL!","#NULL!","#NULL!","#NULL!","#NULL!","#NULL!",{"$error":"#NULL!"},"#NULL!","","#NULL!","#NULL!","#NULL!","","#NULL!","#NULL!","#NULL!","#NULL!",{"$error":"#NULL!"},{"$error":"#NULL!"},0,0,"#NULL!",""]
[3,"SBSA3","SBSA","Male",null,1,"Diploma in Office Management and Administration","Diploma","No","Yes",5,5,5,"Yes","Yes it was just right","Unemployed","","Unemployed",0,0,0,0,0,"#NULL!","#NULL!","#NULL!","#NULL!","#NULL!","#NULL!","#NULL!","#NULL!","#NULL!","#NULL!",{"$error":"#NULL!"},"#NULL!","","#NULL!","Yes","No","",1,1,"Yes",3,{"$error":"#NULL!"},"Yes",0,0,"#NULL!",""]
[4,"SBSA4","SBSA","Female",1,null,"Diploma in Office Management and Administration","Diploma","No","Yes",5,5,5,"Yes","Yes it was just right","Unemployed","","Potential labour force entrant ",0,0,0,0,0,"#NULL!","#NULL!","#NULL!","#NULL!","#NULL!","#NULL!","#NULL!","#NULL!","#NULL!","#NULL!",{"$error":"#NULL!"},"#NULL!","","#NULL!","Yes","No","",3,2,"No","#NULL!",{"$error":"#NULL!"},"#NULL!",0,0,"#NULL!",""]
[5,"SBSA5","SBSA","Female",1,null,"Diploma in Office Management and Administration","Diploma","No","Yes",5,5,4,"Yes","Yes it was just right","Further Studies","","Further Studies",0,0,0,0,0,"#NULL!","#NULL!","#NULL!","#NULL!","#NULL!","#NULL!","#NULL!","#NULL!","#NULL!","#NULL!",{"$error":"#NULL!"},"#NULL!","","#NULL!","#NULL!","#NULL!","","#NULL!","#NULL!","#NULL!","#NULL!",{"$error":"#NULL!"},"#NULL!","BA(Hons) Marketing Management Specialised in Digital Marketing","Asia Pacific University","#NULL!",""]
[6,"SBSA6","SBSA","Female",1,null,"Diploma in Office Management and Administration","Diploma","No","Yes",4,4,4,"Yes","Yes it was just right","Unemployed","","Potential labour force entrant ",0,0,0,0,0,"#NULL!","#NULL!","#NULL!","#NULL!","#NULL!","#NULL!","#NULL!","#NULL!","#NULL!","#NULL!",{"$error":"#NULL!"},"#NULL!","","#NULL!","No","No","",3,"#NULL!","#NULL!","#NULL!",{"$error":"#NULL!"},"Yes",0,0,"#NULL!",""]
[7,"SBSA7","SBSA","Female",1,null,"Diploma in Office Management and Administration","Diploma","No","No",4,5,"#NULL!","Yes","Yes it was just right","Further Studies","","Further Studies",0,0,0,0,0,"#NULL!","#NULL!","#NULL!","#NULL!","#NULL!","#NULL!","#NULL!","#NULL!","#NULL!","#NULL!",{"$error":"#NULL!"},"#NULL!","","#NULL!","#NULL!","#NULL!","","#NULL!","#NULL!","#NULL!","#NULL!",{"$error":"#NULL!"},"#NULL!","Upgrading Programme","Seychelles Institute of Teacher Education (SITE)",1,""]
[8,"SBSA8","SBSA","Female",1,null,"Diploma in Office Management and Administration","Diploma","No","Yes",4,3,3,"Yes","Yes it was just right","Unemployed","","Further Studies",0,0,0,0,0,"#NULL!","#NULL!","#NULL!","#NULL!","#NULL!","#NULL!","#NULL!","#NULL!","#NULL!","#NULL!",{"$error":"#NULL!"},"#NULL!","","#NULL!","#NULL!","#NULL!","","#NULL!","#NULL!","#NULL!","#NULL!",{"$error":"#NULL!"},"#NULL!","Bsc in Business Administration","University of Seychelles","#NULL!",""]
[9,"SBSA9","SBSA","Female",1,null,"Diploma in Business Studies and Accounting","#NULL!","No","Yes",4,5,4,"Yes","Yes it was just right","Full time Employment","","Employed","Yes","Administrative and support services activities","Private","7° South","Account Assistant",1,1,0,0,0,0,0,0,"#NULL!",1,{"$error":"#NULL!"},"Just this 1","Less than 1 month","Often","#NULL!","#NULL!","","#NULL!","#NULL!","#NULL!","#NULL!",{"$error":"#NULL!"},"#NULL!",0,0,"#NULL!",""]
[10,"SBSA10","SBSA","Female",1,null,"Diploma in Business Studies and Accounting","#NULL!","No","Yes",5,4,4,"Yes","Yes it was just right","Full time Employment","","Employed","Yes","Professional, scientific and technical activities","Private","BDO Associates","Junior Auditor",1,1,0,0,0,0,0,0,"#NULL!",8,{"$error":"#NULL!"},"between 2 to 5","Less than 1 month","Often","#NULL!","#NULL!","","#NULL!","#NULL!","No","#NULL!",{"$error":"#NULL!"},"#NULL!",0,0,"#NULL!",""]
[11,"SBSA11","SBSA","Female",1,null,"Diploma in Business Studies and Accounting","Diploma","No","Yes",4,4,4,"Yes","Yes it was just right","Full time Employment","","Employed","Yes","Professional, scientific and technical activities","Private","Baker Tilly","Executive Auditor",1,0,1,0,0,0,0,0,3,5,{"$error":"#NULL!"},"Just this 1","Less than 1 month","Often","#NULL!","#NULL!","","#NULL!","#NULL!","#NULL!","#NULL!",{"$error":"#NULL!"},"#NULL!",0,0,"#NULL!",""]
[12,"SBSA12","SBSA","Female",1,null,"Diploma in Business Studies and Accounting","Diploma","No","Yes",4,4,4,"Yes","Yes it was just right","Full time Employment","","Employed","Yes","Public Administration and defence; compulsory social security","Public Service","Ministry of Finance, Trade, Investment & Economic Planning","Account Technician",1,1,0,0,0,0,1,0,3,4,{"$error":"#NULL!"},"Just this 1","Less than 1 month","Often","#NULL!","#NULL!","","#NULL!","#NULL!","#NULL!","#NULL!",{"$error":"#NULL!"},"#NULL!",0,0,"#NULL!",""]
[13,"SBSA13","SBSA","Female",1,null,"Diploma in Office Management and Administration","Diploma","No","Yes",5,5,5,"Yes","Yes it was just right","Short term contract",null,"Employed","Yes","Public Administration and defence; compulsory social security","Public Service","Ministry of Environment, Energy and Climate Change","Office Assistant",1,1,0,0,0,0,0,0,3,1,{"$error":"#NULL!"},"Just this 1","Less than 1 month","Often","#NULL!","#NULL!","","#NULL!","#NULL!","#NULL!","#NULL!",{"$error":"#NULL!"},"#NULL!",0,0,"#NULL!",""]
[14,"SBSA14","SBSA","Female",1,null,"Diploma in Office Management and Administration","Diploma","No","Yes",4,4,4,"Yes","Yes it was just right","Full time Employment","","Employed","Yes","Public Administration and defence; compulsory social security","Public Service","Department of Public Administration","Office Assistant",1,1,0,0,0,0,0,0,2,1,{"$error":"#NULL!"},"between 2 to 5","Less than 1 month","Always","#NULL!","#NULL!","","#NULL!","#NULL!","#NULL!","#NULL!",{"$error":"#NULL!"},"#NULL!",0,0,"#NULL!",""]
[15,"SBSA15","SBSA","Female",1,null,"Diploma in Office Management and Administration","Diploma","No","Yes",4,3,4,"Yes","Yes it was just right","Full time Employment","","Employed","Yes","Public Administration and defence; compulsory social security","Public Service","Registration Division","Senior Registration Officer",2,0,0,0,1,0,0,0,3,5,{"$error":"#NULL!"},"Just this 1","Less than 1 month","Often","#NULL!","#NULL!","","#NULL!","#NULL!","#NULL!","#NULL!",{"$error":"#NULL!"},"#NULL!",0,0,"#NULL!",""]
[16,"SBSA16","SBSA","Female",1,null,"Diploma in Office Management and Administration","Diploma","Yes","Yes",5,5,4,"Yes","Yes it was just right","Short term contract","","Employed","Yes","Manufacturing","Private","United Concrete Products Seychelles Ltd","Human Resource Assistant",1,0,0,0,1,0,0,0,2,9,"Through The Director at SBSA","#NULL!","Less than 1 month","Always","#NULL!","#NULL!","","#NULL!","#NULL!","#NULL!","#NULL!",{"$error":"#NULL!"},"#NULL!",0,0,"#NULL!",""]
[17,"SBSA17","SBSA","Female",1,null,"Diploma in Office Management and Administration","Diploma","No","Yes",4,4,4,"Yes","Yes it was just right","Full time Employment","","Employed","Yes","Accommodation and food service activities","Private","Constance Ephelia Resort","Account Receivable Officer",1,0,1,0,0,0,0,0,2,6,{"$error":"#NULL!"},"between 2 to 5","Less than 1 month","Always","#NULL!","#NULL!","","#NULL!","#NULL!","#NULL!","#NULL!",{"$error":"#NULL!"},"#NULL!",0,0,"#NULL!",""]
[18,"SBSA18","SBSA","Female",1,null,"Diploma in Office Management and Administration","Diploma","No","Yes",4,5,4,"Yes","Yes it was just right","Full time Employment","","Employed","Yes","Other service activities","Private","Sonny Hairstylist","Supervisor",1,0,0,0,0,1,0,0,2,5,{"$error":"#NULL!"},"Just this 1","Less than 1 month","Always","#NULL!","#NULL!","","#NULL!","#NULL!","#NULL!","#NULL!",{"$error":"#NULL!"},"#NULL!",0,0,"#NULL!",""]
[19,"SBSA19","SBSA","Male",null,1,"Diploma in Office Management and Administration","Diploma","No","Yes",5,4,5,"Yes","Yes it was just right","Full time Employment","","Employed","Yes","Public Administration and defence; compulsory social security","Public Service","Immigration and Civil Status Department","Immigration Officer",2,0,1,0,0,0,0,0,4,4,{"$error":"#NULL!"},"between 2 to 5","Less than 1 month","Often","#NULL!","#NULL!","","#NULL!","#NULL!","#NULL!","#NULL!",{"$error":"#NULL!"},"#NULL!",0,0,"#NULL!",""]
[20,"SBSA20","SBSA","Female",1,null,"Diploma in Office Management and Administration","Diploma","No","No",5,4,1,"Yes","Yes it was just right","Short term contract","","Employed","Yes","Financial and insurance activities","Parastatal","Seychelles Commercial Bank","Bank Clerk",2,0,0,0,0,1,0,1,2,1,{"$error":"#NULL!"},"Just this 1","More than 1 month","Often","#NULL!","#NULL!","","#NULL!","#NULL!","#NULL!","#NULL!",{"$error":"#NULL!"},"#NULL!",0,0,"#NULL!",""]
[21,"SBSA21","SBSA","Male",null,1,"Diploma in Office Management and Administration","Diploma","No","Yes",5,"#NULL!","#NULL!","Yes","Yes it was just right","Full time Employment","","Employed","Yes","Financial and insurance activities","Private","Mauritius Commercial Bank","Centralised Operation Support",1,1,0,0,0,0,0,0,2,6,{"$error":"#NULL!"},"Just this 1","Less than 1 month","Always","#NULL!","#NULL!","","#NULL!","#NULL!","#NULL!","#NULL!",{"$error":"#NULL!"},"#NULL!",0,0,"#NULL!",""]
[22,"SBSA22","SBSA","Male",null,1,"Diploma in Office Management and Administration","Diploma","No","Yes",5,4,4,"Yes","Yes it was just right","Further Studies","","Further Studies",0,0,0,0,0,"#NULL!","#NULL!","#NULL!","#NULL!","#NULL!","#NULL!","#NULL!","#NULL!","#NULL!","#NULL!",{"$error":"#NULL!"},"#NULL!","","#NULL!","#NULL!","#NULL!","","#NULL!","#NULL!","#NULL!","#NULL!",{"$error":"#NULL!"},"#NULL!",0,0,"#NULL!",""]
[23,"SBSA23","SBSA","Female",1,null,"Diploma in Business Studies and Accounting","Diploma","No","Yes",4,4,4,"Yes","Yes it was just right","Further Studies","","Further Studies",0,0,0,0,0,"#NULL!","#NULL!","#NULL!","#NULL!","#NULL!","#NULL!","#NULL!","#NULL!","#NULL!","#NULL!",{"$error":"#NULL!"},"#NULL!","","#NULL!","#NULL!","#NULL!","","#NULL!","#NULL!","#NULL!","#NULL!",{"$error":"#NULL!"},"#NULL!","Forensic Accounting","Asia Pacific University",1,""]
[24,"SBSA24","SBSA","Female",1,null,"Diploma in Office Management and Administration","Diploma","No","Yes",5,5,4,"Yes","Yes it was just right","Short term contract","","Employed","Yes","Public Administration and defence; compulsory social security","Public Service","Registration Division","Accounts Department","#NULL!","#NULL!","#NULL!","#NULL!","#NULL!","#NULL!","#NULL!","#NULL!","#NULL!","#NULL!",{"$error":"#NULL!"},"#NULL!","","#NULL!","#NULL!","#NULL!","","#NULL!","#NULL!","#NULL!","#NULL!",{"$error":"#NULL!"},"#NULL!",0,0,"#NULL!",""]
[25,"SBSA25","SBSA","Female",1,null,"Diploma in Business Studies and Accounting","Diploma","No","Yes",4,4,4,"Yes","Yes it was just right","Unemployed","","Further Studies",0,0,0,0,0,"#NULL!","#NULL!","#NULL!","#NULL!","#NULL!","#NULL!","#NULL!","#NULL!","#NULL!","#NULL!",{"$error":"#NULL!"},"#NULL!","","#NULL!","No","No","",3,"#NULL!","#NULL!",9,"Going For Further Studies","Yes","BA (Hons) Accounting and Finance","Asia Pacific University","#NULL!",""]
[26,"SBSA26","SBSA","Female",1,null,"Diploma in Business Studies and Accounting","Diploma","No","Yes",5,4,4,"Yes","Yes it was just right","Further Studies","","Further Studies",0,0,0,0,0,"#NULL!","#NULL!","#NULL!","#NULL!","#NULL!","#NULL!","#NULL!","#NULL!","#NULL!","#NULL!",{"$error":"#NULL!"},"#NULL!","","#NULL!","#NULL!","#NULL!","","#NULL!","#NULL!","#NULL!","#NULL!",{"$error":"#NULL!"},"#NULL!","BA in Accounting and Finance with Specialised in Forensic Accounting","Asia Pacific University",3,""]
[27,"SBSA27","SBSA","Female",1,null,"Diploma in Business Studies and Accounting","Diploma","No","Yes",4,4,4,"Yes","Yes it was just right","Unemployed","","Potential labour force entrant ",0,0,0,0,0,"#NULL!","#NULL!","#NULL!","#NULL!","#NULL!","#NULL!","#NULL!","#NULL!","#NULL!","#NULL!",{"$error":"#NULL!"},"#NULL!","","#NULL!","No","No","",3,"#NULL!","#NULL!","#NULL!",{"$error":"#NULL!"},"#NULL!",0,0,"#NULL!",""]
[28,"SBSA28","SBSA","Female",1,null,"Diploma in Business Studies and Accounting","Diploma","No","Yes",4,4,3,"Yes","Yes it was just right","Further Studies","","Further Studies",0,0,0,0,0,"#NULL!","#NULL!","#NULL!","#NULL!","#NULL!","#NULL!","#NULL!","#NULL!","#NULL!","#NULL!",{"$error":"#NULL!"},"#NULL!","","#NULL!","#NULL!","#NULL!","","#NULL!","#NULL!","#NULL!","#NULL!",{"$error":"#NULL!"},"#NULL!","ACCA","The Guy Morel Institute",1,""]
[29,"SBSA29","SBSA","Female",1,null,"Diploma in Business Studies and Accounting","Diploma","No","Yes",4,4,4,"Yes","Yes it was just right","Unemployed","","Further Studies",0,0,0,0,0,"#NULL!","#NULL!","#NULL!","#NULL!","#NULL!","#NULL!","#NULL!","#NULL!","#NULL!","#NULL!",{"$error":"#NULL!"},"#NULL!","","#NULL!","No","Yes","",3,2,"Yes",9,"Going For Further Studies","#NULL!","BA in Accounting and Finance with Specialised in forex and investment","Asia Pacific University","#NULL!",""]
[30,"SBSA30","SBSA","Female",1,null,"Diploma in Office Management and Administration","Diploma","No","Yes",5,"#NULL!","#NULL!","Yes","Yes it was just right","Part time Employment","","Employed","Yes","Arts, entertainment and recreation","Private","Moorings",0,"#NULL!",0,0,0,0,1,0,0,3,5,{"$error":"#NULL!"},"between 2 to 5","More than 1 month","Always","#NULL!","#NULL!","","#NULL!","#NULL!","#NULL!","#NULL!",{"$error":"#NULL!"},"#NULL!",0,0,"#NULL!",""]
[31,"SBSA31","SBSA","Female",1,null,"Diploma in Business Studies and Accounting","Diploma","No","Yes",4,5,4,"Yes","Yes it was just right","Unemployed","","Further Studies",0,0,0,0,0,"#NULL!","#NULL!","#NULL!","#NULL!","#NULL!","#NULL!","#NULL!","#NULL!","#NULL!","#NULL!",{"$error":"#NULL!"},"#NULL!","","#NULL!","No","No","",1,1,"Yes",9,"Going For Further Studies","No","BSC Accounting","The Guy Morel Institute","#NULL!",""]
[32,"SBSA32","SBSA","Female",1,null,"Diploma in Office Management and Administration","Diploma","No","No",5,4,5,"Yes","No, I should have learned something else","Unemployed","","Further Studies",0,0,0,0,0,"#NULL!","#NULL!","#NULL!","#NULL!","#NULL!","#NULL!","#NULL!","#NULL!","#NULL!","#NULL!",{"$error":"#NULL!"},"#NULL!","","#NULL!","No","No","",3,2,"Yes",5,{"$error":"#NULL!"},"No","Diploma in Construction","Seychelles Institute of Technology (SIT)","#NULL!",""]
[33,"SBSA33","SBSA","Male",null,1,"Diploma in Office Management and Administration","Diploma","No","Yes",4,4,5,"Yes","Yes it was just right","Full time Employment","","Employed","Unknown","Unknown","Not Stated","Not Stated",0,"#NULL!","#NULL!","#NULL!","#NULL!","#NULL!","#NULL!","#NULL!","#NULL!","#NULL!","#NULL!",{"$error":"#NULL!"},"#NULL!","","#NULL!","#NULL!","#NULL!","","#NULL!","#NULL!","#NULL!","#NULL!",{"$error":"#NULL!"},"#NULL!",0,0,"#NULL!",""]
[34,"SBSA34","SBSA","Male",null,1,"Diploma in Office Management and Administration","Diploma","Yes","Yes",5,1,1,"Yes","Yes it was just right","Short term contract","","Employed","Yes","Transportation and storage","Parastatal","Air Seychelles","Accounting Trainee",9,0,0,0,0,0,0,1,2,9,"From a Lecturer","more than 5","Less than 1 month","Often","#NULL!","#NULL!","","#NULL!","#NULL!","#NULL!","#NULL!",{"$error":"#NULL!"},"#NULL!",0,0,"#NULL!",""]
[35,"SBSA35","SBSA","Female",1,null,"Diploma in Business Studies and Accounting","Diploma","No","Yes",5,5,4,"Yes","Yes it was just right","Part time Employment","","Employed","Yes","Wholesale and retail trade; repair of motor vehicles and motorcycles","Parastatal","Seychelles Trading Company ","Accounts Technician Trainee",1,1,0,0,0,0,0,0,3,4,{"$error":"#NULL!"},"between 2 to 5","More than 1 month","Often","#NULL!","#NULL!","","#NULL!","#NULL!","#NULL!","#NULL!",{"$error":"#NULL!"},"#NULL!",0,0,"#NULL!",""]
[36,"SBSA36","SBSA","Female",1,null,"Diploma in Office Management and Administration","Diploma","No","Yes",5,1,5,"Yes","Yes it was just right","Full time Employment","","Employed","Yes","Public Administration and defence; compulsory social security","Public Service","Seychelles National Assembly","Assistant Parliamentary Reporter",1,0,0,0,1,0,0,1,3,"#NULL!",{"$error":"#NULL!"},"between 2 to 5","More than 1 month","Always","#NULL!","#NULL!","","#NULL!","#NULL!","#NULL!","#NULL!",{"$error":"#NULL!"},"#NULL!",0,0,"#NULL!",""]
[37,"SBSA37","SBSA","Male",null,1,"Diploma in Office Management and Administration","Diploma","No","No",4,4,4,"Yes","No, I should have learned something else","Full time Employment","","Employed","Yes","Financial and insurance activities","Private","Mauritius Commercial Bank","Centralised Operation Support",1,0,0,1,0,0,0,0,2,4,{"$error":"#NULL!"},"Just this 1","Less than 1 month","Often","#NULL!","#NULL!","","#NULL!","#NULL!","#NULL!","#NULL!",{"$error":"#NULL!"},"#NULL!",0,0,"#NULL!",""]
[38,"SBSA38","SBSA","Female",1,null,"Diploma in Office Management and Administration","Diploma","No","Yes",4,4,3,"Yes","Yes it was just right","Full time Employment","","Employed","Yes","Public Administration and defence; compulsory social security","Public Service","Department of Foreign Affairs","Office Assistant","#NULL!","#NULL!","#NULL!","#NULL!","#NULL!","#NULL!","#NULL!","#NULL!","#NULL!","#NULL!",{"$error":"#NULL!"},"#NULL!","","#NULL!","#NULL!","#NULL!","","#NULL!","#NULL!","#NULL!","#NULL!",{"$error":"#NULL!"},"#NULL!",0,0,"#NULL!",""]
[39,"SBSA39","SBSA","Female",1,null,"Diploma in Office Management and Administration","Diploma","No","Yes",5,4,4,"Yes","Yes it was just right","Part time Employment","","Employed","Yes","Public Administration and defence; compulsory social security","Public Service","Ministry of Home Affairs","Private Secretary","#NULL!",1,0,0,0,0,0,0,3,4,{"$error":"#NULL!"},"between 2 to 5","Less than 1 month","Always","#NULL!","#NULL!","","#NULL!","#NULL!","#NULL!","#NULL!",{"$error":"#NULL!"},"#NULL!",0,0,"#NULL!",""]
[40,"SBSA40","SBSA","Female",1,null,"Diploma in Office Management and Administration","Diploma","No","No",4,4,3,"Yes","No, I should have learned something else","Full time Employment","","Employed","Yes","Public Administration and defence; compulsory social security","Public Service","Ministry of Local Government","Office Manager",1,0,0,0,0,0,0,1,1,3,{"$error":"#NULL!"},"between 2 to 5","Less than 1 month","Often","#NULL!","#NULL!","","#NULL!","#NULL!","#NULL!","#NULL!",{"$error":"#NULL!"},"#NULL!",0,0,"#NULL!",""]
[41,"SBSA41","SBSA","Female",1,null,"Diploma in Office Management and Administration","Diploma","Not Stated","Yes",5,4,5,"Yes","Yes it was just right","Full time Employment","","Employed","Yes","Transportation and storage","Parastatal","Air Seychelles","Ground Service Agent",1,0,0,0,0,1,0,0,1,4,{"$error":"#NULL!"},"between 2 to 5","Less than 1 month","Always","#NULL!","#NULL!","","#NULL!","#NULL!","#NULL!","#NULL!",{"$error":"#NULL!"},"#NULL!",0,0,"#NULL!",""]
[42,"SBSA42","SBSA","Female",1,null,"Diploma in Office Management and Administration","Diploma","No","Yes",5,4,5,"Yes","Yes it was just right","Full time Employment","","Employed","Yes","Financial and insurance activities","Private","Mauritius Commercial Bank","Teller",1,0,0,0,0,1,0,0,2,4,{"$error":"#NULL!"},"between 2 to 5","Less than 1 month","Often","#NULL!","#NULL!","","#NULL!","#NULL!","#NULL!","#NULL!",{"$error":"#NULL!"},"#NULL!",0,0,"#NULL!",""]
[43,"SBSA43","SBSA","Female",1,null,"Diploma in Office Management and Administration","Diploma","No","No",5,"#NULL!","#NULL!","Yes","Yes it was just right","Full time Employment","","Employed","Yes","Accommodation and food service activities","Private","La Digue Island Lodge","Front Office Cashier","#NULL!","#NULL!","#NULL!","#NULL!","#NULL!","#NULL!","#NULL!","#NULL!","#NULL!","#NULL!",{"$error":"#NULL!"},"#NULL!","","#NULL!","#NULL!","#NULL!","","#NULL!","#NULL!","#NULL!","#NULL!",{"$error":"#NULL!"},"#NULL!",0,0,"#NULL!",""]
[44,"SBSA44","SBSA","Female",1,null,"Diploma in Office Management and Administration","Diploma","No","Yes",5,5,5,"Yes","Yes it was just right","Part time Employment","","Employed","Yes","Information and communication","Public Service","Seychelles Broadcasting Corporation","Part-time journalist",2,0,1,0,0,0,0,0,2,4,{"$error":"#NULL!"},"between 2 to 5","More than 1 month","Often","#NULL!","#NULL!","","#NULL!","#NULL!","#NULL!","#NULL!",{"$error":"#NULL!"},"#NULL!",0,0,"#NULL!",""]
[45,"SBSA45","SBSA","Male",null,1,"Diploma in Office Management and Administration","Diploma","No","Yes",5,5,4,"Yes","Yes it was just right","Short term contract","","Employed","Yes","Financial and insurance activities","Private","Progress Insurance Broker","Broker",2,0,0,0,0,1,0,0,2,3,{"$error":"#NULL!"},"between 2 to 5","Less than 1 month","Often","#NULL!","#NULL!","","#NULL!","#NULL!","#NULL!","#NULL!",{"$error":"#NULL!"},"#NULL!",0,0,"#NULL!",""]
[46,"SBSA46","SBSA","Female",1,null,"Diploma in Business Studies and Accounting","Diploma","No","Yes",4,5,4,"Yes","Yes it was just right","Full time Employment","","Employed","Yes","Wholesale and retail trade; repair of motor vehicles and motorcycles","Parastatal","Seychelles Trading Company ","Account Technician",2,1,0,0,1,1,0,0,3,4,{"$error":"#NULL!"},"between 2 to 5","More than 1 month","Often","#NULL!","#NULL!","","#NULL!","#NULL!","#NULL!","#NULL!",{"$error":"#NULL!"},"#NULL!",0,0,"#NULL!",""]
[47,"SBSA47","SBSA","Female",1,null,"Diploma in Business Studies and Accounting","Diploma","Yes","Yes",4,4,3,"Yes","Yes it was just right","Short term contract","","Employed","Yes","Public Administration and defence; compulsory social security","Public Service","Seychelles People's Defence Forces","Account Technician",2,0,0,0,0,1,0,0,4,1,{"$error":"#NULL!"},"between 2 to 5","Less than 1 month","Always","#NULL!","#NULL!","","#NULL!","#NULL!","#NULL!","#NULL!",{"$error":"#NULL!"},"#NULL!",0,0,"#NULL!",""]
[48,"SBSA48","SBSA","Female",1,null,"Diploma in Business Studies and Accounting","Diploma","No","Yes",5,5,4,"Yes","Yes it was just right","Full time Employment","","Employed","Yes","Transportation and storage","Private","Land Marine Ltd.","Account Technician",1,1,0,0,0,0,0,0,3,6,{"$error":"#NULL!"},"between 2 to 5","Less than 1 month","Often","#NULL!","#NULL!","","#NULL!","#NULL!","#NULL!","#NULL!",{"$error":"#NULL!"},"#NULL!",0,0,"#NULL!",""]
[49,"SBSA49","SBSA","Female",1,null,"Diploma in Business Studies and Accounting","Diploma","No","Yes",4,5,4,"Yes","Yes it was just right","Part time Employment","","Employed","No","Wholesale and retail trade; repair of motor vehicles and motorcycles","Private","AD Motor Tech","Secretary",2,0,0,0,1,0,0,0,1,5,{"$error":"#NULL!"},"Just this 1","Less than 1 month","Seldom","#NULL!","#NULL!","","#NULL!","#NULL!","#NULL!","#NULL!",{"$error":"#NULL!"},"#NULL!",0,0,"#NULL!",""]
[50,"SBSA50","SBSA","Female",1,null,"Diploma in Business Studies and Accounting","Diploma","No","Yes",5,5,5,"Yes","Yes it was just right","Full time Employment","","Employed","Yes","Administrative and support services activities","Private","7° South","Account Assistant(Debtors)",1,1,0,0,0,0,0,0,3,4,{"$error":"#NULL!"},"Just this 1","Less than 1 month","Always","#NULL!","#NULL!","","#NULL!","#NULL!","#NULL!","#NULL!",{"$error":"#NULL!"},"#NULL!",0,0,"#NULL!",""]
[51,"SBSA51","SBSA","Female",1,null,"Diploma in Office Management and Administration","Diploma","No","Yes",4,4,4,"Yes","Yes it was just right","Full time Employment","","Employed","Yes","Wholesale and retail trade; repair of motor vehicles and motorcycles","Parastatal","Seychelles Trading Company ","Receiving Clerk",2,0,0,0,0,1,0,0,2,2,{"$error":"#NULL!"},"Just this 1","More than 1 month","Often","#NULL!","#NULL!","","#NULL!","#NULL!","#NULL!","#NULL!",{"$error":"#NULL!"},"#NULL!",0,0,"#NULL!",""]
[52,"SBSA52","SBSA","Female",1,null,"Diploma in Business Studies and Accounting","Diploma","No","Yes",4,4,2,"Yes","Yes it was just right","Full time Employment","","Employed","Yes","Professional, scientific and technical activities","Private","OCRA (Seychelles) Limted","Accounts Administrator",1,1,0,0,0,0,0,0,"#NULL!",4,{"$error":"#NULL!"},"between 2 to 5","Less than 1 month","Always","#NULL!","#NULL!","","#NULL!","#NULL!","#NULL!","#NULL!",{"$error":"#NULL!"},"#NULL!",0,0,"#NULL!",""]
[53,"SBSA53","SBSA","Female",1,null,"Diploma in Office Management and Administration","Diploma","No","Yes",4,1,4,"Yes","Yes it was just right","Full time Employment","","Employed","Yes","Transportation and storage","Private","Mahe Shippinhg","Accounts Officer",2,0,0,0,1,0,0,0,3,6,{"$error":"#NULL!"},"Just this 1","Less than 1 month","Often","#NULL!","#NULL!","","#NULL!","#NULL!","#NULL!","#NULL!",{"$error":"#NULL!"},"#NULL!",0,0,"#NULL!",""]
[54,"SBSA54","SBSA","Female",1,null,"Diploma in Office Management and Administration","Diploma","No","Yes",4,4,4,"Yes","Yes it was just right","Full time Employment","","Employed","Yes","Information and communication","Public Service","Seychelles Broadcasting Corporation","Private Secretary",1,0,0,0,0,1,0,0,3,4,{"$error":"#NULL!"},"more than 5","Less than 1 month","Always","#NULL!","#NULL!","","#NULL!","#NULL!","#NULL!","#NULL!",{"$error":"#NULL!"},"#NULL!",0,0,"#NULL!",""]
[55,"SBSA55","SBSA","Female",1,null,"Diploma in Office Management and Administration","Diploma","No","Yes",5,4,4,"Yes","Yes it was just right","Full time Employment","","Employed","Yes","Information and communication","Public Service","Seychelles Broadcasting Corporation","Newsroom Assistant",1,0,1,0,0,0,0,0,"#NULL!",9,"Recruitment Fair","between 2 to 5","Less than 1 month","Always","#NULL!","#NULL!","","#NULL!","#NULL!","#NULL!","#NULL!",{"$error":"#NULL!"},"#NULL!",0,0,"#NULL!",""]
[56,"SBSA56","SBSA","Female",1,null,"Diploma in Business Studies and Accounting","Diploma","No","Yes",4,5,4,"Yes","Yes it was just right","Full time Employment","","Employed","No","Public Administration and defence; compulsory social security","Public Service","Immigration and Civil Status Department","Immigration Officer on Training",1,0,0,0,0,1,0,0,2,4,{"$error":"#NULL!"},"Just this 1","Less than 1 month","Never","#NULL!","#NULL!","","#NULL!","#NULL!","#NULL!","#NULL!",{"$error":"#NULL!"},"#NULL!",0,0,"#NULL!",""]
[57,"SBSA57","SBSA","Male",null,1,"Diploma in Business Studies and Accounting","Diploma","No","Yes",5,5,5,"Yes","Yes it was just right","Full time Employment","","Employed","Yes","Electricity, gas, steam and air conditioning supply","Parastatal","Public Utilitites Corporation","Accounts Supervisor",1,0,0,0,0,1,0,0,2,9,"The School","between 2 to 5","Less than 1 month","Often","#NULL!","#NULL!","","#NULL!","#NULL!","#NULL!","#NULL!",{"$error":"#NULL!"},"#NULL!",0,0,"#NULL!",""]
[58,"SBSA58","SBSA","Male",null,1,"Diploma in Business Studies and Accounting","Diploma","No","No",4,1,5,"Yes","Yes it was just right","Full time Employment","","Employed","Yes","Administrative and support services activities","Private","7° South","Account Assistant(Creditors)",2,0,0,1,0,0,0,0,3,8,{"$error":"#NULL!"},"Just this 1","Less than 1 month","Often","#NULL!","#NULL!","","#NULL!","#NULL!","#NULL!","#NULL!",{"$error":"#NULL!"},"#NULL!",0,0,"#NULL!",""]
[59,"SBSA59","SBSA","Male",null,1,"Diploma in Business Studies and Accounting","Diploma","No","Yes",4,4,4,"Yes","Yes it was just right","Full time Employment","","Employed","Yes","Transportation and storage","Private","Land Marine Ltd.","Accounts Techician",1,1,0,0,0,0,0,0,3,8,{"$error":"#NULL!"},"Just this 1","Less than 1 month","Often","#NULL!","#NULL!","","#NULL!","#NULL!","#NULL!","#NULL!",{"$error":"#NULL!"},"#NULL!",0,0,"#NULL!",""]
[60,"SBSA60","SBSA","Female",1,null,"Diploma in Business Studies and Accounting","Diploma","No","Yes",4,4,4,"Yes","Yes it was just right","Part time Employment","","Employed","Yes","Public Administration and defence; compulsory social security","Public Service","Ministry of Finance, Trade, Investment & Economic Planning","Accounts Technician",9,0,0,0,0,1,0,0,3,4,{"$error":"#NULL!"},"Just this 1","Less than 1 month","#NULL!","#NULL!","#NULL!","","#NULL!","#NULL!","#NULL!","#NULL!",{"$error":"#NULL!"},"#NULL!",0,0,"#NULL!",""]
[61,"SBSA61","SBSA","Female",1,null,"Diploma in Business Studies and Accounting","Diploma","No","Yes",5,4,4,"Yes","Yes it was just right","Full time Employment","","Employed","Yes","Transportation and storage","Private","99 Shipchandler","Account Assistant",2,0,0,0,0,1,0,0,3,1,{"$error":"#NULL!"},"Just this 1","Less than 1 month","Often","#NULL!","#NULL!","","#NULL!","#NULL!","#NULL!","#NULL!",{"$error":"#NULL!"},"#NULL!",0,0,"#NULL!",""]
[62,"SBSA62","SBSA","Female",1,null,"Diploma in Business Studies and Accounting","Diploma","No","No",4,5,4,"Yes","I do not know","Full time Employment","","Employed","Yes","Transportation and storage","Parastatal","Seychelles Ports Authority","Accounts Technician",1,0,0,0,0,1,0,0,3,4,{"$error":"#NULL!"},"more than 5","More than 1 month","Seldom","#NULL!","#NULL!","","#NULL!","#NULL!","#NULL!","#NULL!",{"$error":"#NULL!"},"#NULL!",0,0,"#NULL!",""]
[63,"SBSA63","SBSA","Female",1,null,"Diploma in Business Studies and Accounting","Diploma","No","Yes",5,4,4,"Yes","Yes it was just right","Full time Employment","","Employed","Yes","Information and communication","Private","Intelvision","Accounts Assistant",1,0,1,0,0,0,0,0,3,"#NULL!",{"$error":"#NULL!"},"between 2 to 5","Less than 1 month","Always","#NULL!","#NULL!","","#NULL!","#NULL!","#NULL!","#NULL!",{"$error":"#NULL!"},"#NULL!",0,0,"#NULL!",""]
[64,"SBSA64","SBSA","Female",1,null,"Diploma in Business Studies and Accounting","Diploma","No","Yes",4,4,4,"Yes","Yes it was just right","Full time Employment","","Employed","Yes","Financial and insurance activities","Private","Mauritius Commercial Bank","Account Technician",1,1,0,0,1,1,0,0,3,4,{"$error":"#NULL!"},"between 2 to 5","Less than 1 month","Often","#NULL!","#NULL!","","#NULL!","#NULL!","#NULL!","#NULL!",{"$error":"#NULL!"},"#NULL!",0,0,"#NULL!",""]
[65,"SBSA65","SBSA","Male",null,1,"Diploma in Business Studies and Accounting","Diploma","No","Yes",5,4,5,"Yes","Yes it was just right","Full time Employment","","Employed","Yes","Transportation and storage","Private","Hunt Deltel & Co.ltd.","Account Assistant",1,1,0,0,0,0,0,0,4,4,{"$error":"#NULL!"},"between 2 to 5","Less than 1 month","Always","#NULL!","#NULL!","","#NULL!","#NULL!","#NULL!","#NULL!",{"$error":"#NULL!"},"#NULL!",0,0,"#NULL!",""]
[66,"SBSA66","SBSA","Female",1,null,"Diploma in Business Studies and Accounting","Diploma","No","Yes",4,4,4,"Yes","Yes it was just right","Full time Employment","","Employed","No","Accommodation and food service activities","Private","La Domain De L'orangeraie","Reservation Agent",2,0,1,0,0,0,0,0,"#NULL!",4,{"$error":"#NULL!"},"Just this 1","Less than 1 month","Often","#NULL!","#NULL!","","#NULL!","#NULL!","#NULL!","#NULL!",{"$error":"#NULL!"},"#NULL!",0,0,"#NULL!",""]
[67,"SBSA67","SBSA","Female",1,null,"Diploma in Business Studies and Accounting","Diploma","Yes","Yes",5,5,5,"Yes","Yes it was just right","Full time Employment","","Employed","Yes","Public Administration and defence; compulsory social security","Public Service","Ministry of Finance, Trade, Investment & Economic Planning","Account Technician",1,1,0,0,0,1,0,0,4,"#NULL!",{"$error":"#NULL!"},"more than 5","Less than 1 month","Often","#NULL!","#NULL!","","#NULL!","#NULL!","#NULL!","#NULL!",{"$error":"#NULL!"},"#NULL!",0,0,"#NULL!",""]
[68,"SBSA68","SBSA","Female",1,null,"Diploma in Business Studies and Accounting","Diploma","No","Yes",5,4,4,"Yes","Yes it was just right","Full time Employment","","Employed","Yes","Public Administration and defence; compulsory social security","Public Service","Procurement Oversight Unit","Assistant Procurement Inspector",2,0,0,0,0,1,0,0,4,4,{"$error":"#NULL!"},"Just this 1","Less than 1 month","Often","#NULL!","#NULL!","","#NULL!","#NULL!","#NULL!","#NULL!",{"$error":"#NULL!"},"#NULL!",0,0,"#NULL!",""]
[69,"SBSA69","SBSA","Female",1,null,"Diploma in Office Management and Administration","Diploma","No","Yes",5,4,4,"Yes","Yes it was just right","Unemployed","","Unemployed",0,0,"Private",0,0,"#NULL!","#NULL!","#NULL!","#NULL!","#NULL!","#NULL!","#NULL!","#NULL!","#NULL!","#NULL!",{"$error":"#NULL!"},"#NULL!","","#NULL!","Yes","No","",3,2,"No",5,{"$error":"#NULL!"},"Yes",0,0,"#NULL!",""]
[70,"SBSA70","SBSA","Male",null,1,"Diploma in Business Studies and Accounting","Diploma","No","Yes",4,5,4,"Yes","Yes it was just right","Part time Employment","","Employed","Yes","Public Administration and defence; compulsory social security","Public Service","Internal Audit","Audit Technician","#NULL!","#NULL!","#NULL!","#NULL!","#NULL!","#NULL!","#NULL!","#NULL!","#NULL!","#NULL!",{"$error":"#NULL!"},"#NULL!","","#NULL!","#NULL!","#NULL!","","#NULL!","#NULL!","#NULL!","#NULL!",{"$error":"#NULL!"},"#NULL!",0,0,"#NULL!",""]
[71,"SBSA71","SBSA","Female",1,null,"Diploma in Office Management and Administration","Diploma","No","Yes",5,5,4,"Yes","Yes it was just right","Unemployed","","Further Studies",0,0,0,0,0,"#NULL!","#NULL!","#NULL!","#NULL!","#NULL!","#NULL!","#NULL!","#NULL!","#NULL!","#NULL!",{"$error":"#NULL!"},"#NULL!","","#NULL!","#NULL!","#NULL!","","#NULL!","#NULL!","#NULL!","#NULL!",{"$error":"#NULL!"},"#NULL!","BSC in Tourism Management","Asia Pacific University","#NULL!",""]
[72,"SBSA72","SBSA","Female",1,null,"Diploma in Office Management and Administration","Diploma","No","Yes",4,5,4,"Yes","Yes it was just right","Further Studies","","Further Studies",0,0,0,0,0,"#NULL!","#NULL!","#NULL!","#NULL!","#NULL!","#NULL!","#NULL!","#NULL!","#NULL!","#NULL!",{"$error":"#NULL!"},"#NULL!","","#NULL!","#NULL!","#NULL!","","#NULL!","#NULL!","#NULL!","#NULL!",{"$error":"#NULL!"},"#NULL!","BA(Hons) in Marketing Management Specialised in Digital Marketing","Asia Pacific University",1,""]
[73,"SBSA73","SBSA","Male",null,1,"Diploma in Office Management and Administration","Diploma","Yes","Yes",4,4,4,"Yes","Yes it was just right","Further Studies","","Further Studies",0,0,0,0,0,"#NULL!","#NULL!","#NULL!","#NULL!","#NULL!","#NULL!","#NULL!","#NULL!","#NULL!","#NULL!",{"$error":"#NULL!"},"#NULL!","","#NULL!","#NULL!","#NULL!","","#NULL!","#NULL!","#NULL!","#NULL!",{"$error":"#NULL!"},"#NULL!","BSc Culinary Management","Sunway University",1,""]
[74,"SBSA74","SBSA","Female",1,null,"Diploma in Business Studies and Accounting","Diploma","No","Yes",4,4,5,"Yes","Yes it was just right","Part time Employment","","Employed","Yes","Wholesale and retail trade; repair of motor vehicles and motorcycles","Parastatal","Seychelles Petroleum Company","Accounts Trainee","#NULL!","#NULL!","#NULL!","#NULL!","#NULL!","#NULL!","#NULL!","#NULL!","#NULL!","#NULL!",{"$error":"#NULL!"},"#NULL!","","#NULL!","#NULL!","#NULL!","","#NULL!","#NULL!","#NULL!","#NULL!",{"$error":"#NULL!"},"#NULL!",0,0,"#NULL!",""]
[75,"SBSA75","SBSA","Male",null,1,"Diploma in Office Management and Administration","Diploma","Yes","Yes",4,4,4,"Yes","Yes it was just right","Further Studies","","Further Studies",0,0,0,0,0,"#NULL!","#NULL!","#NULL!","#NULL!","#NULL!","#NULL!","#NULL!","#NULL!","#NULL!","#NULL!",{"$error":"#NULL!"},"#NULL!","","#NULL!","#NULL!","#NULL!","","#NULL!","#NULL!","#NULL!","#NULL!",{"$error":"#NULL!"},"#NULL!","BSc in Business Administration","University of Seychelles",1,""]
[76,"SBSA76","SBSA","Female",1,null,"Diploma in Business Studies and Accounting","Diploma","No","Yes",4,4,4,"Yes","Yes it was just right","Part time Employment","","Further Studies",0,0,0,0,0,"#NULL!","#NULL!","#NULL!","#NULL!","#NULL!","#NULL!","#NULL!","#NULL!","#NULL!","#NULL!",{"$error":"#NULL!"},"#NULL!","","#NULL!","#NULL!","#NULL!","","#NULL!","#NULL!","#NULL!","#NULL!",{"$error":"#NULL!"},"#NULL!","BSc in Business Administration","University of Seychelles","#NULL!",""]
[77,"SBSA77","SBSA","Female",1,null,"Diploma in Business Studies and Accounting","Diploma","No","Yes",4,5,4,"Yes","Yes it was just right","Part time Employment","","Employed","Yes","Transportation and storage","Parastatal","Air Seychelles","Accounts Receivables Intern","#NULL!","#NULL!","#NULL!","#NULL!","#NULL!","#NULL!","#NULL!","#NULL!","#NULL!","#NULL!",{"$error":"#NULL!"},"#NULL!","","#NULL!","#NULL!","#NULL!","","#NULL!","#NULL!","#NULL!","#NULL!",{"$error":"#NULL!"},"#NULL!",0,0,"#NULL!",""]
[78,"SBSA78","SBSA","Female",1,null,"Diploma in Business Studies and Accounting","Diploma","No","Yes",4,4,4,"Yes","Yes it was just right","Further Studies","","Further Studies",0,0,0,0,0,"#NULL!","#NULL!","#NULL!","#NULL!","#NULL!","#NULL!","#NULL!","#NULL!","#NULL!","#NULL!",{"$error":"#NULL!"},"#NULL!","","#NULL!","#NULL!","#NULL!","","#NULL!","#NULL!","#NULL!","#NULL!",{"$error":"#NULL!"},"#NULL!","BSc in Business Administration & Marketing","University of Seychelles",1,""]
[79,"SBSA79","SBSA","Female",1,null,"Diploma in Business Studies and Accounting","Diploma","No","Yes",4,4,4,"Yes","Yes it was just right","Part time Employment","","Employed","Yes","Professional, scientific and technical activities","Private","ACM & Associates","Account Junior","#NULL!","#NULL!","#NULL!","#NULL!","#NULL!","#NULL!","#NULL!","#NULL!","#NULL!","#NULL!",{"$error":"#NULL!"},"#NULL!","","#NULL!","#NULL!","#NULL!","","#NULL!","#NULL!","#NULL!","#NULL!",{"$error":"#NULL!"},"#NULL!",0,0,"#NULL!",""]
[80,"SBSA80","SBSA","Male",null,1,"Diploma in Office Management and Administration","Diploma","No","Yes",5,5,5,"Yes","Yes it was just right","Part time Employment","","Employed","Yes","Public Administration and defence; compulsory social security","Public Service","Ministry of Local Government","Senior Office Assistant",1,0,0,0,0,0,0,1,3,5,{"$error":"#NULL!"},"Just this 1","Less than 1 month","Always","#NULL!","#NULL!","","#NULL!","#NULL!","#NULL!","#NULL!",{"$error":"#NULL!"},"#NULL!",0,0,"#NULL!",""]
[81,"SBSA81","SBSA","Female",1,null,"Diploma in Office Management and Administration","Diploma","No","Yes",4,5,4,"Yes","Yes it was just right","Part time Employment","","Employed","Yes","Financial and insurance activities","Parastatal","Seychelles Commercial Bank","Bank Clerk","#NULL!","#NULL!","#NULL!","#NULL!","#NULL!","#NULL!","#NULL!","#NULL!","#NULL!","#NULL!",{"$error":"#NULL!"},"#NULL!","","#NULL!","#NULL!","#NULL!","","#NULL!","#NULL!","#NULL!","#NULL!",{"$error":"#NULL!"},"#NULL!",0,0,"#NULL!",""]
[82,"SBSA82","SBSA","Female",1,null,"Diploma in Business Studies and Accounting","Diploma","No","Yes",5,5,5,"Yes","Yes it was just right","Full time Employment","","Employed","Yes","Financial and insurance activities","Private","Mauritius Commercial Bank","Teller",1,1,0,0,0,0,0,0,3,4,{"$error":"#NULL!"},"between 2 to 5","Less than 1 month","Always","#NULL!","#NULL!","","#NULL!","#NULL!","#NULL!","#NULL!",{"$error":"#NULL!"},"#NULL!",0,0,"#NULL!",""]
[83,"SBSA83","SBSA","Female",1,null,"Diploma in Business Studies and Accounting","Diploma","No","Yes",3,3,3,"Yes","Yes it was just right","Part time Employment","","Employed","Yes","Accommodation and food service activities","Private","Coco de Mer Hotel","Receptionist Cashier","#NULL!",0,0,0,1,0,0,0,1,4,{"$error":"#NULL!"},"Just this 1","Less than 1 month","Seldom","#NULL!","#NULL!","","#NULL!","#NULL!","#NULL!","#NULL!",{"$error":"#NULL!"},"#NULL!",0,0,"#NULL!",""]
[84,"SBSA84","SBSA","Male",null,1,"Diploma in Office Management and Administration","Diploma","No","Yes",5,4,4,"Yes","Yes it was just right","Full time Employment","","Employed","Yes","Public Administration and defence; compulsory social security","Public Service","Department of Public Administration","Management Officer",1,0,1,0,0,0,0,0,4,4,{"$error":"#NULL!"},"between 2 to 5","Less than 1 month","Always","#NULL!","#NULL!","","#NULL!","#NULL!","#NULL!","#NULL!",{"$error":"#NULL!"},"#NULL!",0,0,"#NULL!",""]
[85,"SIAD1","SIAD","Male",null,1,"Advanced Certificate in Fine Art","Advanced Certificate","No","Yes",4,2,4,"Yes","Yes it was just right","Full time Employment","","Employed","Unknown","Administrative and support services activities","Private","Maria's Bicycle Rental La Digue","Assistant",0,0,0,0,0,1,0,0,2,5,{"$error":"#NULL!"},"Just this 1","Less than 1 month","Never","#NULL!","#NULL!","","#NULL!","#NULL!","#NULL!","#NULL!",{"$error":"#NULL!"},"#NULL!",0,0,"#NULL!",""]
[86,"SIAD2","SIAD","Female",1,null,"Advanced Certificate in Fine Art","Advanced Certificate","No","Yes",4,5,4,"Yes","Yes it was just right","Short term contract","Student at SIAD","Further Studies",0,0,0,0,0,"#NULL!","#NULL!","#NULL!","#NULL!","#NULL!","#NULL!","#NULL!","#NULL!","#NULL!","#NULL!",{"$error":"#NULL!"},"#NULL!","","#NULL!","#NULL!","#NULL!","","#NULL!","#NULL!","#NULL!","#NULL!",{"$error":"#NULL!"},"#NULL!",0,"Seychelles Institute of Art and Design (SIAD)","#NULL!",""]
[87,"SIAD3","SIAD","Female",1,null,"Advanced Certificate in Fine Art","Advanced Certificate","No","Yes",3,5,4,"Yes","Yes it was just right","Further Studies","","Further Studies",0,0,0,0,0,"#NULL!","#NULL!","#NULL!","#NULL!","#NULL!","#NULL!","#NULL!","#NULL!","#NULL!","#NULL!",{"$error":"#NULL!"},"#NULL!","","#NULL!","#NULL!","#NULL!","","#NULL!","#NULL!","#NULL!","#NULL!",{"$error":"#NULL!"},"#NULL!",0,0,9,""]
[88,"SIAD4","SIAD","Female",1,null,"Advanced Certificate in Fine Art","Advanced Certificate","No","Yes",4,4,4,"Yes","Yes it was just right","Unknown","","Status Unknown",0,0,0,0,0,"#NULL!","#NULL!","#NULL!","#NULL!","#NULL!","#NULL!","#NULL!","#NULL!","#NULL!","#NULL!",{"$error":"#NULL!"},"#NULL!","","#NULL!","#NULL!","#NULL!","","#NULL!","#NULL!","#NULL!","#NULL!",{"$error":"#NULL!"},"#NULL!",0,0,"#NULL!",""]
[89,"SIAD5","SIAD","Female",1,null,"Advanced Certificate in Fine Art","Advanced Certificate","No","Yes",3,3,3,"Yes","Yes it was just right","Short term contract","","Employed","Unknown","Unknown","Not Stated","Not Stated",0,"#NULL!","#NULL!","#NULL!","#NULL!","#NULL!","#NULL!","#NULL!","#NULL!","#NULL!","#NULL!",{"$error":"#NULL!"},"#NULL!","","#NULL!","#NULL!","#NULL!","","#NULL!","#NULL!","#NULL!","#NULL!",{"$error":"#NULL!"},"#NULL!",0,0,"#NULL!",""]
[90,"SIAD6","SIAD","Male",null,1,"Advanced Certificate in Fine Art","Advanced Certificate","No","Not Stated",4,4,3,"Yes","Yes it was just right","Further Studies","","Further Studies",0,0,0,0,0,"#NULL!","#NULL!","#NULL!","#NULL!","#NULL!","#NULL!","#NULL!","#NULL!","#NULL!","#NULL!",{"$error":"#NULL!"},"#NULL!","","#NULL!","#NULL!","#NULL!","","#NULL!","#NULL!","#NULL!","#NULL!",{"$error":"#NULL!"},"#NULL!","Diploma in Art and Design","Seychelles Institute of Art and Design (SIAD)",9,"Director of Institution"]
[91,"SIAD7","SIAD","Female",1,null,"Advanced Certificate in Fine Art","Advanced Certificate","No","Yes",3,3,3,"Yes","Yes it was just right","Unemployed","","Unemployed",0,0,0,0,0,"#NULL!","#NULL!","#NULL!","#NULL!","#NULL!","#NULL!","#NULL!","#NULL!","#NULL!","#NULL!",{"$error":"#NULL!"},"#NULL!","","#NULL!","Yes","No","",2,1,"No",5,{"$error":"#NULL!"},"Yes",0,0,"#NULL!",""]
[92,"SIAD8","SIAD","Female",1,null,"Advanced Certificate in Fine Art","Advanced Certificate","No","Yes",5,5,5,"Yes","No, I should have learned something else","Further Studies","Student at SIAD","Further Studies",0,0,0,0,0,"#NULL!","#NULL!","#NULL!","#NULL!","#NULL!","#NULL!","#NULL!","#NULL!","#NULL!","#NULL!",{"$error":"#NULL!"},"#NULL!","","#NULL!","#NULL!","#NULL!","","#NULL!","#NULL!","#NULL!","#NULL!",{"$error":"#NULL!"},"#NULL!",0,"Seychelles Institute of Art and Design (SIAD)","#NULL!",""]
[93,"SIAD9","SIAD","Female",1,null,"Advanced Certificate in Fine Art","Advanced Certificate","No","Yes",4,4,4,"No","Yes it was just right","Further Studies","","Further Studies",0,0,0,0,0,"#NULL!","#NULL!","#NULL!","#NULL!","#NULL!","#NULL!","#NULL!","#NULL!","#NULL!","#NULL!",{"$error":"#NULL!"},"#NULL!","","#NULL!","#NULL!","#NULL!","","#NULL!","#NULL!","#NULL!","#NULL!",{"$error":"#NULL!"},"#NULL!",0,"Seychelles Institute of Art and Design (SIAD)",1,""]
[94,"SIAD10","SIAD","Female",1,null,"Advanced Certificate in Graphics Design","Advanced Certificate","No","Yes",5,5,5,"Yes","Yes it was just right","Further Studies","","Further Studies",0,0,0,0,0,"#NULL!","#NULL!","#NULL!","#NULL!","#NULL!","#NULL!","#NULL!","#NULL!","#NULL!","#NULL!",{"$error":"#NULL!"},"#NULL!","","#NULL!","#NULL!","#NULL!","","#NULL!","#NULL!","#NULL!","#NULL!",{"$error":"#NULL!"},"#NULL!",0,"Seychelles Institute of Art and Design (SIAD)","#NULL!",""]
[95,"SIAD11","SIAD","Male",null,1,"Advanced Certificate in Graphics Design","Advanced Certificate","No","No",5,3,3,"Yes","Yes it was just right","Part time Employment","","Employed","Yes","Manufacturing","Private","New Design","Graphics Design",2,0,1,0,0,0,0,0,"#NULL!",4,{"$error":"#NULL!"},"between 2 to 5","Less than 1 month","Always","#NULL!","#NULL!","","#NULL!","#NULL!","#NULL!","#NULL!",{"$error":"#NULL!"},"#NULL!",0,0,"#NULL!",""]
[96,"SIAD12","SIAD","Female",1,null,"Advanced Certificate in Graphics Design","Advanced Certificate","No","No",2,3,2,"Yes","Yes it was just right","Further Studies","Student at SIAD","Further Studies",0,0,0,0,0,"#NULL!","#NULL!","#NULL!","#NULL!","#NULL!","#NULL!","#NULL!","#NULL!","#NULL!","#NULL!",{"$error":"#NULL!"},"#NULL!","","#NULL!","#NULL!","#NULL!","","#NULL!","#NULL!","#NULL!","#NULL!",{"$error":"#NULL!"},"#NULL!",0,"Seychelles Institute of Art and Design (SIAD)","#NULL!",""]
[97,"SIAD13","SIAD","Male",null,1,"Advanced Certificate in Graphics Design","Advanced Certificate","No","Yes",5,4,3,"Yes","Yes it was just right","Further Studies","Student at SIAD","Further Studies",0,0,0,0,0,"#NULL!","#NULL!","#NULL!","#NULL!","#NULL!","#NULL!","#NULL!","#NULL!","#NULL!","#NULL!",{"$error":"#NULL!"},"#NULL!","","#NULL!","#NULL!","#NULL!","","#NULL!","#NULL!","#NULL!","#NULL!",{"$error":"#NULL!"},"#NULL!",0,"Seychelles Institute of Art and Design (SIAD)","#NULL!",""]
[98,"SIAD14","SIAD","Female",1,null,"Advanced Certificate in Graphics Design","Advanced Certificate","No","Not Stated",3,4,3,"Yes","Yes it was just right","Further Studies","","Further Studies",0,0,0,0,0,"#NULL!","#NULL!","#NULL!","#NULL!","#NULL!","#NULL!","#NULL!","#NULL!","#NULL!","#NULL!",{"$error":"#NULL!"},"#NULL!","","#NULL!","#NULL!","#NULL!","","#NULL!","#NULL!","#NULL!","#NULL!",{"$error":"#NULL!"},"#NULL!","Diploma in Art and Design","Seychelles Institute of Art and Design (SIAD)",9,"Director of Institution"]
[99,"SIAD15","SIAD","Female",1,null,"Advanced Certificate in Graphics Design","Advanced Certificate","No","Yes",4,"#NULL!",4,"Yes","Yes it was just right","Full time Employment","","Employed","No","Information and communication","Private","Telesesel","Camera Operator",2,1,0,0,0,0,0,0,"#NULL!",4,{"$error":"#NULL!"},"Just this 1","Less than 1 month","Often","#NULL!","#NULL!","","#NULL!","#NULL!","#NULL!","#NULL!",{"$error":"#NULL!"},"#NULL!",0,0,"#NULL!",""]
[100,"SIAD16","SIAD","Female",1,null,"Advanced Certificate in Graphics Design","Advanced Certificate","No","Yes",4,3,4,"Yes","Yes it was just right","Further Studies","Student at SIAD","Further Studies",0,0,0,0,0,"#NULL!","#NULL!","#NULL!","#NULL!","#NULL!","#NULL!","#NULL!","#NULL!","#NULL!","#NULL!",{"$error":"#NULL!"},"#NULL!","","#NULL!","#NULL!","#NULL!","","#NULL!","#NULL!","#NULL!","#NULL!",{"$error":"#NULL!"},"#NULL!",0,"Seychelles Institute of Art and Design (SIAD)","#NULL!",""]
[101,"SIAD17","SIAD","Female",1,null,"Advanced Certificate in Graphics Design","Advanced Certificate","No","No",4,4,4,"Yes","No, I should have learned something else","Full time Employment","","Employed","No","Information and communication","Private","Telesesel","Camera Girl",2,1,0,0,0,0,0,0,"#NULL!",4,{"$error":"#NULL!"},"Just this 1","Less than 1 month","Seldom","#NULL!","#NULL!","","#NULL!","#NULL!","#NULL!","#NULL!",{"$error":"#NULL!"},"#NULL!",0,0,"#NULL!",""]
[102,"SIAD18","SIAD","Female",1,null,"Advanced Certificate in Graphics Design","Advanced Certificate","No","No",4,4,1,"Yes","Yes it was just right","Further Studies","","Further Studies",0,0,0,0,0,"#NULL!","#NULL!","#NULL!","#NULL!","#NULL!","#NULL!","#NULL!","#NULL!","#NULL!","#NULL!",{"$error":"#NULL!"},"#NULL!","","#NULL!","#NULL!","#NULL!","","#NULL!","#NULL!","#NULL!","#NULL!",{"$error":"#NULL!"},"#NULL!",0,"Seychelles Institute of Art and Design (SIAD)","#NULL!",""]
[103,"SIAD19","SIAD","Female",1,null,"Advanced Certificate in Graphics Design","Advanced Certificate","No","No",4,4,3,"Yes","Yes it was just right","Further Studies","Student at SIAD","Further Studies",0,0,0,0,0,"#NULL!","#NULL!","#NULL!","#NULL!","#NULL!","#NULL!","#NULL!","#NULL!","#NULL!","#NULL!",{"$error":"#NULL!"},"#NULL!","","#NULL!","#NULL!","#NULL!","","#NULL!","#NULL!","#NULL!","#NULL!",{"$error":"#NULL!"},"#NULL!",0,"Seychelles Institute of Art and Design (SIAD)","#NULL!",""]
[104,"SIAD20","SIAD","Male",null,1,"Advanced Certificate in Graphics Design","Advanced Certificate","Yes","Yes",4,"#NULL!","#NULL!","Yes","Yes it was just right","Further Studies","","Further Studies",0,0,0,0,0,"#NULL!","#NULL!","#NULL!","#NULL!","#NULL!","#NULL!","#NULL!","#NULL!","#NULL!","#NULL!",{"$error":"#NULL!"},"#NULL!","","#NULL!","#NULL!","#NULL!","","#NULL!","#NULL!","#NULL!","#NULL!",{"$error":"#NULL!"},"#NULL!",0,"Seychelles Institute of Art and Design (SIAD)","#NULL!",""]
[105,"SIAD21","SIAD","Male",null,1,"Advanced Certificate in Graphics Design","Advanced Certificate","No","Not Stated",4,"#NULL!","#NULL!","Yes","#NULL!","Unknown","","Status Unknown",0,0,0,0,0,"#NULL!","#NULL!","#NULL!","#NULL!","#NULL!","#NULL!","#NULL!","#NULL!","#NULL!","#NULL!",{"$error":"#NULL!"},"#NULL!","","#NULL!","#NULL!","#NULL!","","#NULL!","#NULL!","#NULL!","#NULL!",{"$error":"#NULL!"},"#NULL!",0,0,"#NULL!",""]
[106,"SIAD22","SIAD","Male",null,1,"Diploma in Art and Design","Diploma","No","Yes",4,4,5,"Yes","Yes it was just right","Full time Employment","","Employed","No","Information and communication","Private","Intelvision","Call Agent",2,0,0,0,0,0,1,0,2,"#NULL!",{"$error":"#NULL!"},"between 2 to 5","Less than 1 month","Never","#NULL!","#NULL!","","#NULL!","#NULL!","#NULL!","#NULL!",{"$error":"#NULL!"},"#NULL!",0,0,"#NULL!",""]
[107,"SIAD23","SIAD","Female",1,null,"Diploma in Art and Design","Diploma","No","Yes",5,5,4,"Yes","Yes it was just right","Full time Employment","","Employed","No","Accommodation and food service activities","Private","Hilton Seychelles Labriz Resort and Spa","Activity",1,1,0,0,0,0,0,0,2,4,{"$error":"#NULL!"},"Just this 1","Less than 1 month","Always","#NULL!","#NULL!","","#NULL!","#NULL!","#NULL!","#NULL!",{"$error":"#NULL!"},"#NULL!",0,0,"#NULL!",""]
[108,"SIAD24","SIAD","Male",null,1,"Diploma in Art and Design","Diploma","No","Not Stated","#NULL!","#NULL!","#NULL!","#NULL!","#NULL!","Unknown","","Status Unknown",0,0,0,0,0,"#NULL!","#NULL!","#NULL!","#NULL!","#NULL!","#NULL!","#NULL!","#NULL!","#NULL!","#NULL!",{"$error":"#NULL!"},"#NULL!","","#NULL!","#NULL!","#NULL!","","#NULL!","#NULL!","#NULL!","#NULL!",{"$error":"#NULL!"},"#NULL!",0,0,"#NULL!",""]
[109,"SIAD25","SIAD","Female",1,null,"Diploma in Art and Design","Diploma","Yes","Yes",4,4,"#NULL!","Yes","Yes it was just right","Further Studies","","Further Studies",0,0,0,0,0,"#NULL!","#NULL!","#NULL!","#NULL!","#NULL!","#NULL!","#NULL!","#NULL!","#NULL!","#NULL!",{"$error":"#NULL!"},"#NULL!","","#NULL!","#NULL!","#NULL!","","#NULL!","#NULL!","#NULL!","#NULL!",{"$error":"#NULL!"},"#NULL!","Art in Primary & Secondary School","Seychelles Institute of Teacher Education (SITE)",1,""]
[110,"SIAD26","SIAD","Female",1,null,"Diploma in Art and Design","Diploma","No","Yes",4,4,4,"Yes","Yes it was just right","Further Studies","","Further Studies",0,0,0,0,0,"#NULL!","#NULL!","#NULL!","#NULL!","#NULL!","#NULL!","#NULL!","#NULL!","#NULL!","#NULL!",{"$error":"#NULL!"},"#NULL!","","#NULL!","#NULL!","#NULL!","","#NULL!","#NULL!","#NULL!","#NULL!",{"$error":"#NULL!"},"#NULL!","Art Teaching Education","Seychelles Institute of Teacher Education (SITE)",4,""]
[111,"SIAD27","SIAD","Female",1,null,"Diploma in Art and Design","Diploma","Yes","Yes",4,4,"#NULL!","Yes","#NULL!","Part time Employment","","Employed","Unknown","Unknown","Not Stated","Not Stated",0,"#NULL!","#NULL!","#NULL!","#NULL!","#NULL!","#NULL!","#NULL!","#NULL!",2,4,{"$error":"#NULL!"},"between 2 to 5","Less than 1 month","Often","#NULL!","#NULL!","","#NULL!","#NULL!","#NULL!","#NULL!",{"$error":"#NULL!"},"#NULL!",0,0,"#NULL!",""]
[112,"SIAD28","SIAD","Male",null,1,"Diploma in Art and Design","Diploma","No","Yes","#NULL!",5,"#NULL!","Yes","Yes it was just right","Further Studies","","Further Studies",0,0,0,0,0,"#NULL!","#NULL!","#NULL!","#NULL!","#NULL!","#NULL!","#NULL!","#NULL!","#NULL!","#NULL!",{"$error":"#NULL!"},"#NULL!","","#NULL!","#NULL!","#NULL!","","#NULL!","#NULL!","#NULL!","#NULL!",{"$error":"#NULL!"},"#NULL!",0,0,"#NULL!",""]
[113,"SIAD29","SIAD","Male",null,1,"Diploma in Art and Design","Diploma","Yes","Not Stated",4,3,1,"#NULL!","I do not know","Part time Employment","","Employed","Unknown","Unknown","Not Stated","Not Stated",0,"#NULL!","#NULL!","#NULL!","#NULL!","#NULL!","#NULL!","#NULL!","#NULL!","#NULL!","#NULL!",{"$error":"#NULL!"},"between 2 to 5","More than 1 month","Never","#NULL!","#NULL!","","#NULL!","#NULL!","#NULL!","#NULL!",{"$error":"#NULL!"},"#NULL!",0,0,"#NULL!",""]
[114,"SIAD30","SIAD","Female",1,null,"Diploma in Art and Design","Diploma","Yes","Yes",4,4,"#NULL!","Yes","#NULL!","Full time Employment","","Employed","Unknown","Unknown","Not Stated","Not Stated",0,"#NULL!","#NULL!","#NULL!","#NULL!","#NULL!","#NULL!","#NULL!","#NULL!",2,4,{"$error":"#NULL!"},"Just this 1","Less than 1 month","Often","#NULL!","#NULL!","","#NULL!","#NULL!","#NULL!","#NULL!",{"$error":"#NULL!"},"#NULL!",0,0,"#NULL!",""]
[115,"SIAD31","SIAD","Female",1,null,"Diploma in Art and Design","Diploma","No","No",3,3,2,"Yes","I do not know","Further Studies","","Further Studies",0,0,0,0,0,"#NULL!","#NULL!","#NULL!","#NULL!","#NULL!","#NULL!","#NULL!","#NULL!","#NULL!","#NULL!",{"$error":"#NULL!"},"#NULL!","","#NULL!","#NULL!","#NULL!","","#NULL!","#NULL!","#NULL!","#NULL!",{"$error":"#NULL!"},"#NULL!","Teaching","Seychelles Institute of Teacher Education (SITE)","#NULL!",""]
[116,"SIAD32","SIAD","Male",null,1,"Diploma in Art and Design","Diploma","Yes","Yes",1,5,"#NULL!","Yes","Yes it was just right","Unemployed","","Unemployed",0,0,0,0,0,"#NULL!","#NULL!","#NULL!","#NULL!","#NULL!","#NULL!","#NULL!","#NULL!","#NULL!","#NULL!",{"$error":"#NULL!"},"#NULL!","","#NULL!","Yes","#NULL!","",3,"#NULL!","#NULL!",5,{"$error":"#NULL!"},"Yes",0,0,"#NULL!",""]
[117,"SIAD33","SIAD","Female",1,null,"Diploma in Art and Design","Diploma","No","Yes",4,4,4,"Yes","Yes it was just right","Further Studies","","Further Studies",0,0,"Private","Mix Fashion",0,"#NULL!","#NULL!","#NULL!","#NULL!","#NULL!","#NULL!","#NULL!","#NULL!","#NULL!","#NULL!",{"$error":"#NULL!"},"#NULL!","","#NULL!","#NULL!","#NULL!","","#NULL!","#NULL!","#NULL!","#NULL!",{"$error":"#NULL!"},"#NULL!",0,0,"#NULL!",""]
[118,"SIAD34","SIAD","Male",null,1,"Diploma in Art and Design","Diploma","No","Yes",4,3,4,"No","No, I should have learned something else","Full time Employment","","Employed","Unknown","Professional, scientific and technical activities","Private","Beyond Design","Installation",2,1,0,0,0,0,0,0,2,5,{"$error":"#NULL!"},"between 2 to 5","Less than 1 month","Often","#NULL!","#NULL!","","#NULL!","#NULL!","#NULL!","#NULL!",{"$error":"#NULL!"},"#NULL!",0,0,"#NULL!",""]
[119,"SIAD35","SIAD","Female",1,null,"Diploma in Art and Design","Diploma","No","Yes",4,4,4,"Yes","Yes it was just right","Further Studies","","Further Studies",0,0,0,0,0,"#NULL!","#NULL!","#NULL!","#NULL!","#NULL!","#NULL!","#NULL!","#NULL!","#NULL!","#NULL!",{"$error":"#NULL!"},"#NULL!","","#NULL!","#NULL!","#NULL!","","#NULL!","#NULL!","#NULL!","#NULL!",{"$error":"#NULL!"},"#NULL!",0,0,"#NULL!",""]
[120,"SIAD36","SIAD","Female",1,null,"Diploma in Art and Design","Diploma","No","Yes",4,4,"#NULL!","#NULL!","I do not know","Unknown","","Status Unknown",0,0,0,0,0,"#NULL!","#NULL!","#NULL!","#NULL!","#NULL!","#NULL!","#NULL!","#NULL!","#NULL!","#NULL!",{"$error":"#NULL!"},"#NULL!","","#NULL!","#NULL!","#NULL!","","#NULL!","#NULL!","#NULL!","#NULL!",{"$error":"#NULL!"},"#NULL!",0,0,"#NULL!",""]
[121,"SIAD37","SIAD","Male",null,1,"Diploma in Art and Design","Diploma","No","Yes",1,5,"#NULL!","Yes","Yes it was just right","Unemployed","","Unemployed",0,0,0,0,0,"#NULL!","#NULL!","#NULL!","#NULL!","#NULL!","#NULL!","#NULL!","#NULL!","#NULL!","#NULL!",{"$error":"#NULL!"},"#NULL!","","#NULL!","Yes","Yes","","#NULL!",2,"No","#NULL!",{"$error":"#NULL!"},"Yes",0,0,"#NULL!",""]
[122,"SIAD38","SIAD","Female",1,null,"Diploma in Art and Design","Diploma","No","Yes",4,3,3,"Yes","Yes it was just right","Further Studies","","Further Studies",0,0,0,0,0,"#NULL!","#NULL!","#NULL!","#NULL!","#NULL!","#NULL!","#NULL!","#NULL!","#NULL!","#NULL!",{"$error":"#NULL!"},"#NULL!","","#NULL!","#NULL!","#NULL!","","#NULL!","#NULL!","#NULL!","#NULL!",{"$error":"#NULL!"},"#NULL!","Teaching","Seychelles Institute of Teacher Education (SITE)",4,""]
[123,"SIAD39","SIAD","Female",1,null,"Diploma in Art and Design","Diploma","Yes","Yes",4,4,3,"Yes","Yes it was just right","Further Studies","","Further Studies",0,0,0,0,0,"#NULL!","#NULL!","#NULL!","#NULL!","#NULL!","#NULL!","#NULL!","#NULL!","#NULL!","#NULL!",{"$error":"#NULL!"},"#NULL!","","#NULL!","#NULL!","#NULL!","","#NULL!","#NULL!","#NULL!","#NULL!",{"$error":"#NULL!"},"#NULL!","The Arts Secondary Diploma","Seychelles Institute of Teacher Education (SITE)",9,"Teacher at School"]
[124,"SIAD40","SIAD","Female",1,null,"Certificate in Sewing and Textile","Certificate ","No","Yes",4,5,4,"Yes","Yes it was just right","Further Studies","SIAD","Further Studies",0,0,0,0,0,"#NULL!","#NULL!","#NULL!","#NULL!","#NULL!","#NULL!","#NULL!","#NULL!","#NULL!","#NULL!",{"$error":"#NULL!"},"#NULL!","","#NULL!","#NULL!","#NULL!","","#NULL!","#NULL!","#NULL!","#NULL!",{"$error":"#NULL!"},"#NULL!","Advanced Certificate in Textile","Seychelles Institute of Art and Design (SIAD)","#NULL!",""]
[125,"SIAD41","SIAD","Female",1,null,"Certificate in Sewing and Textile","Certificate ","No","No",3,"#NULL!","#NULL!","Yes","No, I should have learned something else","Unemployed","","Unemployed",0,0,0,0,0,"#NULL!","#NULL!","#NULL!","#NULL!","#NULL!","#NULL!","#NULL!","#NULL!","#NULL!","#NULL!",{"$error":"#NULL!"},"#NULL!","","#NULL!","Yes","No","",1,3,"No",9,{"$error":"#NULL!"},"Yes",0,0,"#NULL!",""]
[126,"SIAD42","SIAD","Female",1,null,"Certificate in Sewing and Textile","Certificate ","No","Yes",5,"#NULL!","#NULL!","Yes","Yes it was just right","Full time Employment","","Employed","Unknown","Unknown","Not Stated","Not Stated",0,"#NULL!","#NULL!","#NULL!","#NULL!","#NULL!","#NULL!","#NULL!","#NULL!","#NULL!","#NULL!",{"$error":"#NULL!"},"#NULL!","","#NULL!","#NULL!","#NULL!","","#NULL!","#NULL!","#NULL!","#NULL!",{"$error":"#NULL!"},"#NULL!",0,0,"#NULL!",""]
[127,"SIAD43","SIAD","Female",1,null,"Certificate in Sewing and Textile","Certificate ","No","Yes",4,5,4,"Yes","Yes it was just right","Further Studies","SIAD","Further Studies",0,0,0,0,0,"#NULL!","#NULL!","#NULL!","#NULL!","#NULL!","#NULL!","#NULL!","#NULL!","#NULL!","#NULL!",{"$error":"#NULL!"},"#NULL!","","#NULL!","#NULL!","#NULL!","","#NULL!","#NULL!","#NULL!","#NULL!",{"$error":"#NULL!"},"#NULL!",0,"Seychelles Institute of Art and Design (SIAD)","#NULL!",""]
[128,"SIAD44","SIAD","Female",1,null,"Certificate in Sewing and Textile","Certificate ","No","No",4,"#NULL!","#NULL!","Yes","Yes it was just right","Full time Employment","","Employed","Unknown","Manufacturing","Private","Ruby Rose",0,1,1,0,0,0,0,0,0,2,5,{"$error":"#NULL!"},"Just this 1","","Always","#NULL!","#NULL!","","#NULL!","#NULL!","#NULL!","#NULL!",{"$error":"#NULL!"},"#NULL!",0,0,"#NULL!",""]
[129,"SIAD45","SIAD","Female",1,null,"Certificate in Sewing and Textile","Certificate ","No","Yes",5,4,4,"Yes","Yes it was just right","Part time Employment","","Employed","No","Accommodation and food service activities","Private","Lazare Property","Room attendant",1,0,0,0,0,0,0,1,2,8,{"$error":"#NULL!"},"Just this 1","Less than 1 month","Often","#NULL!","#NULL!","","#NULL!","#NULL!","#NULL!","#NULL!",{"$error":"#NULL!"},"#NULL!",0,0,"#NULL!",""]
[130,"SIAD46","SIAD","Female",1,null,"Certificate in Sewing and Textile","Certificate ","No","Yes",1,4,4,"Yes","Yes it was just right","Further Studies","","Further Studies",0,0,0,0,0,"#NULL!","#NULL!","#NULL!","#NULL!","#NULL!","#NULL!","#NULL!","#NULL!","#NULL!","#NULL!",{"$error":"#NULL!"},"#NULL!","","#NULL!","#NULL!","#NULL!","","#NULL!","#NULL!","#NULL!","#NULL!",{"$error":"#NULL!"},"#NULL!","Advanced Certificate in Fashion","Seychelles Institute of Art and Design (SIAD)",9,""]
[131,"SIAD47","SIAD","Female",1,null,"Certificate in Sewing and Textile","Certificate ","Not Stated","Yes",5,5,4,"Yes","Yes it was just right","Further Studies","","Further Studies",0,0,0,0,0,"#NULL!","#NULL!","#NULL!","#NULL!","#NULL!","#NULL!","#NULL!","#NULL!","#NULL!","#NULL!",{"$error":"#NULL!"},"#NULL!","","#NULL!","#NULL!","#NULL!","","#NULL!","#NULL!","#NULL!","#NULL!",{"$error":"#NULL!"},"#NULL!",0,0,"#NULL!",""]
[132,"SIAD48","SIAD","Female",1,null,"Advanced Certificate in Textile","Advanced Certificate","No","Yes",4,4,4,"Yes","Yes it was just right","Further Studies","Student at SIAD","Further Studies",0,0,0,0,0,"#NULL!","#NULL!","#NULL!","#NULL!","#NULL!","#NULL!","#NULL!","#NULL!","#NULL!","#NULL!",{"$error":"#NULL!"},"#NULL!","","#NULL!","#NULL!","#NULL!","","#NULL!","#NULL!","#NULL!","#NULL!",{"$error":"#NULL!"},"#NULL!",0,"Seychelles Institute of Art and Design (SIAD)","#NULL!",""]
[133,"SIAD49","SIAD","Female",1,null,"Advanced Certificate in Textile","Advanced Certificate","No","Yes",2,4,4,"Yes","Yes it was just right","Unemployed","","Potential labour force entrant ",0,0,0,0,0,"#NULL!","#NULL!","#NULL!","#NULL!","#NULL!","#NULL!","#NULL!","#NULL!","#NULL!","#NULL!",{"$error":"#NULL!"},"#NULL!","","#NULL!","#NULL!","#NULL!","","#NULL!","#NULL!","#NULL!","#NULL!",{"$error":"#NULL!"},"#NULL!",0,0,"#NULL!",""]
[134,"SIAD50","SIAD","Female",1,null,"Advanced Certificate in Textile","Advanced Certificate","No","Not Stated",4,4,4,"Yes","Yes it was just right","Unemployed","","Unemployed",0,0,0,0,0,"#NULL!","#NULL!","#NULL!","#NULL!","#NULL!","#NULL!","#NULL!","#NULL!","#NULL!","#NULL!",{"$error":"#NULL!"},"#NULL!","","#NULL!","Yes","No","",2,1,"#NULL!",3,{"$error":"#NULL!"},"Yes",0,0,"#NULL!",""]
[135,"SIAD51","SIAD","Female",1,null,"Advanced Certificate in Textile","Advanced Certificate","No","Yes",4,"#NULL!","#NULL!","Yes","I do not know","Unknown","","Status Unknown",0,0,0,0,0,"#NULL!","#NULL!","#NULL!","#NULL!","#NULL!","#NULL!","#NULL!","#NULL!","#NULL!","#NULL!",{"$error":"#NULL!"},"#NULL!","","#NULL!","#NULL!","#NULL!","","#NULL!","#NULL!","#NULL!","#NULL!",{"$error":"#NULL!"},"#NULL!",0,0,"#NULL!",""]
[136,"SIAD52","SIAD","Female",1,null,"Advanced Certificate in Textile","Advanced Certificate","No","Yes",4,2,4,"Yes","Yes it was just right","Full time Employment","","Employed","Yes","Manufacturing","Private","Roots Seychelles","Textile Designer","#NULL!","#NULL!","#NULL!","#NULL!","#NULL!","#NULL!","#NULL!","#NULL!","#NULL!","#NULL!",{"$error":"#NULL!"},"#NULL!","","#NULL!","#NULL!","#NULL!","","#NULL!","#NULL!","#NULL!","#NULL!",{"$error":"#NULL!"},"#NULL!",0,0,"#NULL!",""]
[137,"SIAD53","SIAD","Female",1,null,"Advanced Certificate in Textile","Advanced Certificate","No","Yes",4,3,4,"Yes","Yes it was just right","Full time Employment","","Employed","No","Administrative and support services activities","Private","Mason's Travel","Airport Hostess",2,0,1,0,0,0,0,0,2,"#NULL!",{"$error":"#NULL!"},"between 2 to 5","Less than 1 month","Often","#NULL!","#NULL!","","#NULL!","#NULL!","#NULL!","#NULL!",{"$error":"#NULL!"},"#NULL!",0,0,"#NULL!",""]
[138,"SIAD54","SIAD","Female",1,null,"Advanced Certificate in Fashion","Advanced Certificate","No","Yes",4,4,4,"No","Yes it was just right","Further Studies","","Further Studies",0,0,0,0,0,"#NULL!","#NULL!","#NULL!","#NULL!","#NULL!","#NULL!","#NULL!","#NULL!","#NULL!","#NULL!",{"$error":"#NULL!"},"#NULL!","","#NULL!","#NULL!","#NULL!","","#NULL!","#NULL!","#NULL!","#NULL!",{"$error":"#NULL!"},"#NULL!",0,"Seychelles Institute of Art and Design (SIAD)","#NULL!",""]
[139,"SIAD55","SIAD","Female",1,null,"Advanced Certificate in Fashion","Advanced Certificate","No","Yes",4,4,4,"Yes","Yes it was just right","Further Studies","","Further Studies",0,0,0,0,0,"#NULL!","#NULL!","#NULL!","#NULL!","#NULL!","#NULL!","#NULL!","#NULL!","#NULL!","#NULL!",{"$error":"#NULL!"},"#NULL!","","#NULL!","#NULL!","#NULL!","","#NULL!","#NULL!","#NULL!","#NULL!",{"$error":"#NULL!"},"#NULL!",0,0,"#NULL!",""]
[140,"SIAD56","SIAD","Female",1,null,"Advanced Certificate in Fashion","Advanced Certificate","No","Not Stated",4,4,4,"Yes","Yes it was just right","Further Studies","","Further Studies",0,0,0,0,0,"#NULL!","#NULL!","#NULL!","#NULL!","#NULL!","#NULL!","#NULL!","#NULL!","#NULL!","#NULL!",{"$error":"#NULL!"},"#NULL!","","#NULL!","#NULL!","#NULL!","","#NULL!","#NULL!","#NULL!","#NULL!",{"$error":"#NULL!"},"#NULL!",0,"Seychelles Institute of Art and Design (SIAD)","#NULL!",""]
[141,"SIAD57","SIAD","Female",1,null,"Advanced Certificate in Fashion","Advanced Certificate","No","No",3,3,3,"Yes","No, I should have learned something else","Further Studies","Student at SIAD","Further Studies",0,0,0,0,0,"#NULL!","#NULL!","#NULL!","#NULL!","#NULL!","#NULL!","#NULL!","#NULL!","#NULL!","#NULL!",{"$error":"#NULL!"},"#NULL!","","#NULL!","#NULL!","#NULL!","","#NULL!","#NULL!","#NULL!","#NULL!",{"$error":"#NULL!"},"#NULL!",0,"Seychelles Institute of Art and Design (SIAD)","#NULL!",""]
[142,"SIAD58","SIAD","Female",1,null,"Advanced Certificate in Fashion","Advanced Certificate","No","Yes",5,1,5,"Yes","Yes it was just right","Full time Employment","","Employed","Unknown","Manufacturing","Private","Seyash Enterprise",0,1,1,0,0,0,0,0,0,1,4,{"$error":"#NULL!"},"Just this 1","Less than 1 month","Always","#NULL!","#NULL!","","#NULL!","#NULL!","#NULL!","#NULL!",{"$error":"#NULL!"},"#NULL!",0,0,"#NULL!",""]
[143,"SIAD59","SIAD","Female",1,null,"Advanced Certificate in Fashion","Advanced Certificate","No","No",4,1,1,"Yes","Yes it was just right","Unemployed","","Unemployed",0,0,0,0,0,"#NULL!","#NULL!","#NULL!","#NULL!","#NULL!","#NULL!","#NULL!","#NULL!","#NULL!","#NULL!",{"$error":"#NULL!"},"#NULL!","","#NULL!","Yes","No","",3,1,"No",3,{"$error":"#NULL!"},"Yes",0,0,"#NULL!",""]
[144,"SIAD60","SIAD","Female",1,null,"Advanced Certificate in Fashion","Advanced Certificate","No","Yes",3,4,4,"Yes","Yes it was just right","Further Studies","Student at SIAD","Further Studies",0,0,0,0,0,"#NULL!","#NULL!","#NULL!","#NULL!","#NULL!","#NULL!","#NULL!","#NULL!","#NULL!","#NULL!",{"$error":"#NULL!"},"#NULL!","","#NULL!","#NULL!","#NULL!","","#NULL!","#NULL!","#NULL!","#NULL!",{"$error":"#NULL!"},"#NULL!",0,"Seychelles Institute of Art and Design (SIAD)","#NULL!",""]
[145,"SIAD61","SIAD","Female",1,null,"Advanced Certificate in Fashion","Advanced Certificate","Yes","No",5,5,5,"Yes","Yes it was just right","Further Studies","","Further Studies",0,0,0,0,0,"#NULL!","#NULL!","#NULL!","#NULL!","#NULL!","#NULL!","#NULL!","#NULL!","#NULL!","#NULL!",{"$error":"#NULL!"},"#NULL!","","#NULL!","#NULL!","#NULL!","","#NULL!","#NULL!","#NULL!","#NULL!",{"$error":"#NULL!"},"#NULL!",0,"Seychelles Institute of Art and Design (SIAD)","#NULL!",""]
[146,"SIAD62","SIAD","Female",1,null,"Certificate in Drawing and Painting","Certificate ","No","Yes",4,5,5,"Yes","Yes it was just right","Full time Employment","","Employed","No","Manufacturing","Private","Ma Boulagerie","Cashier",1,0,0,0,0,0,0,1,3,8,{"$error":"#NULL!"},"Just this 1","Less than 1 month","Never","#NULL!","#NULL!","","#NULL!","#NULL!","#NULL!","#NULL!",{"$error":"#NULL!"},"#NULL!",0,0,"#NULL!",""]
[147,"SIAD63","SIAD","Male",null,1,"Certificate in Drawing and Painting","Certificate ","No","No",3,4,2,"Yes","Yes it was just right","Further Studies","","Further Studies",0,0,0,0,0,"#NULL!","#NULL!","#NULL!","#NULL!","#NULL!","#NULL!","#NULL!","#NULL!","#NULL!","#NULL!",{"$error":"#NULL!"},"#NULL!","","#NULL!","#NULL!","#NULL!","","#NULL!","#NULL!","#NULL!","#NULL!",{"$error":"#NULL!"},"#NULL!","Advanced Certificate in Graphic","Seychelles Institute of Art and Design (SIAD)",9,"From School"]
[148,"SIAD64","SIAD","Female",1,null,"Certificate in Drawing and Painting","Certificate ","No","Yes",2,3,1,"Yes","I do not know","Unknown","","Status Unknown",0,0,0,0,0,"#NULL!","#NULL!","#NULL!","#NULL!","#NULL!","#NULL!","#NULL!","#NULL!","#NULL!","#NULL!",{"$error":"#NULL!"},"#NULL!","","#NULL!","#NULL!","#NULL!","","#NULL!","#NULL!","#NULL!","#NULL!",{"$error":"#NULL!"},"#NULL!",0,0,"#NULL!",""]
[149,"SIAD65","SIAD","Female",1,null,"Certificate in Drawing and Painting","Certificate ","No","No",4,4,4,"No","Yes it was just right","Further Studies","","Further Studies",0,0,0,0,0,"#NULL!","#NULL!","#NULL!","#NULL!","#NULL!","#NULL!","#NULL!","#NULL!","#NULL!","#NULL!",{"$error":"#NULL!"},"#NULL!","","#NULL!","#NULL!","#NULL!","","#NULL!","#NULL!","#NULL!","#NULL!",{"$error":"#NULL!"},"#NULL!","Advanced Certificate in Fine Art","Seychelles Institute of Art and Design (SIAD)",9,"Teacher at School"]
[150,"SIAD66","SIAD","Female",1,null,"Certificate in Drawing and Painting","Certificate ","No","Yes",4,5,4,"No","Yes it was just right","Further Studies","","Further Studies",0,0,0,0,0,"#NULL!","#NULL!","#NULL!","#NULL!","#NULL!","#NULL!","#NULL!","#NULL!","#NULL!","#NULL!",{"$error":"#NULL!"},"#NULL!","","#NULL!","#NULL!","#NULL!","","#NULL!","#NULL!","#NULL!","#NULL!",{"$error":"#NULL!"},"#NULL!","Advanced Certificate in Fine Art","Seychelles Institute of Art and Design (SIAD)",9,"Teacher at School"]
[151,"SIAD67","SIAD","Male",null,1,"Certificate in Drawing and Painting","Certificate ","No","Yes",4,5,3,"Yes","Yes it was just right","Further Studies","","Further Studies",0,0,0,0,0,"#NULL!","#NULL!","#NULL!","#NULL!","#NULL!","#NULL!","#NULL!","#NULL!","#NULL!","#NULL!",{"$error":"#NULL!"},"#NULL!","","#NULL!","#NULL!","#NULL!","","#NULL!","#NULL!","#NULL!","#NULL!",{"$error":"#NULL!"},"#NULL!","Advanced Certificate in Fine Art","Seychelles Institute of Art and Design (SIAD)",9,"Teacher at School"]
[152,"SIAD68","SIAD","Female",1,null,"Certificate in Drawing and Painting","Certificate ","No","Yes",4,5,4,"Yes","Yes it was just right","Further Studies","SIAD","Further Studies",0,0,0,0,0,"#NULL!","#NULL!","#NULL!","#NULL!","#NULL!","#NULL!","#NULL!","#NULL!","#NULL!","#NULL!",{"$error":"#NULL!"},"#NULL!","","#NULL!","#NULL!","#NULL!","","#NULL!","#NULL!","#NULL!","#NULL!",{"$error":"#NULL!"},"#NULL!",0,"Seychelles Institute of Art and Design (SIAD)","#NULL!",""]
[153,"SIAD69","SIAD","Female",1,null,"Advanced Certificate in Graphics Design","Advanced Certificate","No","Yes",5,5,5,"Yes","Yes it was just right","Further Studies","","Further Studies",0,0,0,0,0,"#NULL!","#NULL!","#NULL!","#NULL!","#NULL!","#NULL!","#NULL!","#NULL!","#NULL!","#NULL!",{"$error":"#NULL!"},"#NULL!","","#NULL!","#NULL!","#NULL!","","#NULL!","#NULL!","#NULL!","#NULL!",{"$error":"#NULL!"},"#NULL!","Advanced Certificate in Graphic","Seychelles Institute of Art and Design (SIAD)",9,"At School"]
[154,"SIAD70","SIAD","Male",null,1,"Certificate in Drawing and Painting","Certificate ","No","No",3,4,3,"No","Yes it was just right","Further Studies","","Further Studies",0,0,0,0,0,"#NULL!","#NULL!","#NULL!","#NULL!","#NULL!","#NULL!","#NULL!","#NULL!","#NULL!","#NULL!",{"$error":"#NULL!"},"#NULL!","","#NULL!","#NULL!","#NULL!","","#NULL!","#NULL!","#NULL!","#NULL!",{"$error":"#NULL!"},"#NULL!","Advanced Certificate in Fine Art","Seychelles Institute of Art and Design (SIAD)",9,"Teacher at School"]
[155,"SIT1","SIT","Female",1,null,"Advanced Certificate in Electrical and Electronics","Advanced Certificate","Yes","Yes",4,5,3,"Yes","Yes it was just right","Full time Employment","","Employed","No","Public Administration and defence; compulsory social security","Public Service","SPDF Coast Guard","Supervisor Watchstander and Seaman",2,0,0,0,1,0,0,0,"#NULL!",1,{"$error":"#NULL!"},"Just this 1","Less than 1 month","Seldom","#NULL!","#NULL!","","#NULL!","#NULL!","#NULL!","#NULL!",{"$error":"#NULL!"},"#NULL!",0,0,"#NULL!",""]
[156,"SIT2","SIT","Male",null,1,"Advanced Certificate in Electrical and Electronics","Advanced Certificate","No","Yes",5,5,4,"Yes","Yes it was just right","Full time Employment","","Employed","Yes","Administrative and support services activities","Private","Pilgrims Security","Trainee Technician",1,0,0,0,0,1,0,0,3,4,{"$error":"#NULL!"},"between 2 to 5","Less than 1 month","Often","#NULL!","#NULL!","","#NULL!","#NULL!","#NULL!","#NULL!",{"$error":"#NULL!"},"#NULL!",0,0,"#NULL!",""]
[157,"SIT3","SIT","Male",null,1,"Advanced Certificate in Electrical and Electronics","Advanced Certificate","No","Yes",4,4,4,"Yes","Yes it was just right","Full time Employment","","Employed","No","Unknown","Private","Pitchers ","Assistant Manager",1,0,1,0,0,0,0,0,2,5,{"$error":"#NULL!"},"Just this 1","Less than 1 month","Often","#NULL!","#NULL!","","#NULL!","#NULL!","#NULL!","#NULL!",{"$error":"#NULL!"},"#NULL!",0,0,"#NULL!",""]
[158,"SIT4","SIT","Female",1,null,"Advanced Certificate in Electrical and Electronics","Advanced Certificate","No","Yes",4,4,3,"Yes","Yes it was just right","Unemployed","","Potential labour force entrant ",0,0,0,0,0,"#NULL!","#NULL!","#NULL!","#NULL!","#NULL!","#NULL!","#NULL!","#NULL!","#NULL!","#NULL!",{"$error":"#NULL!"},"#NULL!","","#NULL!","No","No","",3,"#NULL!","#NULL!",2,{"$error":"#NULL!"},"No",0,0,"#NULL!",""]
[159,"SIT5","SIT","Female",1,null,"Advanced Certificate in Electrical and Electronics","Advanced Certificate","Yes","Yes","#NULL!",4,"#NULL!","Yes","Yes it was just right","Further Studies","","Further Studies",0,0,0,0,0,"#NULL!","#NULL!","#NULL!","#NULL!","#NULL!","#NULL!","#NULL!","#NULL!","#NULL!","#NULL!",{"$error":"#NULL!"},"#NULL!","","#NULL!","#NULL!","#NULL!","","#NULL!","#NULL!","#NULL!","#NULL!",{"$error":"#NULL!"},"#NULL!","Diploma in Information System Engineer","Seychelles Institute of Technology (SIT)",9,""]
[160,"SIT6","SIT","Male",null,1,"Advanced Certificate in Electrical and Electronics","Advanced Certificate","No","Yes",4,4,4,"Yes","Yes it was just right","Further Studies","","Further Studies",0,0,0,0,0,"#NULL!","#NULL!","#NULL!","#NULL!","#NULL!","#NULL!","#NULL!","#NULL!","#NULL!","#NULL!",{"$error":"#NULL!"},"#NULL!","","#NULL!","#NULL!","#NULL!","","#NULL!","#NULL!","#NULL!","#NULL!",{"$error":"#NULL!"},"#NULL!","Diploma in Information System Engineer","Seychelles Institute of Technology (SIT)",9,"Through the Institution"]
[161,"SIT7","SIT","Male",null,1,"Advanced Certificate in Electrical and Electronics","Advanced Certificate","No","Yes",1,3,2,"Yes","I do not know","Further Studies","","Further Studies",0,0,0,0,0,"#NULL!","#NULL!","#NULL!","#NULL!","#NULL!","#NULL!","#NULL!","#NULL!","#NULL!","#NULL!",{"$error":"#NULL!"},"#NULL!","","#NULL!","#NULL!","#NULL!","","#NULL!","#NULL!","#NULL!","#NULL!",{"$error":"#NULL!"},"#NULL!",0,0,"#NULL!",""]
[162,"SIT8","SIT","Male",null,1,"Advanced Certificate in Electrical and Electronics","Advanced Certificate","No","Yes",1,1,1,"Yes","I do not know","Unemployed","","Unemployed",0,0,0,0,0,"#NULL!","#NULL!","#NULL!","#NULL!","#NULL!","#NULL!","#NULL!","#NULL!","#NULL!","#NULL!",{"$error":"#NULL!"},"#NULL!","","#NULL!","Yes","No","",3,2,"No",9,"Have not Started Working Yet","Yes",0,0,"#NULL!",""]
[163,"SIT9","SIT","Male",null,1,"Advanced Certificate in Electrical and Electronics","Advanced Certificate","No","Yes",4,4,1,"Yes","Yes it was just right","Further Studies","","Further Studies",0,0,0,0,0,"#NULL!","#NULL!","#NULL!","#NULL!","#NULL!","#NULL!","#NULL!","#NULL!","#NULL!","#NULL!",{"$error":"#NULL!"},"#NULL!","","#NULL!","#NULL!","#NULL!","","#NULL!","#NULL!","#NULL!","#NULL!",{"$error":"#NULL!"},"#NULL!","Diploma in Mechanical engineering","Seychelles Institute of Technology (SIT)",9,"By The School"]
[164,"SIT10","SIT","Male",null,1,"Advanced Certificate in Electrical and Electronics","Advanced Certificate","Yes","Yes",4,4,4,"Yes","Yes it was just right","Unemployed","","Unemployed",0,0,0,0,0,"#NULL!","#NULL!","#NULL!","#NULL!","#NULL!","#NULL!","#NULL!","#NULL!","#NULL!","#NULL!",{"$error":"#NULL!"},"#NULL!","","#NULL!","Yes","No","",3,2,"No","#NULL!",{"$error":"#NULL!"},"Yes",0,0,"#NULL!",""]
[165,"SIT11","SIT","Male",null,1,"Diploma in Telecommunication","Diploma","Yes","Yes",4,4,3,"Yes","Yes it was just right","Unemployed","","Unemployed",0,0,0,0,0,"#NULL!","#NULL!","#NULL!","#NULL!","#NULL!","#NULL!","#NULL!","#NULL!","#NULL!","#NULL!",{"$error":"#NULL!"},"#NULL!","","#NULL!","Yes","Yes","Job Plus",3,1,"Yes",5,{"$error":"#NULL!"},"Yes",0,0,"#NULL!",""]
[166,"SIT12","SIT","Male",null,1,"Diploma in Telecommunication","Diploma","No","Yes",3,5,3,"Yes","No, I should have learned something else","Unemployed","","Unemployed",0,0,0,0,0,"#NULL!","#NULL!","#NULL!","#NULL!","#NULL!","#NULL!","#NULL!","#NULL!","#NULL!","#NULL!",{"$error":"#NULL!"},"#NULL!","","#NULL!","Yes","No","",2,1,"No",9,"No Job Fitting His Requirements and Qualifications","Yes",0,0,"#NULL!",""]
[167,"SIT13","SIT","Male",null,1,"Diploma in Telecommunication","Diploma","Yes","Yes",4,4,4,"Yes","Yes it was just right","Unemployed","","Unemployed",0,0,0,0,0,"#NULL!","#NULL!","#NULL!","#NULL!","#NULL!","#NULL!","#NULL!","#NULL!","#NULL!","#NULL!",{"$error":"#NULL!"},"#NULL!","","#NULL!","Yes","#NULL!","",1,2,"No",9,"Waiting for Interview","Yes",0,0,"#NULL!",""]
[168,"SIT14","SIT","Male",null,1,"Advanced Certificate in Plumbing","Advanced Certificate","Yes","Yes",5,"#NULL!","#NULL!","Yes","Yes it was just right","Full time Employment","","Employed","Yes","Construction","Private","Luke's Plumbing","Maintenance in Plumbing",1,0,0,0,0,1,0,0,2,6,{"$error":"#NULL!"},"Just this 1","Less than 1 month","Always","#NULL!","#NULL!","","#NULL!","#NULL!","#NULL!","#NULL!",{"$error":"#NULL!"},"#NULL!",0,0,"#NULL!",""]
[169,"SIT15","SIT","Male",null,1,"Advanced Certificate in Plumbing","Advanced Certificate","Yes","Yes",5,5,5,"Yes","Yes it was just right","Full time Employment","","Employed","Unknown","Wholesale and retail trade; repair of motor vehicles and motorcycles","Private","Kim Koon",0,9,0,0,0,0,0,0,1,2,5,{"$error":"#NULL!"},"Just this 1","Less than 1 month","Never","#NULL!","#NULL!","","#NULL!","#NULL!","#NULL!","#NULL!",{"$error":"#NULL!"},"#NULL!",0,0,"#NULL!",""]
[170,"SIT16","SIT","Male",null,1,"Advanced Certificate in Plumbing","Advanced Certificate","Yes","Yes",5,3,5,"No","I do not know","Unknown","","Status Unknown",0,0,0,0,0,"#NULL!","#NULL!","#NULL!","#NULL!","#NULL!","#NULL!","#NULL!","#NULL!","#NULL!","#NULL!",{"$error":"#NULL!"},"#NULL!","","#NULL!","#NULL!","#NULL!","","#NULL!","#NULL!","#NULL!","#NULL!",{"$error":"#NULL!"},"#NULL!",0,0,"#NULL!",""]
[171,"SIT17","SIT","Male",null,1,"Certificate in Plumbing (Apprenticeship)","Certificate ","No","Yes",5,"#NULL!","#NULL!","Yes","Yes it was just right","Further Studies","","Further Studies",0,0,0,0,0,"#NULL!","#NULL!","#NULL!","#NULL!","#NULL!","#NULL!","#NULL!","#NULL!","#NULL!","#NULL!",{"$error":"#NULL!"},"#NULL!","","#NULL!","#NULL!","#NULL!","","#NULL!","#NULL!","#NULL!","#NULL!",{"$error":"#NULL!"},"#NULL!",0,0,"#NULL!",""]
[172,"SIT18","SIT","Male",null,1,"Certificate in Plumbing (Apprenticeship)","Certificate Apprenticeship","No","Yes",4,4,4,"#NULL!","Yes it was just right","Unemployed","","Status Unknown",0,0,0,0,0,"#NULL!","#NULL!","#NULL!","#NULL!","#NULL!","#NULL!","#NULL!","#NULL!","#NULL!","#NULL!",{"$error":"#NULL!"},"#NULL!","","#NULL!","#NULL!","#NULL!","","#NULL!","#NULL!","#NULL!","#NULL!",{"$error":"#NULL!"},"#NULL!",0,0,"#NULL!",""]
[173,"SIT19","SIT","Male",null,1,"Advanced Certificate in Plumbing","Advanced Certificate","Yes","Yes",5,5,5,"Yes","Yes it was just right","Unemployed","","Unemployed",0,0,0,0,0,"#NULL!","#NULL!","#NULL!","#NULL!","#NULL!","#NULL!","#NULL!","#NULL!","#NULL!","#NULL!",{"$error":"#NULL!"},"#NULL!","","#NULL!","Yes","No","",3,3,"No","#NULL!",{"$error":"#NULL!"},"Yes",0,0,"#NULL!",""]
[174,"SIT20","SIT","Female",1,null,"Advanced Certificate in Carpentry and Joinery","Advanced Certificate","No","No",4,4,3,"Yes","Yes it was just right","Further Studies","","Further Studies",0,0,0,0,0,"#NULL!","#NULL!","#NULL!","#NULL!","#NULL!","#NULL!","#NULL!","#NULL!","#NULL!","#NULL!",{"$error":"#NULL!"},"#NULL!","","#NULL!","#NULL!","#NULL!","","#NULL!","#NULL!","#NULL!","#NULL!",{"$error":"#NULL!"},"#NULL!",0,0,"#NULL!",""]
[175,"SIT21","SIT","Male",null,1,"Advanced Certificate in Carpentry and Joinery","Advanced Certificate","No","Not Stated",4,4,3,"Yes","Yes it was just right","Full time Employment","","Employed","Yes","Accommodation and food service activities","Private","Fishermens Cove","Carpenter",2,0,0,0,0,0,0,0,1,5,{"$error":"#NULL!"},"Just this 1","More than 1 month","Often","#NULL!","#NULL!","","#NULL!","#NULL!","#NULL!","#NULL!",{"$error":"#NULL!"},"#NULL!",0,0,"#NULL!",""]
[176,"SIT22","SIT","Male",null,1,"Advanced Certificate in Carpentry and Joinery","Advanced Certificate","No","No",4,3,4,"Yes","No, I should have learned something else","Further Studies","","Further Studies",0,0,0,0,0,"#NULL!","#NULL!","#NULL!","#NULL!","#NULL!","#NULL!","#NULL!","#NULL!","#NULL!","#NULL!",{"$error":"#NULL!"},"#NULL!","","#NULL!","#NULL!","#NULL!","","#NULL!","#NULL!","#NULL!","#NULL!",{"$error":"#NULL!"},"#NULL!","Bar and Restaurant","Seychelles Tourism Academy (STA)",1,""]
[177,"SIT23","SIT","Male",null,1,"Advanced Certificate in Carpentry and Joinery","Advanced Certificate","No","Yes",5,4,4,"Yes","Yes it was just right","Part time Employment","","Employed","Unknown","Manufacturing","Private","Wood Working Workshop",0,0,1,0,0,0,0,0,0,1,4,{"$error":"#NULL!"},"Just this 1","Less than 1 month","Always","#NULL!","#NULL!","","#NULL!","#NULL!","#NULL!","#NULL!",{"$error":"#NULL!"},"#NULL!",0,0,"#NULL!",""]
[178,"SIT24","SIT","Male",null,1,"Advanced Certificate in Carpentry and Joinery","Advanced Certificate","No","Yes",5,4,4,"Yes","Yes it was just right","Part time Employment","","Employed","Yes","Manufacturing","Private","Wood Working Workshop","Carpenter",0,1,0,0,0,0,0,0,1,4,{"$error":"#NULL!"},"Just this 1","Less than 1 month","Always","#NULL!","#NULL!","","#NULL!","#NULL!","#NULL!","#NULL!",{"$error":"#NULL!"},"#NULL!",0,0,"#NULL!",""]
[179,"SIT25","SIT","Male",null,1,"Certificate in Carpentry & Joinery (Apprenticeship)","Certificate ","Yes","Yes",5,5,5,"No","Yes it was just right","Full time Employment","","Employed","Yes","Accommodation and food service activities","Private","Fishermens Cove","Carpenter",1,0,1,0,0,0,0,0,2,1,{"$error":"#NULL!"},"Just this 1","More than 1 month","Always","#NULL!","#NULL!","","#NULL!","#NULL!","#NULL!","#NULL!",{"$error":"#NULL!"},"#NULL!",0,0,"#NULL!",""]
[180,"SIT26","SIT","Male",null,1,"Certificate in Carpentry & Joinery (Apprenticeship)","Certificate Apprenticeship","Yes","Yes",4,"#NULL!",1,"No","Yes it was just right","Unknown","","Status Unknown",0,0,0,0,0,"#NULL!","#NULL!","#NULL!","#NULL!","#NULL!","#NULL!","#NULL!","#NULL!","#NULL!","#NULL!",{"$error":"#NULL!"},"#NULL!","","#NULL!","#NULL!","#NULL!","","#NULL!","#NULL!","#NULL!","#NULL!",{"$error":"#NULL!"},"#NULL!",0,0,"#NULL!",""]
[181,"SIT27","SIT","Male",null,1,"Certificate in Carpentry & Joinery (Apprenticeship)","Certificate Apprenticeship","Yes","Not Stated",5,5,2,"Yes","Yes it was just right","Unknown","","Status Unknown",0,0,0,0,0,"#NULL!","#NULL!","#NULL!","#NULL!","#NULL!","#NULL!","#NULL!","#NULL!","#NULL!","#NULL!",{"$error":"#NULL!"},"#NULL!","","#NULL!","#NULL!","#NULL!","","#NULL!","#NULL!","#NULL!","#NULL!",{"$error":"#NULL!"},"#NULL!",0,0,"#NULL!",""]
[182,"SIT28","SIT","Male",null,1,"Certificate in Carpentry & Joinery (Apprenticeship)","Certificate Apprenticeship","Yes","Not Stated",5,5,"#NULL!","Yes","Yes it was just right","Unknown","","Status Unknown",0,0,0,0,0,"#NULL!","#NULL!","#NULL!","#NULL!","#NULL!","#NULL!","#NULL!","#NULL!","#NULL!","#NULL!",{"$error":"#NULL!"},"#NULL!","","#NULL!","#NULL!","#NULL!","","#NULL!","#NULL!","#NULL!","#NULL!",{"$error":"#NULL!"},"#NULL!",0,0,"#NULL!",""]
[183,"SIT29","SIT","Male",null,1,"Certificate in Carpentry & Joinery (Apprenticeship)","Certificate Apprenticeship","Yes","Not Stated","#NULL!",5,"#NULL!","Yes","#NULL!","Unknown","","Status Unknown",0,0,0,0,0,"#NULL!","#NULL!","#NULL!","#NULL!","#NULL!","#NULL!","#NULL!","#NULL!","#NULL!","#NULL!",{"$error":"#NULL!"},"#NULL!","","#NULL!","#NULL!","#NULL!","","#NULL!","#NULL!","#NULL!","#NULL!",{"$error":"#NULL!"},"#NULL!",0,0,"#NULL!",""]
[184,"SIT30","SIT","Male",null,1,"Certificate in Carpentry & Joinery (Apprenticeship)","Certificate Apprenticeship","Yes","Yes","#NULL!","#NULL!","#NULL!","#NULL!","#NULL!","Unknown","","Status Unknown",0,0,0,0,0,"#NULL!","#NULL!","#NULL!","#NULL!","#NULL!","#NULL!","#NULL!","#NULL!","#NULL!","#NULL!",{"$error":"#NULL!"},"#NULL!","","#NULL!","#NULL!","#NULL!","","#NULL!","#NULL!","#NULL!","#NULL!",{"$error":"#NULL!"},"#NULL!",0,0,"#NULL!",""]
[185,"SIT31","SIT","Male",null,1,"Advanced Certificate in Carpentry and Joinery","Advanced Certificate","No","Yes",5,4,4,"Yes","Yes it was just right","Part time Employment","","Employed","Yes","Manufacturing","Private","Easy Joinery","Carpenter",0,1,0,0,0,0,0,0,1,1,{"$error":"#NULL!"},"Just this 1","Less than 1 month","Always","#NULL!","#NULL!","","#NULL!","#NULL!","#NULL!","#NULL!",{"$error":"#NULL!"},"#NULL!",0,0,"#NULL!",""]
[186,"SIT32","SIT","Male",null,1,"Certificate in Carpentry & Joinery (Apprenticeship)","Certificate Apprenticeship","Not Stated","Not Stated","#NULL!","#NULL!","#NULL!","#NULL!","#NULL!","Unknown","","Status Unknown",0,0,0,0,0,"#NULL!","#NULL!","#NULL!","#NULL!","#NULL!","#NULL!","#NULL!","#NULL!","#NULL!","#NULL!",{"$error":"#NULL!"},"#NULL!","","#NULL!","#NULL!","#NULL!","","#NULL!","#NULL!","#NULL!","#NULL!",{"$error":"#NULL!"},"#NULL!",0,0,"#NULL!",""]
[187,"SIT33","SIT","Male",null,1,"Certificate in Motor Vehicle Mechanics (Apprenticeship)","Certificate Apprenticeship","Yes","Yes",5,5,5,"Yes","Yes it was just right","Full time Employment","","Employed","Unknown","Unknown","Not Stated","Not Stated",0,1,1,0,0,0,0,0,0,2,"#NULL!",{"$error":"#NULL!"},"between 2 to 5","Less than 1 month","Often","#NULL!","#NULL!","","#NULL!","#NULL!","#NULL!","#NULL!",{"$error":"#NULL!"},"#NULL!",0,0,"#NULL!",""]
[188,"SIT34","SIT","Male",null,1,"Certificate in Carpentry & Joinery (Apprenticeship)","Certificate Apprenticeship","Yes","Not Stated",5,5,"#NULL!","Yes","Yes it was just right","Unknown","","Status Unknown",0,"Real estate activities",0,"Lazare Property",0,"#NULL!","#NULL!","#NULL!","#NULL!","#NULL!","#NULL!","#NULL!","#NULL!","#NULL!","#NULL!",{"$error":"#NULL!"},"#NULL!","","#NULL!","#NULL!","#NULL!","","#NULL!","#NULL!","#NULL!","#NULL!",{"$error":"#NULL!"},"#NULL!",0,0,"#NULL!",""]
[189,"SIT35","SIT","Male",null,1,"Certificate in Motor Vehicle Mechanics (Apprenticeship)","Certificate Apprenticeship","Yes","Yes",5,5,5,"Yes","Yes it was just right","Full time Employment","","Employed","Unknown","Unknown","Not Stated","Not Stated",0,1,1,0,0,0,0,0,0,"#NULL!",6,{"$error":"#NULL!"},"between 2 to 5","Less than 1 month","Often","#NULL!","#NULL!","","#NULL!","#NULL!","#NULL!","#NULL!",{"$error":"#NULL!"},"#NULL!",0,0,"#NULL!",""]
[190,"SIT36","SIT","Male",null,1,"Advanced Certificate in Electrical Installation","Advanced Certificate","Yes","Yes",4,4,4,"Yes","Yes it was just right","Other","","Status Unknown",0,0,0,0,0,"#NULL!","#NULL!","#NULL!","#NULL!","#NULL!","#NULL!","#NULL!","#NULL!","#NULL!","#NULL!",{"$error":"#NULL!"},"#NULL!","","#NULL!","#NULL!","#NULL!","","#NULL!","#NULL!","#NULL!","#NULL!",{"$error":"#NULL!"},"#NULL!",0,0,"#NULL!",""]
[191,"SIT37","SIT","Male",null,1,"Advanced Certificate in Electrical Installation","Advanced Certificate","No","Yes",5,5,5,"Yes","Yes it was just right","Full time Employment","","Employed","Yes","Information and communication","Public Service","Seychelles Broadcasting Corporation","Electrician Engineer",1,1,0,0,0,0,0,0,3,6,{"$error":"#NULL!"},"between 2 to 5","Less than 1 month","Always","#NULL!","#NULL!","","#NULL!","#NULL!","#NULL!","#NULL!",{"$error":"#NULL!"},"#NULL!",0,0,"#NULL!",""]
[192,"SIT38","SIT","Male",null,1,"Advanced Certificate in Electrical Installation","Advanced Certificate","No","Yes",4,4,4,"Yes","#NULL!","Short term contract","","Employed","Yes","Information and communication","Private","Cable and Wireless","Servicer Fitter",2,0,0,0,1,0,0,0,2,4,{"$error":"#NULL!"},"between 2 to 5","Less than 1 month","Often","#NULL!","#NULL!","","#NULL!","#NULL!","#NULL!","#NULL!",{"$error":"#NULL!"},"#NULL!",0,0,"#NULL!",""]
[193,"SIT39","SIT","Male",null,1,"Advanced Certificate in Electrical Installation","Advanced Certificate","No","Yes",4,"#NULL!",3,"Yes","Yes it was just right","Full time Employment","","Employed","Yes","Construction","Private","JPL Tec and Electrical Service",0,1,0,0,0,0,1,0,0,2,1,{"$error":"#NULL!"},"Just this 1","Less than 1 month","Often","#NULL!","#NULL!","","#NULL!","#NULL!","#NULL!","#NULL!",{"$error":"#NULL!"},"#NULL!",0,0,"#NULL!",""]
[194,"SIT40","SIT","Male",null,1,"Advanced Certificate in Electrical Installation","Advanced Certificate","No","Yes",5,5,5,"Yes","Yes it was just right","Full time Employment","","Employed","Yes","Construction","Private","Contractor","Electrician",1,1,0,0,0,0,0,0,1,1,{"$error":"#NULL!"},"Just this 1","Less than 1 month","Always","#NULL!","#NULL!","","#NULL!","#NULL!","#NULL!","#NULL!",{"$error":"#NULL!"},"#NULL!",0,0,"#NULL!",""]
[195,"SIT41","SIT","Male",null,1,"Advanced Certificate in Electrical Installation","Advanced Certificate","No","No",4,4,4,"Yes","I do not know","Short term contract","","Employed","Unknown","Unknown","Not Stated","Not Stated","Trainee",9,0,0,0,1,0,0,0,2,6,{"$error":"#NULL!"},"between 2 to 5","More than 1 month","Often","#NULL!","#NULL!","","#NULL!","#NULL!","#NULL!","#NULL!",{"$error":"#NULL!"},"#NULL!",0,0,"#NULL!",""]
[196,"SIT42","SIT","Male",null,1,"Advanced Certificate in Electrical Installation","Advanced Certificate","No","Yes",4,4,4,"Yes","Yes it was just right","Unemployed","","Unemployed",0,0,0,0,0,"#NULL!","#NULL!","#NULL!","#NULL!","#NULL!","#NULL!","#NULL!","#NULL!","#NULL!","#NULL!",{"$error":"#NULL!"},"#NULL!","","#NULL!","Yes","No","",3,2,"Yes",3,{"$error":"#NULL!"},"Yes",0,0,"#NULL!",""]
[197,"SIT43","SIT","Male",null,1,"Advanced Certificate in Electrical Installation","Advanced Certificate","No","Yes",4,4,3,"Yes","I do not know","Further Studies","","Further Studies",0,0,0,0,0,"#NULL!","#NULL!","#NULL!","#NULL!","#NULL!","#NULL!","#NULL!","#NULL!","#NULL!","#NULL!",{"$error":"#NULL!"},"#NULL!","","#NULL!","#NULL!","#NULL!","","#NULL!","#NULL!","#NULL!","#NULL!",{"$error":"#NULL!"},"#NULL!","Nursing","National Institute of Health and Social Studies (NIHSS)",9,"Asked a Teacher working at NHISS"]
[198,"SIT44","SIT","Female",1,null,"Advanced Certificate in Refrigeration and Air Conditioning","Advanced Certificate","No","Yes",5,5,5,"Yes","Yes it was just right","Full time Employment","","Employed","No","Electricity, gas, steam and air conditioning supply","Parastatal","Public Utilitites Corporation","Electrical Shift Operator","#NULL!","#NULL!","#NULL!","#NULL!","#NULL!","#NULL!","#NULL!","#NULL!","#NULL!","#NULL!",{"$error":"#NULL!"},"#NULL!","","#NULL!","#NULL!","#NULL!","","#NULL!","#NULL!","#NULL!","#NULL!",{"$error":"#NULL!"},"#NULL!",0,0,"#NULL!",""]
[199,"SIT45","SIT","Male",null,1,"Advanced Certificate in Refrigeration and Air Conditioning","Advanced Certificate","Not Stated","Yes",4,1,4,"Yes","Yes it was just right","Unemployed","","Unemployed",0,0,0,0,0,"#NULL!","#NULL!","#NULL!","#NULL!","#NULL!","#NULL!","#NULL!","#NULL!","#NULL!","#NULL!",{"$error":"#NULL!"},"#NULL!","","#NULL!","Yes","No","",2,1,"Yes",6,{"$error":"#NULL!"},"Yes",0,0,"#NULL!",""]
[200,"SIT46","SIT","Male",null,1,"Advanced Certificate in Refrigeration and Air Conditioning","Advanced Certificate","No","Yes",5,"#NULL!","#NULL!","Yes","Yes it was just right","Part time Employment","","Employed","Unknown","Unknown","Not Stated","Not Stated",0,"#NULL!","#NULL!","#NULL!","#NULL!","#NULL!","#NULL!","#NULL!","#NULL!","#NULL!","#NULL!",{"$error":"#NULL!"},"#NULL!","","#NULL!","#NULL!","#NULL!","","#NULL!","#NULL!","#NULL!","#NULL!",{"$error":"#NULL!"},"#NULL!",0,0,"#NULL!",""]
[201,"SIT47","SIT","Male",null,1,"Advanced Certificate in Refrigeration and Air Conditioning","Advanced Certificate","No","Yes",4,4,"#NULL!","Yes","Yes it was just right","Full time Employment","","Employed","Yes","Transportation and storage","Parastatal","Seychelles Public Transport Corporation","AC Technician",1,0,0,0,0,1,0,0,2,4,{"$error":"#NULL!"},"more than 5","More than 1 month","Always","#NULL!","#NULL!","","#NULL!","#NULL!","#NULL!","#NULL!",{"$error":"#NULL!"},"#NULL!",0,0,"#NULL!",""]
[202,"SIT48","SIT","Male",null,1,"Advanced Certificate in Refrigeration and Air Conditioning","Advanced Certificate","Yes","Yes",4,"#NULL!","#NULL!","Yes","Yes it was just right","Full time Employment","","Employed","Yes","Education","Public Service","Seychelles Institute of Technology","Ref and AC Technician",1,1,0,0,0,0,0,0,2,1,{"$error":"#NULL!"},"between 2 to 5","More than 1 month","Always","#NULL!","#NULL!","","#NULL!","#NULL!","#NULL!","#NULL!",{"$error":"#NULL!"},"#NULL!",0,0,"#NULL!",""]
[203,"SIT49","SIT","Male",null,1,"Advanced Certificate in Refrigeration and Air Conditioning","Advanced Certificate","No","Yes",4,4,4,"Yes","Yes it was just right","Full time Employment","","Employed","No","Unknown","Not Stated","Not Stated","Clerk",0,0,0,0,0,0,0,1,3,4,{"$error":"#NULL!"},"between 2 to 5","Less than 1 month","Never","#NULL!","#NULL!","","#NULL!","#NULL!","#NULL!","#NULL!",{"$error":"#NULL!"},"#NULL!",0,0,"#NULL!",""]
[204,"SIT50","SIT","Male",null,1,"Advanced Certificate in Refrigeration and Air Conditioning","Advanced Certificate","Yes","Yes",5,5,5,"Yes","Yes it was just right","Unemployed","","Potential labour force entrant ",0,0,0,0,0,"#NULL!","#NULL!","#NULL!","#NULL!","#NULL!","#NULL!","#NULL!","#NULL!","#NULL!","#NULL!",{"$error":"#NULL!"},"#NULL!","","#NULL!","No","No","",1,1,"Yes",3,{"$error":"#NULL!"},"Yes",0,0,"#NULL!",""]
[205,"SIT51","SIT","Male",null,1,"Advanced Certificate in Motor Vehicle Mechanic","Advanced Certificate","No","Yes",5,5,5,"Yes","Yes it was just right","Unemployed","","Unemployed",0,0,0,0,0,"#NULL!","#NULL!","#NULL!","#NULL!","#NULL!","#NULL!","#NULL!","#NULL!","#NULL!","#NULL!",{"$error":"#NULL!"},"#NULL!","","#NULL!","Yes","No","",3,2,"Yes",5,{"$error":"#NULL!"},"Yes",0,0,"#NULL!",""]
[206,"SIT52","SIT","Male",null,1,"Advanced Certificate in Motor Vehicle Mechanic","Advanced Certificate","No","Yes",4,1,1,"Yes","Yes it was just right","Full time Employment","","Employed","Unknown","Unknown","Not Stated","Not Stated",0,"#NULL!","#NULL!","#NULL!","#NULL!","#NULL!","#NULL!","#NULL!","#NULL!","#NULL!","#NULL!",{"$error":"#NULL!"},"#NULL!","","#NULL!","#NULL!","#NULL!","","#NULL!","#NULL!","#NULL!","#NULL!",{"$error":"#NULL!"},"#NULL!",0,0,"#NULL!",""]
[207,"SIT53","SIT","Male",null,1,"Advanced Certificate in Motor Vehicle Mechanic","Advanced Certificate","Yes","Yes",4,4,4,"Yes","Yes it was just right","Unemployed","","Unemployed",0,0,0,0,0,"#NULL!","#NULL!","#NULL!","#NULL!","#NULL!","#NULL!","#NULL!","#NULL!","#NULL!","#NULL!",{"$error":"#NULL!"},"#NULL!","","#NULL!","Yes","No","",3,2,"No",3,{"$error":"#NULL!"},"Yes",0,0,"#NULL!",""]
[208,"SIT54","SIT","Male",null,1,"Advanced Certificate in Motor Vehicle Mechanic","Advanced Certificate","Not Stated","Yes",5,5,5,"Yes","Yes it was just right","Full time Employment","","Employed","Yes","Wholesale and retail trade; repair of motor vehicles and motorcycles","Private","Guyto Mondon","Mechanic","#NULL!","#NULL!","#NULL!","#NULL!","#NULL!","#NULL!","#NULL!","#NULL!","#NULL!","#NULL!",{"$error":"#NULL!"},"#NULL!","","#NULL!","#NULL!","#NULL!","","#NULL!","#NULL!","#NULL!","#NULL!",{"$error":"#NULL!"},"#NULL!",0,0,"#NULL!",""]
[209,"SIT55","SIT","Male",null,1,"Advanced Certificate in Motor Vehicle Mechanic","Advanced Certificate","No","Yes",4,4,"#NULL!","Yes","Yes it was just right","Further Studies","","Further Studies",0,0,0,0,0,"#NULL!","#NULL!","#NULL!","#NULL!","#NULL!","#NULL!","#NULL!","#NULL!","#NULL!","#NULL!",{"$error":"#NULL!"},"#NULL!","","#NULL!","#NULL!","#NULL!","","#NULL!","#NULL!","#NULL!","#NULL!",{"$error":"#NULL!"},"#NULL!","Diploma Motor Vehicle Engineering","Seychelles Institute of Technology (SIT)",4,""]
[210,"SIT56","SIT","Male",null,1,"Advanced Certificate in Motor Vehicle Mechanic","Advanced Certificate","Yes","Yes",4,1,1,"Yes","Yes it was just right","Full time Employment","","Employed","Yes","Administrative and support services activities","Private","Mason's Travel","Mechanic","#NULL!",1,0,0,0,0,0,0,2,1,{"$error":"#NULL!"},"Just this 1","Less than 1 month","Always","#NULL!","#NULL!","","#NULL!","#NULL!","#NULL!","#NULL!",{"$error":"#NULL!"},"#NULL!",0,0,"#NULL!",""]
[211,"SIT57","SIT","Male",null,1,"Advanced Certificate in Motor Vehicle Mechanic","Advanced Certificate","No","Yes",4,4,4,"Yes","Yes it was just right","Unemployed","","Unemployed",0,0,0,0,0,"#NULL!","#NULL!","#NULL!","#NULL!","#NULL!","#NULL!","#NULL!","#NULL!","#NULL!","#NULL!",{"$error":"#NULL!"},"#NULL!","","#NULL!","Yes","No","",3,3,"No","#NULL!",{"$error":"#NULL!"},"Yes",0,0,"#NULL!",""]
[212,"SIT58","SIT","Male",null,1,"Advanced Certificate in Motor Vehicle Mechanic","Advanced Certificate","No","Yes",4,4,4,"Yes","Yes it was just right","Part time Employment","","Employed","Unknown","Unknown","Not Stated","Not Stated",0,"#NULL!","#NULL!","#NULL!","#NULL!","#NULL!","#NULL!","#NULL!","#NULL!","#NULL!","#NULL!",{"$error":"#NULL!"},"#NULL!","","#NULL!","#NULL!","#NULL!","","#NULL!","#NULL!","#NULL!","#NULL!",{"$error":"#NULL!"},"#NULL!",0,0,"#NULL!",""]
[213,"SIT59","SIT","Male",null,1,"Advanced Certificate in Motor Vehicle Mechanic","Advanced Certificate","No","Yes",4,4,5,"Yes","Yes it was just right","Part time Employment","","Employed","Unknown","Unknown","Not Stated","Not Stated",0,"#NULL!","#NULL!","#NULL!","#NULL!","#NULL!","#NULL!","#NULL!","#NULL!","#NULL!","#NULL!",{"$error":"#NULL!"},"#NULL!","","#NULL!","#NULL!","#NULL!","","#NULL!","#NULL!","#NULL!","#NULL!",{"$error":"#NULL!"},"#NULL!",0,0,"#NULL!",""]
[214,"SIT60","SIT","Male",null,1,"Advanced Certificate in Motor Vehicle Mechanic","Advanced Certificate","No","Yes",4,5,5,"Yes","Yes it was just right","Full time Employment","","Employed","Unknown","Unknown","Not Stated","Not Stated",0,"#NULL!","#NULL!","#NULL!","#NULL!","#NULL!","#NULL!","#NULL!","#NULL!","#NULL!","#NULL!",{"$error":"#NULL!"},"#NULL!","","#NULL!","#NULL!","#NULL!","","#NULL!","#NULL!","#NULL!","#NULL!",{"$error":"#NULL!"},"#NULL!",0,0,"#NULL!",""]
[215,"SIT61","SIT","Male",null,1,"Advanced Certificate in Motor Vehicle Mechanic","Advanced Certificate","No","Yes",4,4,4,"Yes","Yes it was just right","Full time Employment","","Employed","No","Manufacturing","Private","Unique Refrigeration","AC Technician",1,1,0,0,0,0,0,0,3,5,{"$error":"#NULL!"},"more than 5","More than 1 month","Seldom","#NULL!","#NULL!","","#NULL!","#NULL!","#NULL!","#NULL!",{"$error":"#NULL!"},"#NULL!",0,0,"#NULL!",""]
[216,"SIT62","SIT","Male",null,1,"Advanced Certificate in Motor Vehicle Mechanic","Advanced Certificate","No","Yes",5,5,5,"Yes","Yes it was just right","Full time Employment","","Employed","Yes","Wholesale and retail trade; repair of motor vehicles and motorcycles","Private","La Louise","Mechanic",1,0,1,0,0,0,0,0,3,"#NULL!",{"$error":"#NULL!"},"#NULL!","","Never","#NULL!","#NULL!","","#NULL!","#NULL!","#NULL!","#NULL!",{"$error":"#NULL!"},"#NULL!",0,0,"#NULL!",""]
[217,"SIT63","SIT","Male",null,1,"Certificate in Motor Vehicle Mechanics (Apprenticeship)","Certificate Apprenticeship","No","Yes",5,5,5,"Yes","Yes it was just right","Unemployed","","Unemployed",0,0,0,0,0,"#NULL!","#NULL!","#NULL!","#NULL!","#NULL!","#NULL!","#NULL!","#NULL!","#NULL!","#NULL!",{"$error":"#NULL!"},"#NULL!","","#NULL!","Yes","No","",3,2,1,3,{"$error":"#NULL!"},"Yes",0,0,"#NULL!",""]
[218,"SIT64","SIT","Male",null,1,"Certificate in Motor Vehicle Mechanics (Apprenticeship)","Certificate Apprenticeship","Yes","Yes",4,4,5,"Yes","Yes it was just right","Full time Employment","","Employed","Yes","Wholesale and retail trade; repair of motor vehicles and motorcycles","Private","Italcar","Body Repair",1,1,0,0,0,0,0,0,2,5,{"$error":"#NULL!"},"between 2 to 5","Less than 1 month","Always","#NULL!","#NULL!","","#NULL!","#NULL!","#NULL!","#NULL!",{"$error":"#NULL!"},"#NULL!",0,0,"#NULL!",""]
[219,"SIT65","SIT","Male",null,1,"Certificate in Motor Vehicle Mechanics (Apprenticeship)","Certificate Apprenticeship","Yes","Yes",5,4,5,"Yes","Yes it was just right","Full time Employment","","Employed","Yes","Wholesale and retail trade; repair of motor vehicles and motorcycles","Private","RJ Garage","Body  ",1,1,0,0,0,0,0,0,2,"#NULL!",{"$error":"#NULL!"},"Just this 1","","#NULL!","#NULL!","#NULL!","","#NULL!","#NULL!","#NULL!","#NULL!",{"$error":"#NULL!"},"#NULL!",0,0,"#NULL!",""]
[220,"SIT66","SIT","Male",null,1,"Certificate in Motor Vehicle Mechanics (Apprenticeship)","Certificate Apprenticeship","Yes","Yes",5,5,4,"#NULL!","Yes it was just right","Full time Employment","","Employed","Yes","Wholesale and retail trade; repair of motor vehicles and motorcycles","Private","374 Garage","Mechanic",1,0,1,0,0,0,0,0,2,1,{"$error":"#NULL!"},"Just this 1","Less than 1 month","Always","#NULL!","#NULL!","","#NULL!","#NULL!","#NULL!","#NULL!",{"$error":"#NULL!"},"#NULL!",0,0,"#NULL!",""]
[221,"SIT67","SIT","Male",null,1,"Diploma in Motor Vehicle Engineering","Diploma","No","Yes",5,5,4,"Yes","Yes it was just right","Unemployed","","Unemployed",0,0,0,0,0,"#NULL!","#NULL!","#NULL!","#NULL!","#NULL!","#NULL!","#NULL!","#NULL!","#NULL!","#NULL!",{"$error":"#NULL!"},"#NULL!","","#NULL!","Yes","No","",1,1,"No",5,{"$error":"#NULL!"},"Yes",0,0,"#NULL!",""]
[222,"SIT68","SIT","Male",null,1,"Advanced Certificate in Masonry","Advanced Certificate","No","Yes",3,3,2,"Yes","I do not know","Unemployed","","Unemployed",0,0,0,0,0,"#NULL!","#NULL!","#NULL!","#NULL!","#NULL!","#NULL!","#NULL!","#NULL!","#NULL!","#NULL!",{"$error":"#NULL!"},"#NULL!","","#NULL!","Yes","No","",3,1,"No",6,{"$error":"#NULL!"},"Yes",0,0,"#NULL!",""]
[223,"SIT69","SIT","Male",null,1,"Advanced Certificate in Masonry","Advanced Certificate","No","No",1,1,1,"Yes","I do not know","Full time Employment","","Employed","No","Wholesale and retail trade; repair of motor vehicles and motorcycles","Parastatal","Seychelles Petroleum Company","Refueller Operator",2,0,1,0,0,0,0,1,3,4,{"$error":"#NULL!"},"Just this 1","Less than 1 month","Often","#NULL!","#NULL!","","#NULL!","#NULL!","#NULL!","#NULL!",{"$error":"#NULL!"},"#NULL!",0,0,"#NULL!",""]
[224,"SIT70","SIT","Male",null,1,"Advanced Certificate in Masonry","Advanced Certificate","No","Yes",4,2,2,"Yes","I do not know","Short term contract","","Employed","Yes","Construction","Private","Elf Builders","Mason",2,1,0,0,0,0,0,0,2,1,{"$error":"#NULL!"},"Just this 1","Less than 1 month","Often","#NULL!","#NULL!","","#NULL!","#NULL!","#NULL!","#NULL!",{"$error":"#NULL!"},"#NULL!",0,0,"#NULL!",""]
[225,"SIT71","SIT","Male",null,1,"Certificate in Masonry (Apprenticeship)","Certificate Apprenticeship","Yes","Yes",5,4,"#NULL!","Yes","Yes it was just right","Full time Employment","","Employed","Unknown","Unknown","Not Stated","Not Stated",0,1,0,0,0,0,1,0,0,2,1,{"$error":"#NULL!"},"Just this 1","Less than 1 month","Always","#NULL!","#NULL!","","#NULL!","#NULL!","#NULL!","#NULL!",{"$error":"#NULL!"},"#NULL!",0,0,"#NULL!",""]
[226,"SIT72","SIT","Male",null,1,"Certificate in Masonry (Apprenticeship)","Certificate Apprenticeship","Yes","Yes",5,5,5,"Yes","Yes it was just right","Full time Employment","","Employed","Yes","Construction","Private","Vadango Builder","Training Masonry",1,0,0,0,0,1,0,0,1,1,{"$error":"#NULL!"},"#NULL!","Less than 1 month","Always","#NULL!","#NULL!","","#NULL!","#NULL!","#NULL!","#NULL!",{"$error":"#NULL!"},"#NULL!",0,0,"#NULL!",""]
[227,"SIT73","SIT","Male",null,1,"Certificate in Masonry (Apprenticeship)","Certificate Apprenticeship","No","Yes",4,4,4,"Yes","Yes it was just right","Part time Employment","","Employed","Yes","Construction","Private","Vadange Builder","Training Masonry",1,0,0,0,0,0,0,1,1,5,{"$error":"#NULL!"},"between 2 to 5","More than 1 month","Often","#NULL!","#NULL!","","#NULL!","#NULL!","#NULL!","#NULL!",{"$error":"#NULL!"},"#NULL!",0,0,"#NULL!",""]
[228,"SIT74","SIT","Male",null,1,"Certificate in Masonry (Apprenticeship)","Certificate Apprenticeship","No","Not Stated",4,4,4,"Yes","Yes it was just right","Part time Employment","","Employed","Yes","Construction","Private","Easy Built","Training Masonry",1,0,1,0,0,0,0,0,1,1,{"$error":"#NULL!"},"Just this 1","More than 1 month","Always","#NULL!","#NULL!","","#NULL!","#NULL!","#NULL!","#NULL!",{"$error":"#NULL!"},"#NULL!",0,0,"#NULL!",""]
[229,"SIT75","SIT","Male",null,1,"Certificate in Masonry (Apprenticeship)","Certificate Apprenticeship","No","Not Stated",4,4,4,"Yes","Yes it was just right","Part time Employment","","Employed","Yes","Construction","Private","Kam Builders Pty Ltd","Training Masonry",1,0,0,0,0,0,0,1,2,1,{"$error":"#NULL!"},"Just this 1","Less than 1 month","Always","#NULL!","#NULL!","","#NULL!","#NULL!","#NULL!","#NULL!",{"$error":"#NULL!"},"#NULL!",0,0,"#NULL!",""]
[230,"SIT76","SIT","Male",null,1,"Certificate in Masonry (Apprenticeship)","Certificate Apprenticeship","Yes","Yes",5,4,5,"Yes","Yes it was just right","Other","My own business","Employed","Unknown","Unknown","Not Stated","Not Stated",0,1,"#NULL!","#NULL!","#NULL!","#NULL!","#NULL!","#NULL!","#NULL!","#NULL!",1,{"$error":"#NULL!"},"#NULL!","","#NULL!","#NULL!","#NULL!","","#NULL!","#NULL!","#NULL!","#NULL!",{"$error":"#NULL!"},"#NULL!",0,0,"#NULL!",""]
[231,"SIT77","SIT","Male",null,1,"Certificate in Masonry (Apprenticeship)","Certificate Apprenticeship","Yes","Yes",5,4,4,"Yes","Yes it was just right","Full time Employment","","Employed","Yes","Construction","Private","Andrew Henriette","Masonry",1,1,0,0,0,0,0,0,2,1,{"$error":"#NULL!"},"Just this 1","Less than 1 month","Always","#NULL!","#NULL!","","#NULL!","#NULL!","#NULL!","#NULL!",{"$error":"#NULL!"},"#NULL!",0,0,"#NULL!",""]
[232,"SIT78","SIT","Male",null,1,"Certificate in Masonry (Apprenticeship)","Certificate Apprenticeship","Yes","Yes",5,4,5,"Yes","Yes it was just right","Unknown","","Status Unknown",0,0,0,0,0,"#NULL!","#NULL!","#NULL!","#NULL!","#NULL!","#NULL!","#NULL!","#NULL!","#NULL!","#NULL!",{"$error":"#NULL!"},"#NULL!","","#NULL!","#NULL!","#NULL!","","#NULL!","#NULL!","#NULL!","#NULL!",{"$error":"#NULL!"},"#NULL!",0,0,"#NULL!",""]
[233,"SIT79","SIT","Female",1,null,"Certificate in Painting and Decorating","Certificate ","No","Yes",4,4,4,"Yes","Yes it was just right","Further Studies","","Further Studies",0,0,0,0,0,"#NULL!","#NULL!","#NULL!","#NULL!","#NULL!","#NULL!","#NULL!","#NULL!","#NULL!","#NULL!",{"$error":"#NULL!"},"#NULL!","","#NULL!","#NULL!","#NULL!","","#NULL!","#NULL!","#NULL!","#NULL!",{"$error":"#NULL!"},"#NULL!","Bar and Restaurant","Seychelles Tourism Academy (STA)",9,""]
[234,"SIT80","SIT","Female",1,null,"Certificate in Painting and Decorating","Certificate ","No","No",4,4,4,"Yes","Yes it was just right","Unemployed","","Unemployed",0,0,0,0,0,"#NULL!","#NULL!","#NULL!","#NULL!","#NULL!","#NULL!","#NULL!","#NULL!","#NULL!","#NULL!",{"$error":"#NULL!"},"#NULL!","","#NULL!","Yes","No","",2,1,"Yes",9,{"$error":"#NULL!"},"Yes",0,0,"#NULL!",""]
[235,"SIT81","SIT","Female",1,null,"Certificate in Painting and Decorating","Certificate ","No","Yes",4,4,4,"Yes","Yes it was just right","Further Studies","","Further Studies",0,0,0,0,0,"#NULL!","#NULL!","#NULL!","#NULL!","#NULL!","#NULL!","#NULL!","#NULL!","#NULL!","#NULL!",{"$error":"#NULL!"},"#NULL!","","#NULL!","#NULL!","#NULL!","","#NULL!","#NULL!","#NULL!","#NULL!",{"$error":"#NULL!"},"#NULL!","Advanced Certificate in Fashion","Seychelles Institute of Art and Design (SIAD)",9,""]
[236,"SIT82","SIT","Female",1,null,"Certificate in Painting and Decorating","Certificate ","No","Yes",4,4,4,"Yes","No, I should have learned something else","Unemployed","","Unemployed",0,0,0,0,0,"#NULL!","#NULL!","#NULL!","#NULL!","#NULL!","#NULL!","#NULL!","#NULL!","#NULL!","#NULL!",{"$error":"#NULL!"},"#NULL!","","#NULL!","Yes","Yes","First Job",3,2,"Yes",9,"Working Conditions are not Good","Yes",0,0,"#NULL!",""]
[237,"SIT83","SIT","Female",1,null,"Certificate in Painting and Decorating","Certificate ","No","Yes","#NULL!","#NULL!","#NULL!","#NULL!","#NULL!","Unemployed","","Unemployed",0,0,0,0,0,"#NULL!","#NULL!","#NULL!","#NULL!","#NULL!","#NULL!","#NULL!","#NULL!","#NULL!","#NULL!",{"$error":"#NULL!"},"#NULL!","","#NULL!","Yes","Yes","First Job",3,2,"No",9,"No Reply","Yes",0,0,"#NULL!",""]
[238,"SIT84","SIT","Female",1,null,"Certificate in Painting and Decorating","Certificate ","No","No",4,5,4,"Yes","No, I should have learned something else","Further Studies","","Further Studies",0,0,0,0,0,"#NULL!","#NULL!","#NULL!","#NULL!","#NULL!","#NULL!","#NULL!","#NULL!","#NULL!","#NULL!",{"$error":"#NULL!"},"#NULL!","","#NULL!","#NULL!","#NULL!","","#NULL!","#NULL!","#NULL!","#NULL!",{"$error":"#NULL!"},"#NULL!","Sewing and Textile","Seychelles Institute of Art and Design (SIAD)","#NULL!",""]
[239,"SIT85","SIT","Female",1,null,"Certificate in Painting and Decorating","Certificate ","No","Yes",4,3,3,"Yes","I do not know","Further Studies","","Further Studies",0,0,0,0,0,"#NULL!","#NULL!","#NULL!","#NULL!","#NULL!","#NULL!","#NULL!","#NULL!","#NULL!","#NULL!",{"$error":"#NULL!"},"#NULL!","","#NULL!","#NULL!","#NULL!","","#NULL!","#NULL!","#NULL!","#NULL!",{"$error":"#NULL!"},"#NULL!","Advanced Certificate in Agriculture","Seychelles Institute of Agriculture and Horticulture (SIAH)",9,"It Interested her"]
[240,"SIT86","SIT","Male",null,1,"Diploma in Construction Industry","Diploma","Yes","Yes",4,4,4,"Yes","Yes it was just right","Full time Employment","","Employed","Yes","Public Administration and defence; compulsory social security","Public Service","Ministry of Habitat, Infrastructure and Land Transport","Project Technician",1,0,0,0,0,1,0,0,3,7,{"$error":"#NULL!"},"between 2 to 5","Less than 1 month","Often","#NULL!","#NULL!","","#NULL!","#NULL!","#NULL!","#NULL!",{"$error":"#NULL!"},"#NULL!",0,0,"#NULL!",""]
[241,"SIT87","SIT","Male",null,1,"Diploma in Construction Industry","Diploma","No","No",3,3,2,"No","Yes it was just right","Full time Employment","","Employed","Yes","Public Administration and defence; compulsory social security","Public Service","Ministry of Habitat, Infrastructure and Land Transport","Project Technician",1,0,0,0,0,1,0,0,3,4,{"$error":"#NULL!"},"Just this 1","Less than 1 month","Always","#NULL!","#NULL!","","#NULL!","#NULL!","#NULL!","#NULL!",{"$error":"#NULL!"},"#NULL!",0,0,"#NULL!",""]
[242,"SIT88","SIT","Male",null,1,"Diploma in Construction Industry","Diploma","No","Yes",5,5,5,"Yes","Yes it was just right","Full time Employment","","Employed","Yes","Public Administration and defence; compulsory social security","Public Service","Ministry of Habitat, Infrastructure and Land Transport","Project Technician","#NULL!","#NULL!","#NULL!","#NULL!","#NULL!","#NULL!","#NULL!","#NULL!","#NULL!","#NULL!",{"$error":"#NULL!"},"#NULL!","","#NULL!","#NULL!","#NULL!","","#NULL!","#NULL!","#NULL!","#NULL!",{"$error":"#NULL!"},"#NULL!",0,0,"#NULL!",""]
[243,"SIT89","SIT","Male",null,1,"Diploma in Construction Industry","Diploma","Yes","No",3,3,2,"Yes","Yes it was just right","Full time Employment","","Employed","Yes","Public Administration and defence; compulsory social security","Public Service","Ministry of Habitat, Infrastructure and Land Transport","Project Technician","#NULL!","#NULL!","#NULL!","#NULL!","#NULL!","#NULL!","#NULL!","#NULL!","#NULL!","#NULL!",{"$error":"#NULL!"},"#NULL!","","#NULL!","#NULL!","#NULL!","","#NULL!","#NULL!","#NULL!","#NULL!",{"$error":"#NULL!"},"#NULL!",0,0,"#NULL!",""]
[244,"SIT90","SIT","Male",null,1,"Diploma in Construction Industry","Diploma","Yes","No",5,4,3,"Yes","Yes it was just right","Full time Employment","","Employed","Yes","Public Administration and defence; compulsory social security","Public Service","Ministry of Habitat, Infrastructure and Land Transport","Project Technician",1,0,1,0,0,0,0,0,"#NULL!",2,{"$error":"#NULL!"},"between 2 to 5","Less than 1 month","Always","#NULL!","#NULL!","","#NULL!","#NULL!","#NULL!","#NULL!",{"$error":"#NULL!"},"#NULL!",0,0,"#NULL!",""]
[245,"SIT91","SIT","Female",1,null,"Diploma in Construction Industry","Diploma","No","No",4,4,3,"Yes","Yes it was just right","Full time Employment","","Employed","Yes","Public Administration and defence; compulsory social security","Public Service","Ministry of Habitat, Infrastructure and Land Transport","Project Technician",1,0,0,1,0,0,0,0,"#NULL!",1,{"$error":"#NULL!"},"#NULL!","Less than 1 month","Often","#NULL!","#NULL!","","#NULL!","#NULL!","#NULL!","#NULL!",{"$error":"#NULL!"},"#NULL!",0,0,"#NULL!",""]
[246,"SIT92","SIT","Male",null,1,"Diploma in Construction Industry","Diploma","No","Yes",4,4,2,"Yes","Yes it was just right","Full time Employment","","Employed","Yes","Professional, scientific and technical activities","Private","Advanced Engineering Consultancy","Engineering Technician",1,1,0,0,0,0,0,0,"#NULL!",1,{"$error":"#NULL!"},"Just this 1","Less than 1 month","Always","#NULL!","#NULL!","","#NULL!","#NULL!","#NULL!","#NULL!",{"$error":"#NULL!"},"#NULL!",0,0,"#NULL!",""]
[247,"SIT93","SIT","Male",null,1,"Diploma in Construction Industry","Diploma","No","Yes",4,4,2,"Yes","Yes it was just right","Full time Employment","","Employed","Yes","Professional, scientific and technical activities","Private","Advanced Engineering Consultancy","Engineering Technician",1,1,0,0,0,0,0,0,"#NULL!",1,{"$error":"#NULL!"},"Just this 1","Less than 1 month","Always","#NULL!","#NULL!","","#NULL!","#NULL!","#NULL!","#NULL!",{"$error":"#NULL!"},"#NULL!",0,0,"#NULL!",""]
[248,"SIT94","SIT","Male",null,1,"Diploma in Engineering - Mechanical Manufacturing Engineering","Diploma","Yes","Not Stated",5,1,4,"Yes","Yes it was just right","Part time Employment","","Employed","Unknown","Unknown","Not Stated","Not Stated",0,"#NULL!","#NULL!","#NULL!","#NULL!","#NULL!","#NULL!","#NULL!","#NULL!","#NULL!","#NULL!",{"$error":"#NULL!"},"#NULL!","","#NULL!","#NULL!","#NULL!","","#NULL!","#NULL!","#NULL!","#NULL!",{"$error":"#NULL!"},"#NULL!",0,0,"#NULL!",""]
[249,"SIT95","SIT","Male",null,1,"Advanced Certificate in Mechanical Engineering","Advanced Certificate","Yes","Yes",4,5,3,"Yes","Yes it was just right","Part time Employment","","Employed","Yes","Manufacturing","Private","Sodepak","Project Officer",0,0,1,0,0,0,0,0,5,7,{"$error":"#NULL!"},"Just this 1","Less than 1 month","Often","#NULL!","#NULL!","","#NULL!","#NULL!","#NULL!","#NULL!",{"$error":"#NULL!"},"#NULL!",0,0,"#NULL!",""]
[250,"SIT96","SIT","Male",null,1,"Advanced Certificate in Mechanical Engineering","Advanced Certificate","Not Stated","No",3,4,3,"Yes","Yes it was just right","Further Studies","","Further Studies",0,0,0,0,0,"#NULL!","#NULL!","#NULL!","#NULL!","#NULL!","#NULL!","#NULL!","#NULL!","#NULL!","#NULL!",{"$error":"#NULL!"},"#NULL!","","#NULL!","#NULL!","#NULL!","","#NULL!","#NULL!","#NULL!","#NULL!",{"$error":"#NULL!"},"#NULL!","Diploma in Mechanical and Electrical Engineering ","Seychelles Institute of Technology (SIT)",4,""]
[251,"SIT97","SIT","Male",null,1,"Diploma in Engineering - Mechanical Manufacturing Engineering","Diploma","Not Stated","Yes",4,4,3,"#NULL!","Yes it was just right","Unemployed","","Unemployed",0,0,0,0,0,"#NULL!","#NULL!","#NULL!","#NULL!","#NULL!","#NULL!","#NULL!","#NULL!","#NULL!","#NULL!",{"$error":"#NULL!"},"#NULL!","","#NULL!","Yes","No","",3,2,"No",9,"No Vacancy for the Job","Yes",0,0,"#NULL!",""]
[252,"SIT98","SIT","Male",null,1,"Diploma in Engineering - Mechanical Manufacturing Engineering and Electrical/Electronics","Diploma","Not Stated","Yes",4,5,4,"Yes","Yes it was just right","Unemployed","","Unemployed",0,0,0,0,0,"#NULL!","#NULL!","#NULL!","#NULL!","#NULL!","#NULL!","#NULL!","#NULL!","#NULL!","#NULL!",{"$error":"#NULL!"},"#NULL!","","#NULL!","Yes","No","",3,2,"No",9,"No Vacancy for the Job Applied","Yes",0,0,"#NULL!",""]
[253,"SIT99","SIT","Male",null,1,"Advanced Certificate in Mechanical Engineering","Advanced Certificate","No","Yes",4,4,4,"Yes","Yes it was just right","Unemployed","","Unemployed",0,0,0,0,0,"#NULL!","#NULL!","#NULL!","#NULL!","#NULL!","#NULL!","#NULL!","#NULL!","#NULL!","#NULL!",{"$error":"#NULL!"},"#NULL!","","#NULL!","Yes","No","",3,2,"No",5,{"$error":"#NULL!"},"Yes",0,0,"#NULL!",""]
[254,"SIT100","SIT","Male",null,1,"Certificate in Refrigeration and Air Conditioning (Apprenticeship)","Certificate Apprenticeship","Yes","Yes",5,4,"#NULL!","Yes","Yes it was just right","Full time Employment","","Employed","Yes","Manufacturing","Private","CoolTech",0,"#NULL!","#NULL!","#NULL!","#NULL!","#NULL!","#NULL!","#NULL!","#NULL!","#NULL!","#NULL!",{"$error":"#NULL!"},"#NULL!","","#NULL!","#NULL!","#NULL!","","#NULL!","#NULL!","#NULL!","#NULL!",{"$error":"#NULL!"},"#NULL!",0,0,"#NULL!",""]
[255,"SIT101","SIT","Male",null,1,"Certificate in Refrigeration and Air Conditioning (Apprenticeship)","Certificate Apprenticeship","Yes","Yes",5,5,5,"No","Yes it was just right","Full time Employment","","Employed","Yes","Manufacturing","Private","SeyKool",0,1,1,0,0,0,0,0,0,1,1,{"$error":"#NULL!"},"between 2 to 5","More than 1 month","Always","#NULL!","#NULL!","","#NULL!","#NULL!","#NULL!","#NULL!",{"$error":"#NULL!"},"#NULL!",0,0,"#NULL!",""]
[256,"SIT102","SIT","Male",null,1,"Certificate in Refrigeration and Air Conditioning (Apprenticeship)","Certificate Apprenticeship","Yes","Yes",5,5,5,"No","Yes it was just right","Full time Employment","","Employed","Yes","Manufacturing","Private","My Cool",0,1,1,0,0,0,0,0,0,1,1,{"$error":"#NULL!"},"between 2 to 5","More than 1 month","Always","#NULL!","#NULL!","","#NULL!","#NULL!","#NULL!","#NULL!",{"$error":"#NULL!"},"#NULL!",0,0,"#NULL!",""]
[257,"SIT103","SIT","Male",null,1,"Certificate in Refrigeration and Air Conditioning (Apprenticeship)","Certificate Apprenticeship","No","Yes",4,4,1,"Yes","Yes it was just right","Full time Employment","","Employed","No","Transportation and storage","Parastatal","Air Seychelles","Ramp Agent",2,0,1,0,0,0,0,0,3,1,{"$error":"#NULL!"},"Just this 1","More than 1 month","Always","#NULL!","#NULL!","","#NULL!","#NULL!","#NULL!","#NULL!",{"$error":"#NULL!"},"#NULL!",0,0,"#NULL!",""]
[258,"SIT104","SIT","Male",null,1,"Certificate in Refrigeration and Air Conditioning (Apprenticeship)","Certificate Apprenticeship","No","Yes",5,5,5,"Yes","Yes it was just right","Unemployed","","Unemployed",0,0,0,0,0,"#NULL!","#NULL!","#NULL!","#NULL!","#NULL!","#NULL!","#NULL!","#NULL!","#NULL!","#NULL!",{"$error":"#NULL!"},"#NULL!","","#NULL!","Yes","No","",3,2,"No",3,{"$error":"#NULL!"},"Yes",0,0,"#NULL!",""]
[259,"SIT105","SIT","Male",null,1,"Certificate in Refrigeration and Air Conditioning (Apprenticeship)","Certificate Apprenticeship","Yes","Yes",4,4,4,"Yes","Yes it was just right","Full time Employment","","Employed","Unknown","Unknown","Not Stated","Not Stated",0,"#NULL!","#NULL!","#NULL!","#NULL!","#NULL!","#NULL!","#NULL!","#NULL!","#NULL!","#NULL!",{"$error":"#NULL!"},"#NULL!","","#NULL!","#NULL!","#NULL!","","#NULL!","#NULL!","#NULL!","#NULL!",{"$error":"#NULL!"},"#NULL!",0,0,"#NULL!",""]
[260,"SIT106","SIT","Male",null,1,"Certificate in Refrigeration and Air Conditioning (Apprenticeship)","Certificate Apprenticeship","Yes","Yes",4,4,4,"No","Yes it was just right","Unemployed","","Potential labour force entrant ",0,0,0,0,0,"#NULL!","#NULL!","#NULL!","#NULL!","#NULL!","#NULL!","#NULL!","#NULL!","#NULL!","#NULL!",{"$error":"#NULL!"},"#NULL!","","#NULL!","Yes","No","",2,1,"Yes",3,{"$error":"#NULL!"},"No",0,0,"#NULL!",""]
[261,"SIT107","SIT","Male",null,1,"Certificate in Refrigeration and Air Conditioning (Apprenticeship)","Certificate Apprenticeship","Yes","Yes",5,5,5,"No","Yes it was just right","Full time Employment","","Employed","Yes","Manufacturing","Private","CoolTech",0,1,1,0,0,0,0,0,0,1,1,{"$error":"#NULL!"},"between 2 to 5","More than 1 month","Always","#NULL!","#NULL!","","#NULL!","#NULL!","#NULL!","#NULL!",{"$error":"#NULL!"},"#NULL!",0,0,"#NULL!",""]
[262,"SIT108","SIT","Male",null,1,"Certificate in Refrigeration and Air Conditioning (Apprenticeship)","Certificate Apprenticeship","No","Yes",5,5,5,"#NULL!","Yes it was just right","Full time Employment","","Employed","Unknown","Unknown","Not Stated","Not Stated",0,"#NULL!","#NULL!","#NULL!","#NULL!","#NULL!","#NULL!","#NULL!","#NULL!","#NULL!","#NULL!",{"$error":"#NULL!"},"#NULL!","","#NULL!","#NULL!","#NULL!","","#NULL!","#NULL!","#NULL!","#NULL!",{"$error":"#NULL!"},"#NULL!",0,0,"#NULL!",""]
[263,"SIT109","SIT","Male",null,1,"Advanced Certificate in Electrical and Electronics","Advanced Certificate","No","Yes",4,4,3,"Yes","Yes it was just right","Unemployed","","Potential labour force entrant ",0,0,0,0,0,"#NULL!","#NULL!","#NULL!","#NULL!","#NULL!","#NULL!","#NULL!","#NULL!","#NULL!","#NULL!",{"$error":"#NULL!"},"#NULL!","","#NULL!","Yes","No","",3,2,"Yes",3,{"$error":"#NULL!"},"No",0,0,"#NULL!",""]
[264,"SIT110","SIT","Male",null,1,"Certficate in Electrical Installation (Apprenticeship)","Certificate Apprenticeship","Yes","Not Stated",3,4,1,"#NULL!","Yes it was just right","Further Studies","","Further Studies",0,0,0,0,0,"#NULL!","#NULL!","#NULL!","#NULL!","#NULL!","#NULL!","#NULL!","#NULL!","#NULL!","#NULL!",{"$error":"#NULL!"},"#NULL!","","#NULL!","#NULL!","#NULL!","","#NULL!","#NULL!","#NULL!","#NULL!",{"$error":"#NULL!"},"#NULL!",0,0,4,""]
[265,"SIT111","SIT","Male",null,1,"Certficate in Electrical Installation (Apprenticeship)","Certificate Apprenticeship","No","Yes",4,4,4,"Yes","Yes it was just right","Further Studies","","Further Studies",0,0,0,0,0,"#NULL!","#NULL!","#NULL!","#NULL!","#NULL!","#NULL!","#NULL!","#NULL!","#NULL!","#NULL!",{"$error":"#NULL!"},"#NULL!","","#NULL!","#NULL!","#NULL!","","#NULL!","#NULL!","#NULL!","#NULL!",{"$error":"#NULL!"},"#NULL!","Advance Certificate in Electrical Installation","Seychelles Institute of Technology (SIT)",1,""]
[266,"SIT112","SIT","Male",null,1,"Certficate in Electrical Installation (Apprenticeship)","Certificate Apprenticeship","No","Yes",4,4,4,"Yes","Yes it was just right","Further Studies","","Further Studies",0,0,0,0,0,"#NULL!","#NULL!","#NULL!","#NULL!","#NULL!","#NULL!","#NULL!","#NULL!","#NULL!","#NULL!",{"$error":"#NULL!"},"#NULL!","","#NULL!","#NULL!","#NULL!","","#NULL!","#NULL!","#NULL!","#NULL!",{"$error":"#NULL!"},"#NULL!","Advance Certificate in Electrical Installation","Seychelles Institute of Technology (SIT)",1,""]
[267,"SIT113","SIT","Male",null,1,"Certficate in Electrical Installation (Apprenticeship)","Certificate Apprenticeship","No","Yes",4,1,4,"Yes","Yes it was just right","Part time Employment","","Employed","Unknown","Unknown","Not Stated","Not Stated",0,"#NULL!","#NULL!","#NULL!","#NULL!","#NULL!","#NULL!","#NULL!","#NULL!","#NULL!","#NULL!",{"$error":"#NULL!"},"#NULL!","","#NULL!","#NULL!","#NULL!","","#NULL!","#NULL!","#NULL!","#NULL!",{"$error":"#NULL!"},"#NULL!",0,0,"#NULL!",""]
[268,"SIT114","SIT","Male",null,1,"Certficate in Electrical Installation (Apprenticeship)","Certificate Apprenticeship","Not Stated","Not Stated",4,4,4,"#NULL!","#NULL!","Unemployed","","Status Unknown",0,0,0,0,0,"#NULL!","#NULL!","#NULL!","#NULL!","#NULL!","#NULL!","#NULL!","#NULL!","#NULL!","#NULL!",{"$error":"#NULL!"},"#NULL!","","#NULL!","#NULL!","#NULL!","","#NULL!","#NULL!","#NULL!","#NULL!",{"$error":"#NULL!"},"#NULL!",0,0,"#NULL!",""]
[269,"SIT115","SIT","Male",null,1,"Certficate in Electrical Installation (Apprenticeship)","Certificate Apprenticeship","Yes","Not Stated",3,4,"#NULL!","#NULL!","Yes it was just right","Unemployed","","Unemployed",0,0,0,0,0,"#NULL!","#NULL!","#NULL!","#NULL!","#NULL!","#NULL!","#NULL!","#NULL!","#NULL!","#NULL!",{"$error":"#NULL!"},"#NULL!","","#NULL!","Yes","No","",3,1,"No","#NULL!",{"$error":"#NULL!"},"Yes",0,0,"#NULL!",""]
[270,"SIT116","SIT","Male",null,1,"Advanced Certificate in Electrical Installation","Advanced Certificate","Not Stated","Not Stated","#NULL!","#NULL!","#NULL!","#NULL!","#NULL!","Unknown",null,"Status Unknown",0,0,0,0,0,"#NULL!","#NULL!","#NULL!","#NULL!","#NULL!","#NULL!","#NULL!","#NULL!","#NULL!","#NULL!",{"$error":"#NULL!"},null,null,null,"#NULL!","#NULL!",null,"#NULL!",null,null,"#NULL!",{"$error":"#NULL!"},null,0,0]
[271,"SIT118","SIT","Male",null,1,"Advanced Certificate in Electrical Installation","Advanced Certificate","Not Stated","Not Stated","#NULL!","#NULL!","#NULL!","#NULL!","#NULL!","Unknown",null,"Status Unknown",0,0,0,0,0,"#NULL!","#NULL!","#NULL!","#NULL!","#NULL!","#NULL!","#NULL!","#NULL!","#NULL!","#NULL!",{"$error":"#NULL!"},null,null,null,"#NULL!","#NULL!",null,"#NULL!",null,null,"#NULL!",{"$error":"#NULL!"},null,0,0]
[272,"NIHSS1","NIHSS","Female",1,null,"Diploma in Nursing","Diploma","No","Yes",5,4,3,"Yes","Yes it was just right","Full time Employment","0","Employed","Yes","Human health and social work activities","Public Service","Ministry of Health","Staff Nurse",1,1,0,0,0,0,0,0,5,1,{"$error":"#NULL!"},"Just this 1","Less than 1 month","Always","Yes","#NULL!","","#NULL!","#NULL!","#NULL!","#NULL!",{"$error":"#NULL!"},"#NULL!",0,0,9,"Through my nursing officer"]
[273,"NIHSS2","NIHSS","Female",1,null,"Diploma in Nursing","Diploma","No","Yes",5,5,4,"Yes","Yes it was just right","Full time Employment","0","Employed","Yes","Human health and social work activities","Public Service","Ministry of Health",0,1,1,0,0,0,0,0,0,2,"#NULL!",{"$error":"#NULL!"},"Just this 1","More than 1 month","Always","#NULL!","#NULL!","","#NULL!","#NULL!","#NULL!","#NULL!",{"$error":"#NULL!"},"#NULL!",0,0,"#NULL!",""]
[274,"NIHSS3","NIHSS","Female",1,null,"Diploma in Nursing","Diploma","Yes","Yes",5,5,5,"Yes","Yes it was just right","Full time Employment","0","Employed","Yes","Human health and social work activities","Public Service","Ministry of Health","Staff Nurse",1,0,0,0,0,0,0,0,5,7,{"$error":"#NULL!"},"Just this 1","More than 1 month","Always",{"$error":"#NULL!"},"#NULL!","","#NULL!","#NULL!","#NULL!","#NULL!",{"$error":"#NULL!"},"#NULL!",0,0,"#NULL!",""]
[275,"NIHSS4","NIHSS","Female",1,null,"Diploma in Nursing","Diploma","Yes","Yes",4,4,4,"Yes","Yes it was just right","Full time Employment","0","Employed","Yes","Human health and social work activities","Public Service","Ministry of Health","Staff Nurse",1,1,0,0,0,0,0,0,4,7,{"$error":"#NULL!"},"Just this 1","Less than 1 month","Always","#NULL!","#NULL!","","#NULL!","#NULL!","#NULL!","#NULL!",{"$error":"#NULL!"},"#NULL!",0,0,"#NULL!",""]
[276,"NIHSS5","NIHSS","Female",1,null,"Diploma in Nursing","Diploma","Yes","Yes",3,4,3,"Yes","Yes it was just right","Further Studies","0","Further Studies",0,0,0,0,0,1,1,0,0,0,0,0,0,4,"#NULL!",{"$error":"#NULL!"},"#NULL!","More than 1 month","Always","#NULL!","#NULL!","","#NULL!","#NULL!","#NULL!","#NULL!",{"$error":"#NULL!"},"#NULL!","Midwifery","National Institute of Health and Social Studies (NIHSS)","#NULL!",""]
[277,"NIHSS6","NIHSS","Female",1,null,"Diploma in Nursing","Diploma","No","Yes",4,4,4,"Yes","Yes it was just right","Unemployed","0","Potential labour force entrant ",0,0,0,0,0,"#NULL!","#NULL!","#NULL!","#NULL!","#NULL!","#NULL!","#NULL!","#NULL!","#NULL!","#NULL!",{"$error":"#NULL!"},"#NULL!","","#NULL!","Yes","No","0",3,1,"Yes",2,{"$error":"#NULL!"},"No",0,0,"#NULL!",""]
[278,"NIHSS7","NIHSS","Female",1,null,"Diploma in Nursing","Diploma","Yes","Yes",5,5,4,"Yes","Yes it was just right","Full time Employment","0","Employed","No","Public Administration and defence; compulsory social security","Public Service","Seychelles People's Defence Forces","Army Officer",1,0,0,0,0,1,0,0,5,8,{"$error":"#NULL!"},"Just this 1","Less than 1 month","Always","#NULL!","#NULL!","","#NULL!","#NULL!","#NULL!","#NULL!",{"$error":"#NULL!"},"#NULL!",0,0,"#NULL!",""]
[279,"NIHSS8","NIHSS","Female",1,null,"Diploma in Nursing","Diploma","No","Yes",4,4,3,"Yes","Yes it was just right","Full time Employment","0","Employed","Yes","Human health and social work activities","Public Service","Ministry of Health","Staff Nurse",1,1,0,0,0,0,0,0,4,1,{"$error":"#NULL!"},"Just this 1","More than 1 month","Always","#NULL!","#NULL!","","#NULL!","#NULL!","#NULL!","#NULL!",{"$error":"#NULL!"},"#NULL!",0,0,"#NULL!",""]
[280,"NIHSS9","NIHSS","Female",1,null,"Diploma in Nursing","Diploma","Yes","Yes",4,4,3,"Yes","Yes it was just right","Full time Employment","0","Employed","Yes","Human health and social work activities","Public Service","Ministry of Health","Staff Nurse",1,1,0,0,0,0,0,0,4,7,{"$error":"#NULL!"},"Just this 1","More than 1 month","Always","#NULL!","#NULL!","","#NULL!","#NULL!","#NULL!","#NULL!",{"$error":"#NULL!"},"#NULL!",0,0,"#NULL!",""]
[281,"NIHSS10","NIHSS","Female",1,null,"Diploma in Nursing","Diploma","Yes","Yes",5,5,1,"Yes","Yes it was just right","Unemployed","waiting for council registration and employment","Unemployed",0,0,0,0,0,"#NULL!","#NULL!","#NULL!","#NULL!","#NULL!","#NULL!","#NULL!","#NULL!","#NULL!","#NULL!",{"$error":"#NULL!"},"#NULL!","","#NULL!","Yes","No","0",3,1,"No",6,"waiting for documents of qualifications","Yes",0,0,"#NULL!",""]
[282,"NIHSS11","NIHSS","Female",1,null,"Diploma in Nursing","Diploma","Yes","Yes",4,3,2,"Yes","Yes it was just right","Full time Employment","0","Employed","Yes","Human health and social work activities","Public Service","Ministry of Health","Staff Nurse",1,"#NULL!","#NULL!","#NULL!","#NULL!","#NULL!","#NULL!","#NULL!",5,"#NULL!",{"$error":"#NULL!"},"Just this 1","","Always","#NULL!","#NULL!","","#NULL!","#NULL!","#NULL!","#NULL!",{"$error":"#NULL!"},"#NULL!",0,0,"#NULL!",""]
[283,"NIHSS12","NIHSS","Female",1,null,"Diploma in Nursing","Diploma","Yes","Yes",4,4,"#NULL!","Yes","Yes it was just right","Full time Employment","0","Employed","Yes","Human health and social work activities","Public Service","Ministry of Health","Nurse Manager",1,1,0,0,0,0,0,0,5,7,{"$error":"#NULL!"},"Just this 1","Less than 1 month","Always","#NULL!","#NULL!","","#NULL!","#NULL!","#NULL!","#NULL!",{"$error":"#NULL!"},"#NULL!",0,0,"#NULL!",""]
[284,"NIHSS21","NIHSS","Male",null,1,"Diploma in Pharmaceutical Sciences","Diploma","Yes","Yes",5,3,4,"Yes","Yes it was just right","Further Studies","","Further Studies",0,0,0,0,0,"#NULL!","#NULL!","#NULL!","#NULL!","#NULL!","#NULL!","#NULL!","#NULL!","#NULL!","#NULL!",{"$error":"#NULL!"},"#NULL!","","#NULL!","#NULL!","#NULL!","","#NULL!","#NULL!","#NULL!","#NULL!",{"$error":"#NULL!"},"#NULL!","Diploma in Administration and Management","Seychelles Business Studies Academy (SBSA)",2,""]
[285,"NIHSS22","NIHSS","Female",1,null,"Diploma in Pharmaceutical Sciences","Diploma","No","No",4,4,3,"Yes","Yes it was just right","Full time Employment","0","Employed","Yes","Human health and social work activities","Public Service","English River Pharmacy","Junior Pharmacy Technician",1,1,0,0,0,0,0,0,4,6,{"$error":"#NULL!"},"Just this 1","More than 1 month","Often","#NULL!","#NULL!","","#NULL!","#NULL!","#NULL!","#NULL!",{"$error":"#NULL!"},"#NULL!",0,0,"#NULL!",""]
[286,"NIHSS23","NIHSS","Female",1,null,"Diploma in Pharmaceutical Sciences","Diploma","No","No",4,4,4,"Yes","Yes it was just right","Full time Employment","0","Employed","Yes","Wholesale and retail trade; repair of motor vehicles and motorcycles","Private","Behram's Pharmacy",0,"#NULL!","#NULL!","#NULL!","#NULL!","#NULL!","#NULL!","#NULL!","#NULL!","#NULL!","#NULL!",{"$error":"#NULL!"},"#NULL!","","#NULL!","#NULL!","#NULL!","","#NULL!","#NULL!","#NULL!","#NULL!",{"$error":"#NULL!"},"#NULL!",0,0,"#NULL!",""]
[287,"NIHSS33","NIHSS","Female",1,null,"Certificate in Health Care","Certificate ","No","Yes",4,4,1,"Yes","Yes it was just right","Full time Employment","0","Employed","Yes","Human health and social work activities","Public Service","Ministry of Health","Health Care Assistant",1,0,0,0,0,1,0,0,3,1,{"$error":"#NULL!"},"Just this 1","Less than 1 month","Often","#NULL!","#NULL!","","#NULL!","#NULL!","#NULL!","#NULL!",{"$error":"#NULL!"},"#NULL!",0,0,"#NULL!",""]
[288,"NIHSS34","NIHSS","Male",null,1,"Certificate in Health Care","Certificate ","No","Yes",4,4,4,"Yes","Yes it was just right","Full time Employment","0","Employed","Yes","Human health and social work activities","Public Service","Ministry of Health",0,1,1,0,0,0,0,0,0,3,1,{"$error":"#NULL!"},"Just this 1","More than 1 month","Always","#NULL!","#NULL!","","#NULL!","#NULL!","#NULL!","#NULL!",{"$error":"#NULL!"},"#NULL!",0,0,"#NULL!",""]
[289,"NIHSS35","NIHSS","Male",null,1,"Certificate in Health Care","Certificate ","No","Yes",5,5,5,"Yes","No, I should have learned something else","Further Studies","0","Further Studies",0,0,0,0,0,"#NULL!","#NULL!","#NULL!","#NULL!","#NULL!","#NULL!","#NULL!","#NULL!","#NULL!","#NULL!",{"$error":"#NULL!"},"#NULL!","","#NULL!","#NULL!","#NULL!","","#NULL!","#NULL!","#NULL!","#NULL!",{"$error":"#NULL!"},"#NULL!","Pharmaceutical Science","National Institute of Health and Social Studies (NIHSS)","#NULL!",""]
[290,"NIHSS36","NIHSS","Female",1,null,"Certificate in Health Care","Certificate ","No","Yes",5,5,5,"Yes","Yes it was just right","Full time Employment","0","Employed","Yes","Human health and social work activities","Public Service","Ministry of Health","Health Care Assistant",1,1,0,0,0,0,0,0,1,1,{"$error":"#NULL!"},"Just this 1","More than 1 month","Always","#NULL!","#NULL!","","#NULL!","#NULL!","#NULL!","#NULL!",{"$error":"#NULL!"},"#NULL!",0,0,"#NULL!",""]
[291,"NIHSS37","NIHSS","Female",1,null,"Certificate in Health Care","Certificate ","No","Yes",5,5,4,"Yes","Yes it was just right","Full time Employment","0","Employed","Yes","Human health and social work activities","Public Service","Ministry of Health","Health Care Assistant",1,1,0,0,0,0,0,0,3,3,{"$error":"#NULL!"},"Just this 1","More than 1 month","Often","#NULL!","#NULL!","","#NULL!","#NULL!","#NULL!","#NULL!",{"$error":"#NULL!"},"#NULL!",0,0,"#NULL!",""]
[292,"NIHSS38","NIHSS","Female",1,null,"Certificate in Health Care","Certificate ","Not Stated","Yes",5,5,5,"Yes","Yes it was just right","Full time Employment","0","Employed","Yes","Human health and social work activities","Public Service","Ministry of Health","Health Care Assistant",1,1,0,0,0,0,0,0,3,1,{"$error":"#NULL!"},"Just this 1","More than 1 month","Always","#NULL!","#NULL!","","#NULL!","#NULL!","#NULL!","#NULL!",{"$error":"#NULL!"},"#NULL!",0,0,"#NULL!",""]
[293,"NIHSS39","NIHSS","Female",1,null,"Certificate in Health Care","Certificate ","No","Yes",5,5,5,"Yes","Yes it was just right","Full time Employment","0","Employed","Yes","Human health and social work activities","Public Service","Ministry of Health","Health Care Assistant",1,1,0,0,0,0,0,0,2,1,{"$error":"#NULL!"},"Just this 1","More than 1 month","Always","#NULL!","#NULL!","","#NULL!","#NULL!","#NULL!","#NULL!",{"$error":"#NULL!"},"#NULL!",0,0,"#NULL!",""]
[294,"NIHSS40","NIHSS","Female",1,null,"Certificate in Health Care","Certificate ","No","Yes",5,5,"#NULL!","Yes","Yes it was just right","Full time Employment","0","Employed","Yes","Human health and social work activities","Public Service","Healthy","Health Care Assistant",1,1,0,0,0,0,0,0,2,6,{"$error":"#NULL!"},"Just this 1","Less than 1 month","Always","#NULL!","#NULL!","","#NULL!","#NULL!","#NULL!","#NULL!",{"$error":"#NULL!"},"#NULL!",0,0,"#NULL!",""]
[295,"SITE1","SITE","Female",1,null,"Diploma in Education-Early Childhood","Diploma","No","Yes",4,4,3,"Yes","Yes it was just right","Full time Employment","0","Employed","Yes","Education","Public Service","Ministry of Education and Human Resource Development","Teacher",1,1,0,0,0,0,0,0,4,1,{"$error":"#NULL!"},"Just this 1","Less than 1 month","Always","#NULL!","#NULL!","","#NULL!","#NULL!","#NULL!","#NULL!",{"$error":"#NULL!"},"#NULL!",0,0,"#NULL!",""]
[296,"SITE2","SITE","Female",1,null,"Diploma in Education-Primary","Diploma","Yes","Yes",5,5,5,"Yes","Yes it was just right","Full time Employment","0","Employed","Yes","Education","Public Service","Anse Aux Pins","Teacher",1,1,0,0,0,0,0,0,4,1,{"$error":"#NULL!"},"Just this 1","Less than 1 month","Often","#NULL!","#NULL!","","#NULL!","#NULL!","#NULL!","#NULL!",{"$error":"#NULL!"},"#NULL!",0,0,"#NULL!",""]
[297,"SITE3","SITE","Female",1,null,"Diploma in Education-Primary","Diploma","No","Yes",4,"#NULL!","#NULL!","Yes","Yes it was just right","Full time Employment","0","Employed","Yes","Education","Public Service","Ministry of Education and Human Resource Development","Teacher",1,0,0,0,0,0,0,0,4,1,{"$error":"#NULL!"},"Just this 1","Less than 1 month","Always","#NULL!","#NULL!","","#NULL!","#NULL!","#NULL!","#NULL!",{"$error":"#NULL!"},"#NULL!",0,0,"#NULL!",""]
[298,"SITE4","SITE","Female",1,null,"Diploma in Education-Early Childhood","Diploma","No","Yes",4,5,1,"Yes","Yes it was just right","Full time Employment","0","Employed","Yes","Education","Public Service","Ministry of Education and Human Resource Development","Teacher",1,1,0,0,0,0,0,0,4,1,{"$error":"#NULL!"},"Just this 1","Less than 1 month","Often","#NULL!","#NULL!","","#NULL!","#NULL!","#NULL!","#NULL!",{"$error":"#NULL!"},"#NULL!",0,0,"#NULL!",""]
[299,"SITE5","SITE","Female",1,null,"Diploma in Education-Early Childhood","Diploma","Yes","Yes",4,4,4,"Yes","Yes it was just right","Full time Employment","0","Employed","Yes","Education","Public Service","Ministry of Education and Human Resource Development","Teacher",1,1,0,0,0,0,0,0,4,4,{"$error":"#NULL!"},"between 2 to 5","Less than 1 month","Always","#NULL!","#NULL!","","#NULL!","#NULL!","#NULL!","#NULL!",{"$error":"#NULL!"},"#NULL!",0,0,"#NULL!",""]
[300,"SITE6","SITE","Female",1,null,"Diploma in Education-Technology and Enterprise","Diploma","Yes","No",5,4,5,"Yes","Yes it was just right","Unemployed","0","Unemployed",0,0,0,0,0,"#NULL!","#NULL!","#NULL!","#NULL!","#NULL!","#NULL!","#NULL!","#NULL!","#NULL!","#NULL!",{"$error":"#NULL!"},"#NULL!","","#NULL!","Yes","No","0",9,1,"No","#NULL!","Just completed studies","Yes",0,0,"#NULL!",""]
[301,"SITE7","SITE","Female",1,null,"Diploma in Education-Primary","Diploma","Yes","Yes",4,4,3,"Yes","Yes it was just right","Full time Employment","0","Employed","Yes","Education","Public Service","Ministry of Education and Human Resource Development","Teacher",1,1,0,0,0,0,0,0,4,1,{"$error":"#NULL!"},"Just this 1","Less than 1 month","Often","#NULL!","#NULL!","","#NULL!","#NULL!","#NULL!","#NULL!",{"$error":"#NULL!"},"#NULL!",0,0,"#NULL!",""]
[302,"SITE8","SITE","Female",1,null,"Diploma in Education-Primary","Diploma","No","Yes",5,5,4,"Yes","Yes it was just right","Full time Employment","0","Employed","Yes","Education","Public Service","Ministry of Education and Human Resource Development","Teacher",1,0,0,0,0,0,0,0,4,1,{"$error":"#NULL!"},"Just this 1","Less than 1 month","Always","#NULL!","#NULL!","","#NULL!","#NULL!","#NULL!","#NULL!",{"$error":"#NULL!"},"#NULL!",0,0,"#NULL!",""]
[303,"SITE9","SITE","Female",1,null,"Diploma in Education-Early Childhood","Diploma","No","Yes",4,4,"#NULL!","Yes","Yes it was just right","Full time Employment","0","Employed","Yes","Education","Public Service","Ministry of Education and Human Resource Development","Teacher",1,1,0,0,0,0,0,0,"#NULL!",7,{"$error":"#NULL!"},"Just this 1","Less than 1 month","Always","#NULL!","#NULL!","","#NULL!","#NULL!","#NULL!","#NULL!",{"$error":"#NULL!"},"#NULL!",0,0,"#NULL!",""]
[304,"SITE10","SITE","Female",1,null,"Diploma in Education-Technology and Enterprise","Diploma","Yes","Yes",5,4,5,"Yes","Yes it was just right","Unemployed","Newly graduate","Unemployed",0,0,0,0,0,"#NULL!","#NULL!","#NULL!","#NULL!","#NULL!","#NULL!","#NULL!","#NULL!","#NULL!","#NULL!",{"$error":"#NULL!"},"#NULL!","","#NULL!","Yes","No","0",3,1,"#NULL!","#NULL!",{"$error":"#NULL!"},"Yes",0,0,"#NULL!",""]
[305,"SITE11","SITE","Female",1,null,"Diploma in Education-Early Childhood","Diploma","Yes","Yes",5,5,"#NULL!","Yes","Yes it was just right","Full time Employment","0","Employed","Yes","Education","Public Service","Ministry of Education and Human Resource Development","Teacher",1,0,1,0,0,0,0,0,3,4,{"$error":"#NULL!"},"Just this 1","Less than 1 month","Always","#NULL!","#NULL!","","#NULL!","#NULL!","#NULL!","#NULL!",{"$error":"#NULL!"},"#NULL!",0,0,"#NULL!",""]
[306,"SITE12","SITE","Female",1,null,"Diploma in Education-Technology and Enterprise","Diploma","Yes","No",5,4,5,"Yes","Yes it was just right","Unemployed","0","Potential labour force entrant ",0,0,0,0,0,"#NULL!","#NULL!","#NULL!","#NULL!","#NULL!","#NULL!","#NULL!","#NULL!","#NULL!","#NULL!",{"$error":"#NULL!"},"#NULL!","","#NULL!","Yes","No","0",9,1,"No","#NULL!","I have just completed my studies","#NULL!",0,0,"#NULL!",""]
[307,"SITE13","SITE","Female",1,null,"Diploma in Education-Technology and Enterprise","Diploma","Yes","Yes",4,4,5,"Yes","Yes it was just right","Full time Employment","0","Employed","Unknown","Unknown","Not Stated","Not Stated",0,"#NULL!","#NULL!","#NULL!","#NULL!","#NULL!","#NULL!","#NULL!","#NULL!","#NULL!","#NULL!",{"$error":"#NULL!"},"#NULL!","","#NULL!","Yes","No","0",1,1,"#NULL!","#NULL!","Newly graduate","Yes",0,0,"#NULL!",""]
[308,"SITE14","SITE","Female",1,null,"Diploma in Education-Technology and Enterprise","Diploma","Yes","Yes",5,5,5,"Yes","Yes it was just right","Further Studies","Newly graduate","Unemployed",0,0,0,0,0,"#NULL!","#NULL!","#NULL!","#NULL!","#NULL!","#NULL!","#NULL!","#NULL!","#NULL!","#NULL!",{"$error":"#NULL!"},"#NULL!","","#NULL!","Yes","No","0",3,"#NULL!","#NULL!",9,"Newly graduate","Yes",0,0,"#NULL!",""]
[309,"SITE15","SITE","Female",1,null,"Diploma in Education-Technology and Enterprise","Diploma","Yes","Yes",5,5,5,"Yes","Yes it was just right","Unemployed","0","Unemployed",0,0,0,0,0,"#NULL!","#NULL!","#NULL!","#NULL!","#NULL!","#NULL!","#NULL!","#NULL!","#NULL!","#NULL!",{"$error":"#NULL!"},"#NULL!","","#NULL!","Yes","No","0",9,1,"No",9,"Just completed my studies","Yes",0,0,"#NULL!",""]
[310,"SITE16","SITE","Female",1,null,"Diploma in Education-Primary","Diploma","Yes","Yes",4,4,4,"Yes","Yes it was just right","Full time Employment","0","Employed","Yes","Education","Public Service","Ministry of Education and Human Resource Development","Teacher",1,1,0,0,0,0,0,0,4,1,{"$error":"#NULL!"},"Just this 1","Less than 1 month","Often","#NULL!","#NULL!","","#NULL!","#NULL!","#NULL!","#NULL!",{"$error":"#NULL!"},"#NULL!",0,0,"#NULL!",""]
[311,"SITE17","SITE","Female",1,null,"Diploma in Education-Early Childhood","Diploma","No","Yes",5,5,4,"Yes","Yes it was just right","Full time Employment","0","Employed","Yes","Education","Public Service","Ministry of Education and Human Resource Development","Teacher",1,1,0,0,0,0,0,0,4,7,{"$error":"#NULL!"},"Just this 1","Less than 1 month","Always","#NULL!","#NULL!","","#NULL!","#NULL!","#NULL!","#NULL!",{"$error":"#NULL!"},"#NULL!",0,0,"#NULL!",""]
[312,"SITE18","SITE","Female",1,null,"Diploma in Education-Early Childhood","Diploma","No","Yes",4,4,4,"Yes","Yes it was just right","Full time Employment","0","Employed","Yes","Education","Public Service","Ministry of Education and Human Resource Development","Teacher",1,1,0,0,0,0,0,0,4,1,{"$error":"#NULL!"},"Just this 1","Less than 1 month","Always","#NULL!","#NULL!","","#NULL!","#NULL!","#NULL!","#NULL!",{"$error":"#NULL!"},"#NULL!",0,0,"#NULL!",""]
[313,"SITE19","SITE","Female",1,null,"Diploma in Education-Primary","Diploma","Yes","Yes",5,5,5,"Yes","Yes it was just right","Full time Employment","0","Employed","Yes","Education","Public Service","Ministry of Education and Human Resource Development","Teacher",1,0,0,0,0,0,0,0,3,4,{"$error":"#NULL!"},"Just this 1","Less than 1 month","Always","#NULL!","#NULL!","","#NULL!","#NULL!","#NULL!","#NULL!",{"$error":"#NULL!"},"#NULL!",0,0,"#NULL!",""]
[314,"SITE20","SITE","Female",1,null,"Diploma in Education-Early Childhood","Diploma","No","Yes",4,4,4,"Yes","Yes it was just right","Full time Employment","0","Employed","Yes","Education","Public Service","Ministry of Education and Human Resource Development","Teacher",1,1,0,0,0,0,0,0,4,7,{"$error":"#NULL!"},"Just this 1","Less than 1 month","Always","#NULL!","#NULL!","","#NULL!","#NULL!","#NULL!","#NULL!",{"$error":"#NULL!"},"#NULL!",0,0,"#NULL!",""]
[315,"SITE21","SITE","Female",1,null,"Diploma in Education-Early Childhood","Diploma","No","Yes",5,5,"#NULL!","Yes","Yes it was just right","Full time Employment","0","Employed","Yes","Education","Public Service","Ministry of Education and Human Resource Development","Teacher",1,1,0,0,0,0,0,0,4,1,{"$error":"#NULL!"},"Just this 1","Less than 1 month","Always","#NULL!","#NULL!","","#NULL!","#NULL!","#NULL!","#NULL!",{"$error":"#NULL!"},"#NULL!",0,0,"#NULL!",""]
[316,"SIAH1","SIAH","Male",null,1,"Certificate in General Agriculture (Apprenticeship)","Advanced Certificate","No","Yes",4,4,5,"Yes","Yes it was just right","Part time Employment","0","Employed","No","Agriculture, forestry and fishing","Private","SAPMER","Stevedore",0,0,0,1,0,0,0,0,2,5,{"$error":"#NULL!"},"Just this 1","Less than 1 month","Never","#NULL!","#NULL!","","#NULL!","#NULL!","#NULL!","#NULL!",{"$error":"#NULL!"},"#NULL!",0,0,"#NULL!",""]
[317,"SIAH2","SIAH","Male",null,1,"Advanced Certificate in Ornamental Horticulture and Landscaping","Advanced Certificate","No","Yes",4,3,4,"Yes","Yes it was just right","Full time Employment","0","Employed","Yes","Public Administration and defence; compulsory social security","Public Service","Department of Environment, Fond B'Offay Praslin","Climate Adaptation Technician",1,1,0,0,0,0,0,0,3,4,{"$error":"#NULL!"},"between 2 to 5","Less than 1 month","Always","#NULL!","#NULL!","","#NULL!","#NULL!","#NULL!","#NULL!",{"$error":"#NULL!"},"#NULL!",0,0,"#NULL!",""]
[318,"SIAH3","SIAH","Female",1,null,"Certificate in Ornamental Horticulture and Landscaping","Certificate Apprenticeship","No","Yes",5,3,4,"Yes","Yes it was just right","Further Studies","0","Further Studies",0,0,0,0,0,"#NULL!","#NULL!","#NULL!","#NULL!","#NULL!","#NULL!","#NULL!","#NULL!","#NULL!","#NULL!",{"$error":"#NULL!"},"#NULL!","","#NULL!","#NULL!","#NULL!","","#NULL!","#NULL!","#NULL!","#NULL!",{"$error":"#NULL!"},"#NULL!","Food and Beverage","Seychelles Tourism Academy (STA)",4,""]
[319,"SIAH4","SIAH","Male",null,1,"Certificate in General Agriculture (Apprenticeship)","Certificate Apprenticeship","No","Yes",5,4,4,"Yes","Yes it was just right","Full time Employment","0","Employed","No","Wholesale and retail trade; repair of motor vehicles and motorcycles","Parastatal","Seychelles Trading Company ","Store Assistant",0,0,0,1,0,0,0,0,3,4,{"$error":"#NULL!"},"between 2 to 5","Less than 1 month","Never","#NULL!","#NULL!","","#NULL!","#NULL!","#NULL!","#NULL!",{"$error":"#NULL!"},"#NULL!",0,0,"#NULL!",""]
[320,"SIAH5","SIAH","Female",1,null,"Advanced Certificate in Ornamental Horticulture and Landscaping","Advanced Certificate","No","Yes",4,4,5,"Yes","Yes it was just right","Full time Employment","0","Employed","No","Accommodation and food service activities","Private","Constance Ephelia Resort","Waitress",0,0,0,0,0,0,0,1,5,1,{"$error":"#NULL!"},"between 2 to 5","More than 1 month","Never","#NULL!","#NULL!","","#NULL!","#NULL!","#NULL!","#NULL!",{"$error":"#NULL!"},"#NULL!",0,0,5,"Through family"]
[321,"SIAH6","SIAH","Female",1,null,"Advanced Certificate in Ornamental Horticulture and Landscaping","Advanced Certificate","No","Yes",5,5,5,"Yes","Yes it was just right","Short term contract","Fix renewable contract","Employed","Yes","Administrative and support services activities","Private","Scenic Landscaping","Landscape Technician",1,1,0,0,0,0,0,0,3,6,{"$error":"#NULL!"},"Just this 1","Less than 1 month","Always","#NULL!","#NULL!","","#NULL!","#NULL!","#NULL!","#NULL!",{"$error":"#NULL!"},"#NULL!",0,0,"#NULL!",""]
[322,"SIAH7","SIAH","Female",1,null,"Advanced Certificate in Ornamental Horticulture and Landscaping","Advanced Certificate","No","No",4,4,4,"Yes","Yes it was just right","Unemployed","0","Unemployed",0,0,0,0,0,"#NULL!","#NULL!","#NULL!","#NULL!","#NULL!","#NULL!","#NULL!","#NULL!","#NULL!","#NULL!",{"$error":"#NULL!"},"#NULL!","","#NULL!","Yes","No","0",3,3,"Yes",5,{"$error":"#NULL!"},"Yes",0,0,"#NULL!",""]
[323,"SIAH8","SIAH","Female",1,null,"Advanced Certificate in Ornamental Horticulture and Landscaping","Advanced Certificate","No","Yes",4,3,3,"Yes","Yes it was just right","Full time Employment","0","Employed","Yes","Public Administration and defence; compulsory social security","Public Service","National Biosecurity Agency","Biosecurity Assistant",2,1,0,0,0,0,0,0,3,1,{"$error":"#NULL!"},"Just this 1","Less than 1 month","Always","#NULL!","#NULL!","","#NULL!","#NULL!","#NULL!","#NULL!",{"$error":"#NULL!"},"#NULL!",0,0,"#NULL!",""]
[324,"SIAH9","SIAH","Male",null,1,"Advanced Certificate in General Agriculture","Advanced Certificate","No","Yes",5,3,5,"Yes","Yes it was just right","Full time Employment","Still on probation","Employed","No","Wholesale and retail trade; repair of motor vehicles and motorcycles","Private","Meaders Seychelles Animal Feed","Assistant Surpervisor",2,1,0,0,0,0,0,0,3,9,"Through a lecturer at SIAH (Head of Programme)","Just this 1","More than 1 month","Often","#NULL!","#NULL!","","#NULL!","#NULL!","#NULL!","#NULL!",{"$error":"#NULL!"},"#NULL!",0,0,"#NULL!",""]
[325,"SIAH10","SIAH","Male",null,1,"Advanced Certificate in General Agriculture","Advanced Certificate","No","Yes",4,4,5,"Yes","Yes it was just right","Full time Employment","0","Employed","Yes","Public Administration and defence; compulsory social security","Public Service","National Biosecurity Agency","Animal Technician",1,1,0,0,0,1,0,0,2,1,{"$error":"#NULL!"},"more than 5","More than 1 month","Often","#NULL!","#NULL!","","#NULL!","#NULL!","#NULL!","#NULL!",{"$error":"#NULL!"},"#NULL!",0,0,"#NULL!",""]
[326,"SIAH11","SIAH","Female",1,null,"Advanced Certificate in General Agriculture","Advanced Certificate","Not Stated","Not Stated",3,3,3,"Yes","Yes it was just right","Full time Employment","0","Employed","Yes","Public Administration and defence; compulsory social security","Public Service","National Biosecurity Agency","Animal Welfare Technician",1,1,0,0,0,0,0,0,3,4,{"$error":"#NULL!"},"#NULL!","","#NULL!","#NULL!","#NULL!","","#NULL!","#NULL!","#NULL!","#NULL!",{"$error":"#NULL!"},"#NULL!",0,0,"#NULL!",""]
[327,"SIAH12","SIAH","Male",null,1,"Certificate in General Agriculture (Apprenticeship)","Advanced Certificate","No","No",3,3,2,"No","Yes it was just right","Part time Employment","0","Employed","Yes","Wholesale and retail trade; repair of motor vehicles and motorcycles","Private","SLEZ Garden","Casual Worker",2,1,0,0,0,0,0,0,4,5,{"$error":"#NULL!"},"#NULL!","","Always","#NULL!","#NULL!","","#NULL!","#NULL!","#NULL!","#NULL!",{"$error":"#NULL!"},"#NULL!",0,0,3,""]
[328,"SIAH13","SIAH","Male",null,1,"Certificate in General Agriculture (Apprenticeship)","Certificate Apprenticeship","No","Yes",3,3,2,"Yes","Yes it was just right","Unemployed","0","Unemployed",0,0,0,0,0,"#NULL!","#NULL!","#NULL!","#NULL!","#NULL!","#NULL!","#NULL!","#NULL!","#NULL!","#NULL!",{"$error":"#NULL!"},{"$error":"#NULL!"},"","#NULL!","Yes","Yes","0",1,1,"Yes","#NULL!",{"$error":"#NULL!"},"Yes",0,0,"#NULL!",""]
[329,"SIAH14","SIAH","Male",null,1,"Advanced Certificate in General Agriculture","Advanced Certificate","Yes","No",4,4,4,"Yes","Yes it was just right","Full time Employment","0","Employed","Yes","Public Administration and defence; compulsory social security","Public Service","Seychelles Agricultural Agency","Extension Officer",0,0,1,0,0,0,0,0,3,1,{"$error":"#NULL!"},"Just this 1","Less than 1 month","Always","#NULL!","#NULL!","","#NULL!","#NULL!","#NULL!","#NULL!",{"$error":"#NULL!"},"#NULL!",0,0,"#NULL!",""]
[330,"SMA1","SMA","Male",null,1,"Advanced Certificate in Nautical Science","Advanced Certificate","Not Stated","Not Stated",4,4,4,"Yes","Yes it was just right","Full time Employment","0","Employed","Yes","Arts, entertainment and recreation","Private","Water World","Skipper/Boat Boy",1,1,0,0,0,0,0,0,4,1,{"$error":"#NULL!"},"#NULL!","","#NULL!","#NULL!","#NULL!","","#NULL!","#NULL!","#NULL!","#NULL!",{"$error":"#NULL!"},"#NULL!",0,0,"#NULL!",""]
[331,"SMA2","SMA","Male",null,1,"Advanced Certificate in Nautical Science","Advanced Certificate","Not Stated","Not Stated",4,4,4,"Yes","Yes it was just right","Full time Employment","0","Employed","Unknown","Unknown","Not Stated","Not Stated",0,"#NULL!","#NULL!","#NULL!","#NULL!","#NULL!","#NULL!","#NULL!","#NULL!","#NULL!","#NULL!",{"$error":"#NULL!"},"#NULL!","","#NULL!","Yes","No","0",9,"#NULL!","#NULL!",3,{"$error":"#NULL!"},"Yes",0,0,"#NULL!",""]
[332,"SMA3","SMA","Female",1,null,"Advanced Certificate in Nautical Science","Advanced Certificate","Not Stated","Not Stated",3,3,3,"Yes","I do not know","Short term contract","0","Employed","No","Wholesale and retail trade; repair of motor vehicles and motorcycles","Private","Restoration Boutique","Shop Assistant",2,0,0,1,0,0,0,0,3,5,{"$error":"#NULL!"},"#NULL!","","#NULL!","#NULL!","#NULL!","","#NULL!","#NULL!","#NULL!","#NULL!",{"$error":"#NULL!"},"#NULL!",0,0,"#NULL!",""]
[333,"SMA4","SMA","Female",1,null,"Advanced Certificate in Nautical Science","Advanced Certificate","Not Stated","Not Stated",4,4,1,"Yes","Yes it was just right","Full time Employment","0","Employed","Yes","Arts, entertainment and recreation","Private","Water World","Boat Girl",2,1,0,0,0,0,0,0,4,1,{"$error":"#NULL!"},"#NULL!","","#NULL!","#NULL!","#NULL!","","#NULL!","#NULL!","#NULL!","#NULL!",{"$error":"#NULL!"},"#NULL!",0,0,"#NULL!",""]
[334,"SMA5","SMA","Male",null,1,"Advanced Certificate in Marine Mechanic","Advanced Certificate","Not Stated","Not Stated",4,4,3,"Yes","Yes it was just right","Full time Employment","0","Employed","Yes","Professional, scientific and technical activities","Private","Alliance Engineering Solution","Marine Mechanic",1,0,0,0,0,1,0,0,4,9,"Teacher from the academy","Just this 1","","#NULL!","#NULL!","#NULL!","","#NULL!","#NULL!","#NULL!","#NULL!",{"$error":"#NULL!"},"#NULL!",0,0,"#NULL!",""]
[335,"SMA6","SMA","Male",null,1,"Certificate in Marine Mechanic","Advanced Certificate","Not Stated","Not Stated",4,4,3,"Yes","I do not know","Full time Employment","0","Employed","No","Accommodation and food service activities","Private","Constance Ephelia Resort","Pool Attendant",0,0,0,0,1,0,0,0,3,4,{"$error":"#NULL!"},"#NULL!","","#NULL!","#NULL!","#NULL!","","#NULL!","#NULL!","#NULL!","#NULL!",{"$error":"#NULL!"},"#NULL!",0,0,"#NULL!",""]
[336,"SMA7","SMA","Male",null,1,"Certificate in Fishing Technology (Apprenticeship)","Certificate Apprenticeship","Not Stated","Not Stated",4,1,4,"Yes","Yes it was just right","Part time Employment","0","Employed","No","Administrative and support services activities","Private","Swim Blue","Pool Boy",0,0,0,1,0,0,0,1,2,5,{"$error":"#NULL!"},"#NULL!","","#NULL!","#NULL!","#NULL!","","#NULL!","#NULL!","#NULL!","#NULL!",{"$error":"#NULL!"},"#NULL!",0,0,"#NULL!",""]
[337,"SMA8","SMA","Male",null,1,"Certificate in Fishing Technology (Apprenticeship)","Certificate Apprenticeship","Not Stated","Not Stated",4,4,4,"Yes","Yes it was just right","Part time Employment","0","Employed","Unknown","Unknown","Not Stated","Not Stated",0,2,0,1,0,0,0,0,0,"#NULL!",1,{"$error":"#NULL!"},"#NULL!","","#NULL!","#NULL!","#NULL!","","#NULL!","#NULL!","#NULL!","#NULL!",{"$error":"#NULL!"},"#NULL!",0,0,"#NULL!",""]
[338,"SMA9","SMA","Male",null,1,"Certificate in Fishing Technology (Apprenticeship)","Certificate Apprenticeship","Not Stated","Not Stated",4,4,4,"Yes","Yes it was just right","Further Studies","0","Further Studies",0,0,0,0,0,"#NULL!","#NULL!","#NULL!","#NULL!","#NULL!","#NULL!","#NULL!","#NULL!","#NULL!","#NULL!",{"$error":"#NULL!"},"#NULL!","","#NULL!","#NULL!","#NULL!","","#NULL!","#NULL!","#NULL!","#NULL!",{"$error":"#NULL!"},"#NULL!","Nautical Science","Seychelles Maritime Academy (SMA)","#NULL!",""]
[339,"SMA10","SMA","Male",null,1,"Certificate in Fishing Technology (Apprenticeship)","Certificate Apprenticeship","Not Stated","Not Stated",5,5,4,"Yes","Yes it was just right","Further Studies","0","Further Studies",0,0,0,0,0,"#NULL!","#NULL!","#NULL!","#NULL!","#NULL!","#NULL!","#NULL!","#NULL!","#NULL!","#NULL!",{"$error":"#NULL!"},"#NULL!","","#NULL!","#NULL!","#NULL!","","#NULL!","#NULL!","#NULL!","#NULL!",{"$error":"#NULL!"},"#NULL!","Marine Mechanic","Seychelles Maritime Academy (SMA)","#NULL!",""]
[340,"SMA11","SMA","Male",null,1,"Certificate in Fishing Technology (Apprenticeship)","Certificate Apprenticeship","Not Stated","Not Stated",5,4,4,"Yes","Yes it was just right","Further Studies","","Further Studies",0,0,0,0,0,"#NULL!","#NULL!","#NULL!","#NULL!","#NULL!","#NULL!","#NULL!","#NULL!","#NULL!","#NULL!",{"$error":"#NULL!"},"#NULL!","","#NULL!","#NULL!","#NULL!","","#NULL!","#NULL!","#NULL!","#NULL!",{"$error":"#NULL!"},"#NULL!","Nautical Science","Seychelles Maritime Academy (SMA)","#NULL!",""]
[341,"SMA12","SMA","Male",null,1,"Certificate in Fishing Technology (Apprenticeship)","Certificate Apprenticeship","Not Stated","Not Stated",5,5,4,"Yes","I do not know","Unemployed","0","Unemployed",0,0,0,0,0,"#NULL!","#NULL!","#NULL!","#NULL!","#NULL!","#NULL!","#NULL!","#NULL!","#NULL!","#NULL!",{"$error":"#NULL!"},"#NULL!","","#NULL!","Yes","No","0",3,3,"#NULL!","#NULL!",{"$error":"#NULL!"},"#NULL!",0,0,"#NULL!",""]
[342,"SMA13","SMA","Female",1,null,"Advanced Certificate in Fisheries Science","Advanced Certificate","Not Stated","Not Stated",3,3,2,"No","No, I should have learned something else","Further Studies","0","Further Studies",0,0,0,0,0,"#NULL!","#NULL!","#NULL!","#NULL!","#NULL!","#NULL!","#NULL!","#NULL!","#NULL!","#NULL!",{"$error":"#NULL!"},"#NULL!","","#NULL!","#NULL!","#NULL!","","#NULL!","#NULL!","#NULL!","#NULL!",{"$error":"#NULL!"},"#NULL!","Biology and Chemistry","School of Advanced Level Studies (SALS)","#NULL!",""]
[343,"SMA14","SMA","Male",null,1,"Advanced Certificate in Fisheries Science","Advanced Certificate","Not Stated","Not Stated",5,4,4,"Yes","Yes it was just right","Further Studies","0","Further Studies",0,0,0,0,0,"#NULL!","#NULL!","#NULL!","#NULL!","#NULL!","#NULL!","#NULL!","#NULL!","#NULL!","#NULL!",{"$error":"#NULL!"},"#NULL!","","#NULL!","#NULL!","#NULL!","","#NULL!","#NULL!","#NULL!","#NULL!",{"$error":"#NULL!"},"#NULL!",0,0,"#NULL!",""]
[344,"SMA15","SMA","Male",null,1,"Certificate in Fisheries Science and Fishing Technology","Advanced Certificate","Not Stated","Not Stated",4,5,4,"Yes","Yes it was just right","Full time Employment","In both employment and on further studies","Employed","Yes","Public Administration and defence; compulsory social security","Public Service","Seychelles Fishing Authority","Research Technician",1,0,1,0,0,0,0,0,5,1,{"$error":"#NULL!"},"#NULL!","","#NULL!","#NULL!","#NULL!","","#NULL!","#NULL!","#NULL!","#NULL!",{"$error":"#NULL!"},"#NULL!",0,0,"#NULL!",""]
[345,"SMA16","SMA","Male",null,1,"Certificate in Fisheries Science and Fishing Technology","Certificate Apprenticeship","Not Stated","Not Stated",5,4,4,"Yes","No, I should have learned something else","Full time Employment","0","Employed","No","Water supply; sewerage, waste management and remediation activities","Parastatal","Public Utilitites Corporation","Engineering Tradesman",0,0,0,0,1,0,0,0,3,5,{"$error":"#NULL!"},"#NULL!","","#NULL!","#NULL!","#NULL!","","#NULL!","#NULL!","#NULL!","#NULL!",{"$error":"#NULL!"},"#NULL!",0,0,"#NULL!",""]
[346,"SMA17","SMA","Female",1,null,"Advanced Certificate in Fisheries Science","Certificate ","Not Stated","Not Stated",4,3,2,"Yes","Yes it was just right","Unemployed","0","Unemployed",0,0,0,0,0,"#NULL!","#NULL!","#NULL!","#NULL!","#NULL!","#NULL!","#NULL!","#NULL!","#NULL!","#NULL!",{"$error":"#NULL!"},"#NULL!","","#NULL!","Yes","#NULL!","",2,5,"#NULL!","#NULL!",{"$error":"#NULL!"},"#NULL!",0,0,"#NULL!",""]
[347,"SMA18","SMA","Male",null,1,"Certificate in Fishing Technology (Apprenticeship)","Certificate Apprenticeship","Not Stated","Not Stated",5,4,4,"Yes","Yes it was just right","Unemployed","0","Unemployed",0,0,0,0,0,"#NULL!","#NULL!","#NULL!","#NULL!","#NULL!","#NULL!","#NULL!","#NULL!","#NULL!","#NULL!",{"$error":"#NULL!"},"#NULL!","","#NULL!","Yes","No","0",9,"#NULL!","#NULL!",5,{"$error":"#NULL!"},"Yes",0,0,"#NULL!",""]
[348,"SMA19","SMA","Female",1,null,"Certificate in Fisheries Science and Fishing Technology","Certificate ","Not Stated","Not Stated",4,4,4,"No","Yes it was just right","Unemployed","0","Unemployed",0,0,0,0,0,"#NULL!","#NULL!","#NULL!","#NULL!","#NULL!","#NULL!","#NULL!","#NULL!","#NULL!","#NULL!",{"$error":"#NULL!"},"#NULL!","","#NULL!","Yes","No","0","#NULL!","#NULL!","#NULL!",5,{"$error":"#NULL!"},"Yes",0,0,"#NULL!",""]
[349,"SMA20","SMA","Female",1,null,"Advanced Certificate in Fisheries Science","#NULL!","Not Stated","Not Stated",5,4,3,"Yes","No, I should have learned something else","Part time Employment","0","Employed","Unknown","Unknown","Not Stated","Not Stated",0,"#NULL!","#NULL!","#NULL!","#NULL!","#NULL!","#NULL!","#NULL!","#NULL!","#NULL!","#NULL!",{"$error":"#NULL!"},"#NULL!","","#NULL!","Yes","#NULL!","",3,"#NULL!","#NULL!",9,"They do not want to employ workers because they do not want to pay a normal salary.","Yes",0,0,"#NULL!",""]
[350,"STA1","STA","Female",1,null,"Advanced Diploma in Hospitality Management","Advanced Diploma","Yes","Yes",5,5,4,"Yes","Yes it was just right","Further Studies","0","Further Studies",0,0,0,0,0,"#NULL!","#NULL!","#NULL!","#NULL!","#NULL!","#NULL!","#NULL!","#NULL!","#NULL!","#NULL!",{"$error":"#NULL!"},"#NULL!","","#NULL!","#NULL!","#NULL!","","#NULL!","#NULL!","#NULL!","#NULL!",{"$error":"#NULL!"},"#NULL!",0,0,9,"Through Seychelles Tourism Academy (STA)"]
[351,"STA2","STA","Female",1,null,"Advanced Diploma in Hospitality Management","Advanced Diploma","Yes","Yes",5,5,4,"Yes","Yes it was just right","Further Studies","0","Further Studies",0,0,0,0,0,"#NULL!","#NULL!","#NULL!","#NULL!","#NULL!","#NULL!","#NULL!","#NULL!","#NULL!","#NULL!",{"$error":"#NULL!"},"#NULL!","","#NULL!","#NULL!","#NULL!","","#NULL!","#NULL!","#NULL!","#NULL!",{"$error":"#NULL!"},"#NULL!","Bachelor of Business Studies in Hotel Management","Shannon College of Hotel Management",4,"0"]
[352,"STA3","STA","Female",1,null,"Advanced Diploma in Hospitality Management","Advanced Diploma","Yes","Not Stated",5,5,5,"Yes","Yes it was just right","Further Studies","0","Further Studies",0,0,0,0,0,"#NULL!","#NULL!","#NULL!","#NULL!","#NULL!","#NULL!","#NULL!","#NULL!","#NULL!","#NULL!",{"$error":"#NULL!"},"#NULL!","","#NULL!","#NULL!","#NULL!","","#NULL!","#NULL!","#NULL!","#NULL!",{"$error":"#NULL!"},"#NULL!","Bachelor of Business Studies in Hotel Management","Shannon College of Hotel Management",9,"Through STA as the course of ADHM follows our course"]
[353,"STA4","STA","Female",1,null,"Advanced Diploma in Hospitality Management","Advanced Diploma","Yes","Not Stated",5,5,5,"Yes","Yes it was just right","Further Studies","0","Further Studies",0,0,0,0,0,"#NULL!","#NULL!","#NULL!","#NULL!","#NULL!","#NULL!","#NULL!","#NULL!","#NULL!","#NULL!",{"$error":"#NULL!"},"#NULL!","","#NULL!","#NULL!","#NULL!","","#NULL!","#NULL!","#NULL!","#NULL!",{"$error":"#NULL!"},"#NULL!","Bachelor of Business Studies in Hotel Management","Shannon College of Hotel Management",1,""]
[354,"STA5","STA","Female",1,null,"Advanced Diploma in Hospitality Management","Advanced Diploma","Yes","Yes",5,5,5,"Yes","Yes it was just right","Further Studies","","Further Studies",0,0,0,0,0,"#NULL!","#NULL!","#NULL!","#NULL!","#NULL!","#NULL!","#NULL!","#NULL!","#NULL!","#NULL!",{"$error":"#NULL!"},"#NULL!","","#NULL!","#NULL!","#NULL!","","#NULL!","#NULL!","#NULL!","#NULL!",{"$error":"#NULL!"},"#NULL!","Bachelor of Business Studies in Hotel Management","Shannon College of Hotel Management",1,""]
[355,"STA6","STA","Female",1,null,"Advanced Certificate in Tourism and Tour Guiding","Advanced Certificate","No","Yes",5,4,4,"Yes","Yes it was just right","Full time Employment","0","Employed","No","Accommodation and food service activities","Private","AVANI Resort","Guest Relation Agent",1,1,0,0,0,0,0,0,3,4,{"$error":"#NULL!"},"between 2 to 5","More than 1 month","Always","#NULL!","#NULL!","","#NULL!","#NULL!","#NULL!","#NULL!",{"$error":"#NULL!"},"#NULL!",0,0,"#NULL!",""]
[356,"STA7","STA","Female",1,null,"Advanced Certificate in Tourism and Tour Guiding","Advanced Certificate","No","Yes",5,5,5,"Yes","Yes it was just right","Unemployed","0","Status Unknown",0,0,0,0,0,"#NULL!","#NULL!","#NULL!","#NULL!","#NULL!","#NULL!","#NULL!","#NULL!","#NULL!","#NULL!",{"$error":"#NULL!"},"#NULL!","","#NULL!","No","Yes","0",9,"#NULL!","#NULL!",2,{"$error":"#NULL!"},"No",0,0,"#NULL!",""]
[357,"STA8","STA","Female",1,null,"Advanced Certificate in Tourism and Tour Guiding","Advanced Certificate","No","Yes",5,5,4,"Yes","Yes it was just right","Full time Employment","","Employed","Yes","Arts, entertainment and recreation","Public Service","Ministry of Culture (History Museum)","Museum Assistant",1,1,0,0,0,0,0,0,3,4,{"$error":"#NULL!"},"Just this 1","Less than 1 month","Always","#NULL!","#NULL!","","#NULL!","#NULL!","#NULL!","#NULL!",{"$error":"#NULL!"},"#NULL!",0,0,"#NULL!",""]
[358,"STA9","STA","Female",1,null,"Advanced Certificate in Tourism and Tour Guiding","Advanced Certificate","No","Yes",5,4,4,"Yes","Yes it was just right","Further Studies","","Further Studies",0,0,0,0,0,"#NULL!","#NULL!","#NULL!","#NULL!","#NULL!","#NULL!","#NULL!","#NULL!","#NULL!","#NULL!",{"$error":"#NULL!"},"#NULL!","","#NULL!","No","Yes","0",9,"#NULL!","#NULL!",2,{"$error":"#NULL!"},"No",0,0,"#NULL!",""]
[359,"STA10","STA","Male",null,1,"Advanced Certificate in Tourism and Tour Guiding","Advanced Certificate","No","Yes",5,4,4,"Yes","#NULL!","Full time Employment","","Employed","No","Transportation and storage","Private","Ethiopian Airline","Airport Ops",1,1,0,0,0,0,0,0,3,"#NULL!",{"$error":"#NULL!"},"between 2 to 5","More than 1 month","Always","#NULL!","#NULL!","","#NULL!","#NULL!","#NULL!","#NULL!",{"$error":"#NULL!"},"#NULL!",0,0,"#NULL!",""]
[360,"STA11","STA","Female",1,null,"Advanced Certificate in Tourism and Tour Guiding","Advanced Certificate","Yes","Yes",5,5,5,"Yes","Yes it was just right","Full time Employment","","Employed","No","Administrative and support services activities","Private","Summer Rain Tours","Reservation Agent",1,1,0,0,0,0,0,0,3,4,{"$error":"#NULL!"},"between 2 to 5","More than 1 month","Always","#NULL!","#NULL!","","#NULL!","#NULL!","#NULL!","#NULL!",{"$error":"#NULL!"},"#NULL!",0,0,"#NULL!",""]
[361,"STA12","STA","Female",1,null,"Advanced Certificate in Tourism and Tour Guiding","Advanced Certificate","No","Yes",5,5,5,"Yes","Yes it was just right","Unemployed","","Status Unknown",0,0,0,0,0,"#NULL!","#NULL!","#NULL!","#NULL!","#NULL!","#NULL!","#NULL!","#NULL!","#NULL!","#NULL!",{"$error":"#NULL!"},"#NULL!","","#NULL!","No","Yes","0",9,"#NULL!","#NULL!",2,{"$error":"#NULL!"},"No",0,0,"#NULL!",""]
[362,"STA13","STA","Female",1,null,"Advanced Certificate in Tourism and Tour Guiding","Advanced Certificate","Yes","Yes",5,4,4,"Yes","Yes it was just right","Full time Employment","","Employed","No","Transportation and storage","Private","Zil Air","Customer Service Assistant",1,1,0,0,0,0,0,0,3,1,{"$error":"#NULL!"},"Just this 1","Less than 1 month","Always","#NULL!","#NULL!","","#NULL!","#NULL!","#NULL!","#NULL!",{"$error":"#NULL!"},"#NULL!",0,0,"#NULL!",""]
[363,"STA14","STA","Female",1,null,"Advanced Certificate in Tourism and Tour Guiding","Advanced Certificate","No","Yes",5,5,5,"Yes","Yes it was just right","Full time Employment","","Employed","No","Transportation and storage","Parastatal","Air Seychelles","Guest Service Agent",1,1,0,0,0,0,0,0,3,1,{"$error":"#NULL!"},"Just this 1","Less than 1 month","Always","#NULL!","#NULL!","","#NULL!","#NULL!","#NULL!","#NULL!",{"$error":"#NULL!"},"#NULL!",0,0,"#NULL!",""]
[364,"STA15","STA","Male",null,1,"Advanced Certificate in Tourism and Tour Guiding","Advanced Certificate","No","Yes",5,4,4,"Yes","Yes it was just right","Full time Employment","0","Employed","Yes","Arts, entertainment and recreation","Private","Cousin Nature Seychelles","Warden",1,1,0,0,0,0,0,0,3,4,{"$error":"#NULL!"},"Just this 1","Less than 1 month","Always","#NULL!","#NULL!","","#NULL!","#NULL!","#NULL!","#NULL!",{"$error":"#NULL!"},"#NULL!",0,0,"#NULL!",""]
[365,"STA16","STA","Female",1,null,"Advanced Certificate in Tourism and Tour Guiding","Advanced Certificate","Yes","Yes",5,5,5,"Yes","Yes it was just right","Further Studies","Overseas","Further Studies",0,0,0,0,0,"#NULL!","#NULL!","#NULL!","#NULL!","#NULL!","#NULL!","#NULL!","#NULL!","#NULL!","#NULL!",{"$error":"#NULL!"},"#NULL!","","#NULL!","#NULL!","#NULL!","","#NULL!","#NULL!","#NULL!","#NULL!",{"$error":"#NULL!"},"#NULL!",0,0,"#NULL!",""]
[366,"STA17","STA","Female",1,null,"Advanced Certificate in Tourism and Tour Guiding","Advanced Certificate","No","Yes",5,5,5,"Yes","Yes it was just right","Full time Employment","","Employed","No","Transportation and storage","Parastatal","Air Seychelles","Guest Service Agent",1,1,0,0,0,0,0,0,3,1,{"$error":"#NULL!"},"Just this 1","Less than 1 month","Always","#NULL!","#NULL!","","#NULL!","#NULL!","#NULL!","#NULL!",{"$error":"#NULL!"},"#NULL!",0,0,"#NULL!",""]
[367,"STA18","STA","Male",null,1,"Advanced Certificate in Tourism and Tour Guiding","Advanced Certificate","No","Yes",5,5,5,"Yes","Yes it was just right","Full time Employment","","Employed","No","Transportation and storage","Parastatal","Air Seychelles","Guest Service Agent",1,1,0,0,0,0,0,0,3,1,{"$error":"#NULL!"},"Just this 1","Less than 1 month","Always","#NULL!","#NULL!","","#NULL!","#NULL!","#NULL!","#NULL!",{"$error":"#NULL!"},"#NULL!",0,0,"#NULL!",""]
[368,"STA19","STA","Male",null,1,"Advanced Certificate in Tourism and Tour Guiding","Advanced Certificate","No","Yes",5,5,4,"Yes","Yes it was just right","Full time Employment","","Employed","No","Transportation and storage","Parastatal","Air Seychelles","Guest Service Agent",1,1,0,0,0,0,0,0,3,1,{"$error":"#NULL!"},"Just this 1","Less than 1 month","Always","#NULL!","#NULL!","","#NULL!","#NULL!","#NULL!","#NULL!",{"$error":"#NULL!"},"#NULL!",0,0,"#NULL!",""]
[369,"STA20","STA","Female",1,null,"Advanced Certificate in Tourism and Tour Guiding","Advanced Certificate","No","Yes",5,5,4,"Yes","Yes it was just right","Full time Employment","","Employed","No","Transportation and storage","Parastatal","Seychelles Civil Aviation Authority (SCAA)","Customer Service Assistant",1,1,0,0,0,0,0,0,4,4,{"$error":"#NULL!"},"Just this 1","More than 1 month","Always","#NULL!","#NULL!","","#NULL!","#NULL!","#NULL!","#NULL!",{"$error":"#NULL!"},"#NULL!",0,0,"#NULL!",""]
[370,"STA21","STA","Female",1,null,"Advanced Certificate in Tourism and Tour Guiding","Advanced Certificate","No","Yes",5,5,5,"Yes","Yes it was just right","Full time Employment","0","Employed","No","Administrative and support services activities","Private","Creole Travel Services","Reservation Agent",1,1,0,0,0,0,0,0,3,1,{"$error":"#NULL!"},"Just this 1","Less than 1 month","Always","#NULL!","#NULL!","","#NULL!","#NULL!","#NULL!","#NULL!",{"$error":"#NULL!"},"#NULL!",0,0,"#NULL!",""]
[371,"STA22","STA","Female",1,null,"Advanced Certificate in Tourism and Tour Guiding","Advanced Certificate","No","Yes",4,4,4,"Yes","Yes it was just right","Further Studies","overseas","Further Studies",0,0,0,0,0,"#NULL!","#NULL!","#NULL!","#NULL!","#NULL!","#NULL!","#NULL!","#NULL!","#NULL!","#NULL!",{"$error":"#NULL!"},"#NULL!","","#NULL!","#NULL!","#NULL!","","#NULL!","#NULL!","#NULL!","#NULL!",{"$error":"#NULL!"},"#NULL!",0,0,"#NULL!",""]
[372,"STA23","STA","Male",null,1,"Advanced Certificate in Tourism and Tour Guiding","Advanced Certificate","No","Yes",5,5,4,"Yes","Yes it was just right","Full time Employment","","Employed","Yes","Arts, entertainment and recreation","Private","Cousin Nature Seychelles","Warden",1,1,0,0,0,0,0,0,3,4,{"$error":"#NULL!"},"Just this 1","Less than 1 month","Always","#NULL!","#NULL!","","#NULL!","#NULL!","#NULL!","#NULL!",{"$error":"#NULL!"},"#NULL!",0,0,"#NULL!",""]
[373,"STA24","STA","Female",1,null,"Advanced Certificate in Tourism and Tour Guiding","Advanced Certificate","No","Yes",5,5,5,"Yes","Yes it was just right","Part time Employment","","Employed","Unknown","Unknown","Not Stated","Not Stated",0,"#NULL!","#NULL!","#NULL!","#NULL!","#NULL!","#NULL!","#NULL!","#NULL!","#NULL!","#NULL!",{"$error":"#NULL!"},"#NULL!","","#NULL!","#NULL!","#NULL!","","#NULL!","#NULL!","#NULL!","#NULL!",{"$error":"#NULL!"},"#NULL!",0,0,"#NULL!",""]
[374,"STA25","STA","Female",1,null,"Advanced Certificate in Tourism and Tour Guiding","Advanced Certificate","No","Yes",5,5,5,"Yes","Yes it was just right","Full time Employment","","Employed","No","Administrative and support services activities","Private","Creole Travel Services","Reservation Agent",1,1,0,0,0,0,0,0,3,4,{"$error":"#NULL!"},"Just this 1","Less than 1 month","Always","#NULL!","#NULL!","","#NULL!","#NULL!","#NULL!","#NULL!",{"$error":"#NULL!"},"#NULL!",0,0,"#NULL!",""]
[375,"STA26","STA","Female",1,null,"Advanced Certificate in Reception Operations and Services","Advanced Certificate","No","Yes",4,4,3,"Yes","Yes it was just right","Full time Employment","on probation","Employed","Yes","Accommodation and food service activities","Private","Constance Ephelia Resort","Reception Cashier",1,0,0,0,0,0,1,0,"#NULL!",5,{"$error":"#NULL!"},"Just this 1","Less than 1 month","Always","#NULL!","#NULL!","","#NULL!","#NULL!","#NULL!","#NULL!",{"$error":"#NULL!"},"#NULL!",0,0,"#NULL!",""]
[376,"STA27","STA","Female",1,null,"Advanced Certificate in Reception Operations and Services","Advanced Certificate","No","Not Stated",4,"#NULL!","#NULL!","Yes","Yes it was just right","Full time Employment","","Employed","Yes","Human health and social work activities","Private","PSM Dental Enterprise","Receptionist",1,1,0,0,0,0,0,0,"#NULL!",2,{"$error":"#NULL!"},"Just this 1","More than 1 month","Often","#NULL!","#NULL!","","#NULL!","#NULL!","#NULL!","#NULL!",{"$error":"#NULL!"},"#NULL!",0,0,"#NULL!",""]
[377,"STA28","STA","Female",1,null,"Advanced Certificate in Reception Operations and Services","Advanced Certificate","No","Yes",4,4,4,"Yes","Yes it was just right","Full time Employment","","Employed","Yes","Accommodation and food service activities","Private","Constance Ephelia Resort","Guest Relation Officer",1,1,0,0,0,0,0,0,"#NULL!",1,{"$error":"#NULL!"},"Just this 1","Less than 1 month","Always","#NULL!","#NULL!","","#NULL!","#NULL!","#NULL!","#NULL!",{"$error":"#NULL!"},"#NULL!",0,0,"#NULL!",""]
[378,"STA29","STA","Female",1,null,"Advanced Certificate in Reception Operations and Services","Advanced Certificate","Yes","Yes",5,1,1,"Yes","Yes it was just right","Unemployed","","Unemployed",0,0,0,0,0,"#NULL!","#NULL!","#NULL!","#NULL!","#NULL!","#NULL!","#NULL!","#NULL!","#NULL!","#NULL!",{"$error":"#NULL!"},"#NULL!","","#NULL!","Yes","#NULL!","",3,2,"No","#NULL!",{"$error":"#NULL!"},"Yes",0,0,"#NULL!",""]
[379,"STA30","STA","Female",1,null,"Advanced Certificate in Reception Operations and Services","Advanced Certificate","No","Yes",4,4,4,"Yes","Yes it was just right","Unemployed","","Status Unknown",0,0,0,0,0,"#NULL!","#NULL!","#NULL!","#NULL!","#NULL!","#NULL!","#NULL!","#NULL!","#NULL!","#NULL!",{"$error":"#NULL!"},"#NULL!","","#NULL!","No","No","0",3,"#NULL!","No",2,{"$error":"#NULL!"},"No",0,0,"#NULL!",""]
[380,"STA31","STA","Female",1,null,"Advanced Certificate in Reception Operations and Services","Advanced Certificate","No","Not Stated",4,4,4,"Yes","Yes it was just right","Full time Employment","","Employed","Yes","Accommodation and food service activities","Private","Crown Beach Hotel","Receptionist",1,1,0,0,0,0,0,0,2,1,{"$error":"#NULL!"},"Just this 1","Less than 1 month","Seldom","#NULL!","#NULL!","","#NULL!","#NULL!","#NULL!","#NULL!",{"$error":"#NULL!"},"#NULL!",0,0,"#NULL!",""]
[381,"STA32","STA","Female",1,null,"Advanced Certificate in Reception Operations and Services","Advanced Certificate","No","Yes",4,1,1,"Yes","Yes it was just right","Part time Employment","","Employed","Unknown","Unknown","Not Stated","Not Stated",0,"#NULL!","#NULL!","#NULL!","#NULL!","#NULL!","#NULL!","#NULL!","#NULL!","#NULL!","#NULL!",{"$error":"#NULL!"},"#NULL!","","#NULL!","#NULL!","#NULL!","","#NULL!","#NULL!","#NULL!","#NULL!",{"$error":"#NULL!"},"#NULL!",0,0,"#NULL!",""]
[382,"STA33","STA","Female",1,null,"Advanced Certificate in Reception Operations and Services","Advanced Certificate","No","Yes",5,5,5,"Yes","Yes it was just right","Full time Employment","","Employed","Yes","Accommodation and food service activities","Private","Hilton Seychelles Northholme Resort & Spa","Guest Experience Host (Concierge)",1,0,1,0,0,0,0,0,3,1,{"$error":"#NULL!"},"Just this 1","Less than 1 month","Always","#NULL!","#NULL!","","#NULL!","#NULL!","#NULL!","#NULL!",{"$error":"#NULL!"},"#NULL!",0,0,"#NULL!",""]
[383,"STA34","STA","Female",1,null,"Advanced Certificate in Reception Operations and Services","Advanced Certificate","No","Yes",5,4,4,"Yes","Yes it was just right","Unemployed","","Unemployed",0,0,0,0,0,"#NULL!","#NULL!","#NULL!","#NULL!","#NULL!","#NULL!","#NULL!","#NULL!","#NULL!","#NULL!",{"$error":"#NULL!"},"#NULL!","","#NULL!","Yes","No","0",1,1,"Yes",4,{"$error":"#NULL!"},"Yes",0,0,"#NULL!",""]
[384,"STA35","STA","Female",1,null,"Advanced Certificate in Reception Operations and Services","Advanced Certificate","No","Yes",5,4,1,"Yes","Yes it was just right","Full time Employment","","Employed","Yes","Administrative and support services activities","Parastatal","IDC","O/A Secretary",1,0,0,0,0,1,0,0,3,4,{"$error":"#NULL!"},"Just this 1","Less than 1 month","Often","No","No","0",1,1,"Yes","#NULL!",{"$error":"#NULL!"},"No",0,0,"#NULL!",""]
[385,"STA36","STA","Female",1,null,"Advanced Certificate in Reception Operations and Services","Advanced Certificate","No","Yes",4,4,4,"Yes","Yes it was just right","Full time Employment","0","Employed","Yes","Transportation and storage","Parastatal","Seychelles Civil Aviation Authority (SCAA)","Customer Service Office",1,0,1,0,0,0,0,0,5,5,{"$error":"#NULL!"},"Just this 1","Less than 1 month","Always","#NULL!","#NULL!","","#NULL!","#NULL!","#NULL!","#NULL!",{"$error":"#NULL!"},"#NULL!",0,0,"#NULL!",""]
[386,"STA37","STA","Female",1,null,"Advanced Certificate in Reception Operations and Services","Advanced Certificate","No","Yes",5,5,1,"Yes","Yes it was just right","Unemployed","0","Status Unknown",0,0,0,0,0,"#NULL!","#NULL!","#NULL!","#NULL!","#NULL!","#NULL!","#NULL!","#NULL!","#NULL!","#NULL!",{"$error":"#NULL!"},"#NULL!","","#NULL!","No","No","0",3,1,"No",2,{"$error":"#NULL!"},"No",0,0,"#NULL!",""]
[387,"STA38","STA","Female",1,null,"Advanced Certificate in Reception Operations and Services","Advanced Certificate","Yes","Yes",5,5,1,"Yes","Yes it was just right","Unemployed","","Status Unknown",0,0,0,0,0,"#NULL!","#NULL!","#NULL!","#NULL!","#NULL!","#NULL!","#NULL!","#NULL!","#NULL!","#NULL!",{"$error":"#NULL!"},"#NULL!","","#NULL!","No","Yes","0",9,"#NULL!","#NULL!",9,"Thinking of going on further studies","No",0,0,"#NULL!",""]
[388,"STA39","STA","Female",1,null,"Advanced Certificate in Reception Operations and Services","Advanced Certificate","No","Yes",5,5,1,"Yes","Yes it was just right","Full time Employment","0","Employed","Yes","Accommodation and food service activities","Private","Constance Ephelia Resort","Guest Relations Officer",1,1,0,0,0,0,0,0,4,1,{"$error":"#NULL!"},"Just this 1","Less than 1 month","Always","#NULL!","#NULL!","","#NULL!","#NULL!","#NULL!","#NULL!",{"$error":"#NULL!"},"#NULL!",0,0,"#NULL!",""]
[389,"STA40","STA","Female",1,null,"Advanced Certificate in Reception Operations and Services","Advanced Certificate","No","Yes",5,5,1,"Yes","Yes it was just right","Unemployed","","Unemployed",0,0,0,0,0,"#NULL!","#NULL!","#NULL!","#NULL!","#NULL!","#NULL!","#NULL!","#NULL!","#NULL!","#NULL!",{"$error":"#NULL!"},"#NULL!","","#NULL!","Yes","Yes","0",3,1,"Yes",9,"Thinking of going on further studies","Yes",0,0,"#NULL!",""]
[390,"STA41","STA","Female",1,null,"Advanced Certificate in Reception Operations and Services","Advanced Certificate","No","Yes",4,4,1,"#NULL!","Yes it was just right","Unemployed","0","Status Unknown",0,0,0,0,0,"#NULL!","#NULL!","#NULL!","#NULL!","#NULL!","#NULL!","#NULL!","#NULL!","#NULL!","#NULL!",{"$error":"#NULL!"},"#NULL!","","#NULL!","No","Yes","0",3,"#NULL!","#NULL!",2,{"$error":"#NULL!"},"No",0,0,"#NULL!",""]
[391,"STA42","STA","Female",1,null,"Advanced Certificate in Reception Operations and Services","Advanced Certificate","No","Yes",5,5,4,"Yes","Yes it was just right","Full time Employment","0","Employed","Yes","Accommodation and food service activities","Private","Raffles Hotel","Service Agent",1,1,0,0,0,0,0,0,3,1,{"$error":"#NULL!"},"Just this 1","Less than 1 month","Always","#NULL!","#NULL!","","#NULL!","#NULL!","#NULL!","#NULL!",{"$error":"#NULL!"},"#NULL!",0,0,"#NULL!",""]
[392,"STA43","STA","Female",1,null,"Advanced Certificate in Reception Operations and Services","Advanced Certificate","No","Yes",5,5,1,"Yes","Yes it was just right","Full time Employment","","Employed","Yes","Administrative and support services activities","Private","7° South","Operations Assistant",1,1,0,0,0,0,0,0,3,4,{"$error":"#NULL!"},"Just this 1","More than 1 month","Always","#NULL!","#NULL!","","#NULL!","#NULL!","#NULL!","#NULL!",{"$error":"#NULL!"},"#NULL!",0,0,"#NULL!",""]
[393,"STA44","STA","Female",1,null,"Advanced Certificate in Reception Operations and Services","Advanced Certificate","No","Yes",5,5,1,"Yes","Yes it was just right","Unemployed","0","Status Unknown",0,0,0,0,0,"#NULL!","#NULL!","#NULL!","#NULL!","#NULL!","#NULL!","#NULL!","#NULL!","#NULL!","#NULL!",{"$error":"#NULL!"},"#NULL!","","#NULL!","No","Yes","0",3,"#NULL!","No",2,{"$error":"#NULL!"},"No",0,0,"#NULL!",""]
[394,"STA45","STA","Female",1,null,"Advanced Certificate in Reception Operations and Services","Advanced Certificate","No","Yes",4,4,4,"Yes","Yes it was just right","Full time Employment","","Employed","Yes","Transportation and storage","Parastatal","Air Seychelles","Guest Service Agent",1,1,0,0,0,0,0,0,3,4,{"$error":"#NULL!"},"Just this 1","Less than 1 month","#NULL!","#NULL!","#NULL!","","#NULL!","#NULL!","#NULL!","#NULL!",{"$error":"#NULL!"},"#NULL!",0,0,"#NULL!",""]
[395,"STA46","STA","Female",1,null,"Advanced Certificate in Reception Operations and Services","Advanced Certificate","No","Yes",5,5,4,"Yes","Yes it was just right","Full time Employment","0","Employed","Yes","Information and communication","Private","Print House","Front Office Assistant",1,1,0,0,0,0,0,0,3,4,{"$error":"#NULL!"},"Just this 1","Less than 1 month","Always","#NULL!","#NULL!","","#NULL!","#NULL!","#NULL!","#NULL!",{"$error":"#NULL!"},"#NULL!",0,0,"#NULL!",""]
[396,"STA47","STA","Male",null,1,"Advanced Certificate in Reception Operations and Services","Advanced Certificate","No","Yes",5,5,1,"Yes","Yes it was just right","Full time Employment","0","Employed","Yes","Accommodation and food service activities","Private","Banyan Tree Resort","Resort Host",1,1,0,0,0,0,0,0,4,1,{"$error":"#NULL!"},"Just this 1","Less than 1 month","Always","#NULL!","#NULL!","","#NULL!","#NULL!","#NULL!","#NULL!",{"$error":"#NULL!"},"#NULL!",0,0,"#NULL!",""]
[397,"STA48","STA","Female",1,null,"Advanced Certificate in Reception Operations and Services","Advanced Certificate","No","Yes",5,5,1,"Yes","Yes it was just right","Full time Employment","0","Employed","Yes","Accommodation and food service activities","Private","Paradise Sun Resort","Guest Relations Officer",1,1,0,0,0,0,0,0,4,4,{"$error":"#NULL!"},"Just this 1","Less than 1 month","Always","#NULL!","#NULL!","","#NULL!","#NULL!","#NULL!","#NULL!",{"$error":"#NULL!"},"#NULL!",0,0,"#NULL!",""]
[398,"STA49","STA","Female",1,null,"Advanced Certificate in Reception Operations and Services","Advanced Certificate","Yes","Yes",4,4,3,"Yes","Yes it was just right","Unemployed","0","Status Unknown",0,0,0,0,0,"#NULL!","#NULL!","#NULL!","#NULL!","#NULL!","#NULL!","#NULL!","#NULL!","#NULL!","#NULL!",{"$error":"#NULL!"},"#NULL!","","#NULL!","No","Yes","0",3,"#NULL!","#NULL!",2,{"$error":"#NULL!"},"No",0,0,"#NULL!",""]
[399,"STA50","STA","Female",1,null,"Advanced Certificate in Reception Operations and Services","Advanced Certificate","No","Yes",4,4,2,"Yes","Yes it was just right","Full time Employment","0","Employed","Yes","Administrative and support services activities","Private","Pilgrims Security","Dispatcher",2,0,1,0,0,0,0,0,2,4,{"$error":"#NULL!"},"Just this 1","More than 1 month","Seldom","#NULL!","#NULL!","","#NULL!","#NULL!","#NULL!","#NULL!",{"$error":"#NULL!"},"#NULL!",0,0,"#NULL!",""]
[400,"STA51","STA","Male",null,1,"Advanced Certificate in Restaurant and Bar","Advanced Certificate","No","Yes",4,4,4,"Yes","Yes it was just right","Full time Employment","","Employed","Yes","Accommodation and food service activities","Private","Banyan Tree Resort","Bartender",1,1,0,0,0,0,0,0,5,1,{"$error":"#NULL!"},"Just this 1",null,"Always","#NULL!","#NULL!","","#NULL!","#NULL!","#NULL!","#NULL!",{"$error":"#NULL!"},"#NULL!",0,0,"#NULL!",""]
[401,"STA52","STA","Female",1,null,"Advanced Certificate in Restaurant and Bar","Advanced Certificate","No","Yes",5,5,5,"Yes","Yes it was just right","Further Studies","0","Further Studies",0,0,0,0,0,"#NULL!","#NULL!","#NULL!","#NULL!","#NULL!","#NULL!","#NULL!","#NULL!","#NULL!","#NULL!",{"$error":"#NULL!"},"#NULL!","","#NULL!","#NULL!","#NULL!","","#NULL!","#NULL!","#NULL!","#NULL!",{"$error":"#NULL!"},"#NULL!","Social Work","National Institute of Health and Social Studies (NIHSS)",3,""]
[402,"STA53","STA","Female",1,null,"Advanced Certificate in Restaurant and Bar","Advanced Certificate","No","Yes",4,4,4,"Yes","Yes it was just right","Full time Employment","0","Employed","Yes","Accommodation and food service activities","Private","Carana Beach ","Waitress",1,1,0,0,0,0,0,0,3,1,{"$error":"#NULL!"},"Just this 1","Less than 1 month","Always","#NULL!","#NULL!","","#NULL!","#NULL!","#NULL!","#NULL!",{"$error":"#NULL!"},"#NULL!",0,0,"#NULL!",""]
[403,"STA54","STA","Female",1,null,"Advanced Certificate in Restaurant and Bar","Advanced Certificate","No","No",4,3,2,"Yes","Yes it was just right","Further Studies","0","Further Studies",0,0,0,0,0,"#NULL!","#NULL!","#NULL!","#NULL!","#NULL!","#NULL!","#NULL!","#NULL!","#NULL!","#NULL!",{"$error":"#NULL!"},"#NULL!","","#NULL!","#NULL!","#NULL!","","#NULL!","#NULL!","#NULL!","#NULL!",{"$error":"#NULL!"},"#NULL!","Wellness and Spa","Seychelles Tourism Academy (STA)",1,""]
[404,"STA55","STA","Male",null,1,"Advanced Certificate in Restaurant and Bar","Advanced Certificate","No","Yes",1,1,1,"Yes","No, I should have learned something else","Full time Employment","0","Employed","Yes","Accommodation and food service activities","Private","Banyan Tree Resort","Waiter",1,1,0,0,0,0,0,0,2,1,{"$error":"#NULL!"},"Just this 1","Less than 1 month","Often","#NULL!","#NULL!","","#NULL!","#NULL!","#NULL!","#NULL!",{"$error":"#NULL!"},"#NULL!",0,0,"#NULL!",""]
[405,"STA56","STA","Male",null,1,"Advanced Certificate in Restaurant and Bar","Advanced Certificate","No","No",5,"#NULL!","#NULL!","Yes","Yes it was just right","Full time Employment","0","Employed","Yes","Accommodation and food service activities","Private","Havana Eden Island","Barman and Waiter",1,1,0,0,0,0,0,0,2,5,{"$error":"#NULL!"},"#NULL!","Less than 1 month","Always","#NULL!","#NULL!","","#NULL!","#NULL!","#NULL!","#NULL!",{"$error":"#NULL!"},"#NULL!",0,0,"#NULL!",""]
[406,"STA57","STA","Male",null,1,"Advanced Certificate in Restaurant and Bar","Advanced Certificate","No","No",4,1,4,"Yes","I do not know","Unemployed","0","Unemployed",0,0,0,0,0,"#NULL!","#NULL!","#NULL!","#NULL!","#NULL!","#NULL!","#NULL!","#NULL!","#NULL!","#NULL!",{"$error":"#NULL!"},"#NULL!","","#NULL!","Yes","No","0",3,2,"Yes",4,{"$error":"#NULL!"},"Yes",0,0,"#NULL!",""]
[407,"STA58","STA","Female",1,null,"Advanced Certificate in Restaurant and Bar","Advanced Certificate","No","Yes",4,4,4,"Yes","Yes it was just right","Full time Employment","0","Employed","Yes","Accommodation and food service activities","Private","Skychef Servair","Sales Assistant /Waitress",1,1,0,0,0,0,0,0,2,4,{"$error":"#NULL!"},"between 2 to 5","Less than 1 month","Always","#NULL!","#NULL!","","#NULL!","#NULL!","#NULL!","#NULL!",{"$error":"#NULL!"},"#NULL!",0,0,"#NULL!",""]
[408,"STA59","STA","Female",1,null,"Advanced Certificate in Restaurant and Bar","Advanced Certificate","Yes","Yes",5,5,4,"Yes","Yes it was just right","Short term contract","0","Employed","No","Human health and social work activities","Private","Vision Care","Customer Servive",0,0,0,0,1,0,0,0,2,4,{"$error":"#NULL!"},"between 2 to 5","Less than 1 month","Often","#NULL!","#NULL!","","#NULL!","#NULL!","#NULL!","#NULL!",{"$error":"#NULL!"},"#NULL!",0,0,"#NULL!",""]
[409,"STA60","STA","Female",1,null,"Advanced Certificate in Restaurant and Bar","Advanced Certificate","No","No",4,4,4,"Yes","Yes it was just right","Unemployed","0","Status Unknown",0,0,0,0,0,0,"#NULL!","#NULL!","#NULL!","#NULL!","#NULL!","#NULL!","#NULL!","#NULL!","#NULL!",{"$error":"#NULL!"},"#NULL!","","#NULL!","No","No","0",3,1,"Yes",4,{"$error":"#NULL!"},"No",0,0,"#NULL!",""]
[410,"STA61","STA","Male",null,1,"Advanced Certificate in Restaurant and Bar","Advanced Certificate","Yes","Yes",4,4,4,"Yes","Yes it was just right","Full time Employment","0","Employed","Yes","Accommodation and food service activities","Private","Domaine de La Reserve","Barman",1,0,0,0,0,1,0,0,2,1,{"$error":"#NULL!"},"Just this 1","Less than 1 month","Always","#NULL!","#NULL!","","#NULL!","#NULL!","#NULL!","#NULL!",{"$error":"#NULL!"},"#NULL!",0,0,"#NULL!",""]
[411,"STA62","STA","Female",1,null,"Advanced Certificate in Restaurant and Bar","Advanced Certificate","No","Yes",5,5,5,"Yes","Yes it was just right","Full time Employment","","Employed","No","Unknown","Not Stated","Not Stated",0,"#NULL!","#NULL!","#NULL!","#NULL!","#NULL!","#NULL!","#NULL!","#NULL!","#NULL!","#NULL!",{"$error":"#NULL!"},"#NULL!","","#NULL!","#NULL!","#NULL!","","#NULL!","#NULL!","#NULL!","#NULL!",{"$error":"#NULL!"},"#NULL!",0,0,"#NULL!",""]
[412,"STA63","STA","Male",null,1,"Advanced Certificate in Restaurant and Bar","Advanced Certificate","No","Yes",5,5,4,"Yes","Yes it was just right","Full time Employment","0","Employed","Yes","Accommodation and food service activities","Private","Kapatya Restaurant","Waiter",1,1,0,0,0,0,0,0,3,4,{"$error":"#NULL!"},"Just this 1","Less than 1 month","Always","#NULL!","#NULL!","","#NULL!","#NULL!","#NULL!","#NULL!",{"$error":"#NULL!"},"#NULL!",0,0,"#NULL!",""]
[413,"STA64","STA","Female",1,null,"Advanced Certificate in Restaurant and Bar","Advanced Certificate","No","Yes",4,4,3,"Yes","Yes it was just right","Full time Employment","0","Employed","No","Financial and insurance activities","Private","Mauritius Commercial Bank","Teller",2,0,1,0,0,0,0,0,3,4,{"$error":"#NULL!"},"Just this 1","Less than 1 month","Seldom","#NULL!","#NULL!","","#NULL!","#NULL!","#NULL!","#NULL!",{"$error":"#NULL!"},"#NULL!",0,0,"#NULL!",""]
[414,"STA65","STA","Female",1,null,"Advanced Certificate in Restaurant and Bar","Advanced Certificate","No","Yes",5,5,4,"Yes","Yes it was just right","Full time Employment","0","Employed","Yes","Accommodation and food service activities","Private","Constance Ephelia Resort","Waitress",1,1,0,0,0,0,0,0,3,1,{"$error":"#NULL!"},"Just this 1","Less than 1 month","Always","#NULL!","#NULL!","","#NULL!","#NULL!","#NULL!","#NULL!",{"$error":"#NULL!"},"#NULL!",0,0,"#NULL!",""]
[415,"STA66","STA","Female",1,null,"Advanced Certificate in Restaurant and Bar","Advanced Certificate","No","Yes",5,5,4,"Yes","Yes it was just right","Full time Employment","0","Employed","Yes","Accommodation and food service activities","Private","Coral Strand Hotel","Waitress",1,1,0,0,0,0,0,0,3,4,{"$error":"#NULL!"},"Just this 1","Less than 1 month","Always","#NULL!","#NULL!","","#NULL!","#NULL!","#NULL!","#NULL!",{"$error":"#NULL!"},"#NULL!",0,0,"#NULL!",""]
[416,"STA67","STA","Male",null,1,"Advanced Certificate in Restaurant and Bar","Advanced Certificate","No","Yes",4,4,1,"Yes","Yes it was just right","Full time Employment","0","Employed","No","Transportation and storage","Parastatal","Air Seychelles","Guest Service Agent",1,0,1,0,0,0,0,0,3,4,{"$error":"#NULL!"},"Just this 1","Less than 1 month","Seldom","#NULL!","#NULL!","","#NULL!","#NULL!","#NULL!","#NULL!",{"$error":"#NULL!"},"#NULL!",0,0,"#NULL!",""]
[417,"STA68","STA","Female",1,null,"Advanced Certificate in Restaurant and Bar","Advanced Certificate","No","Yes",4,4,3,"Yes","Yes it was just right","Full time Employment","0","Employed","Yes","Accommodation and food service activities","Private","Six Senses Resort","Waitress",1,1,0,0,0,0,0,0,3,1,{"$error":"#NULL!"},"Just this 1","Less than 1 month","Always","#NULL!","#NULL!","","#NULL!","#NULL!","#NULL!","#NULL!",{"$error":"#NULL!"},"#NULL!",0,0,"#NULL!",""]
[418,"STA69","STA","Female",1,null,"Advanced Certificate in Restaurant and Bar","Advanced Certificate","No","Yes",4,4,1,"Yes","Yes it was just right","Unemployed","0","Unemployed",0,0,0,0,0,"#NULL!","#NULL!","#NULL!","#NULL!","#NULL!","#NULL!","#NULL!","#NULL!","#NULL!","#NULL!",{"$error":"#NULL!"},"#NULL!","","#NULL!","Yes","Yes","0",3,2,"Yes","#NULL!",{"$error":"#NULL!"},"Yes",0,0,"#NULL!",""]
[419,"STA70","STA","Female",1,null,"Advanced Certificate in Restaurant and Bar","Advanced Certificate","No","Yes",4,4,4,"Yes","Yes it was just right","Full time Employment","0","Employed","Yes","Accommodation and food service activities","Private","Le Repaire Restaurant","Waitress",1,1,0,0,0,0,0,0,2,1,{"$error":"#NULL!"},"Just this 1","Less than 1 month","Always","#NULL!","#NULL!","","#NULL!","#NULL!","#NULL!","#NULL!",{"$error":"#NULL!"},"#NULL!",0,0,"#NULL!",""]
[420,"STA71","STA","Male",null,1,"Advanced Certificate in Food Preparation and Culinary Arts","Advanced Certificate","Yes","Yes",4,5,4,"Yes","Yes it was just right","Full time Employment","0","Employed","Yes","Accommodation and food service activities","Private","News Café","Chef",1,0,1,0,0,0,0,0,2,4,{"$error":"#NULL!"},"Just this 1","More than 1 month","Often","#NULL!","#NULL!","","#NULL!","#NULL!","#NULL!","#NULL!",{"$error":"#NULL!"},"#NULL!",0,0,"#NULL!",""]
[421,"STA72","STA","Male",null,1,"Advanced Certificate in Food Preparation and Culinary Arts","Advanced Certificate","No","Yes",4,4,4,"Yes","Yes it was just right","Full time Employment","0","Employed","Yes","Accommodation and food service activities","Private","Hilton Seychelles Northholme Resort & Spa","Commis",1,0,1,0,0,0,0,0,3,1,{"$error":"#NULL!"},"between 2 to 5","Less than 1 month","Always","#NULL!","#NULL!","","#NULL!","#NULL!","#NULL!","#NULL!",{"$error":"#NULL!"},"#NULL!",0,0,"#NULL!",""]
[422,"STA73","STA","Male",null,1,"Advanced Certificate in Food Preparation and Culinary Arts","Advanced Certificate","No","Yes",4,4,4,"Yes","Yes it was just right","Full time Employment","0","Employed","Yes","Accommodation and food service activities","Private","Fregate Island Private","Commis",2,1,0,0,0,0,0,0,3,1,{"$error":"#NULL!"},"Just this 1","Less than 1 month","Always","#NULL!","#NULL!","","#NULL!","#NULL!","#NULL!","#NULL!",{"$error":"#NULL!"},"#NULL!",0,0,"#NULL!",""]
[423,"STA74","STA","Male",null,1,"Advanced Certificate in Food Preparation and Culinary Arts","Advanced Certificate","No","No",4,1,4,"Yes","Yes it was just right","Full time Employment","0","Employed","Yes","Accommodation and food service activities","Private","Constance Lemuria","Commis 1",2,0,1,0,0,0,0,0,1,1,{"$error":"#NULL!"},"Just this 1","Less than 1 month","Often","#NULL!","#NULL!","","#NULL!","#NULL!","#NULL!","#NULL!",{"$error":"#NULL!"},"#NULL!",0,0,"#NULL!",""]
[424,"STA75","STA","Female",1,null,"Advanced Certificate in Food Preparation and Culinary Arts","Advanced Certificate","No","Yes",4,4,4,"Yes","Yes it was just right","Full time Employment","0","Employed","Yes","Accommodation and food service activities","Private","Eden Bleu Hotel","Commis",1,1,0,0,0,0,0,0,3,4,{"$error":"#NULL!"},"Just this 1","Less than 1 month","Always","#NULL!","#NULL!","","#NULL!","#NULL!","#NULL!","#NULL!",{"$error":"#NULL!"},"#NULL!",0,0,"#NULL!",""]
[425,"STA76","STA","Female",1,null,"Advanced Certificate in Food Preparation and Culinary Arts","Advanced Certificate","No","Yes",4,4,4,"Yes","Yes it was just right","Full time Employment","0","Employed","Yes","Manufacturing","Private","Glorious Bakery","Commis Baker",1,1,0,0,0,0,0,0,2,4,{"$error":"#NULL!"},"Just this 1","Less than 1 month","Always","#NULL!","#NULL!","","#NULL!","#NULL!","#NULL!","#NULL!",{"$error":"#NULL!"},"#NULL!",0,0,"#NULL!",""]
[426,"STA77","STA","Male",null,1,"Advanced Certificate in Food Preparation and Culinary Arts","Advanced Certificate","No","Yes",5,5,4,"Yes","Yes it was just right","Full time Employment","0","Employed","Yes","Accommodation and food service activities","Private","Raffles Hotel","Commis",1,1,0,0,0,0,0,0,3,1,{"$error":"#NULL!"},"Just this 1","Less than 1 month","Always","#NULL!","#NULL!","","#NULL!","#NULL!","#NULL!","#NULL!",{"$error":"#NULL!"},"#NULL!",0,0,"#NULL!",""]
[427,"STA78","STA","Female",1,null,"Advanced Certificate in Food Preparation and Culinary Arts","Advanced Certificate","No","Yes",4,4,4,"Yes","Yes it was just right","Full time Employment","0","Employed","Yes","Accommodation and food service activities","Private","Six Senses Resort","Commis Pastry",1,1,0,0,0,0,0,0,3,1,{"$error":"#NULL!"},"Just this 1","Less than 1 month","Always","#NULL!","#NULL!","","#NULL!","#NULL!","#NULL!","#NULL!",{"$error":"#NULL!"},"#NULL!",0,0,"#NULL!",""]
[428,"STA79","STA","Female",1,null,"Advanced Certificate in Food Preparation and Culinary Arts","Advanced Certificate","No","Yes",5,5,4,"Yes","Yes it was just right","Full time Employment","0","Employed","Yes","Accommodation and food service activities","Private","Eden Bleu Hotel","Commis",1,1,0,0,0,0,0,0,3,4,{"$error":"#NULL!"},"Just this 1","Less than 1 month","Always","#NULL!","#NULL!","","#NULL!","#NULL!","#NULL!","#NULL!",{"$error":"#NULL!"},"#NULL!",0,0,"#NULL!",""]
[429,"STA80","STA","Male",null,1,"Advanced Certificate in Food Preparation and Culinary Arts","Advanced Certificate","No","Yes",5,5,4,"Yes","Yes it was just right","Full time Employment","0","Employed","Yes","Accommodation and food service activities","Private","Coral Strand Hotel","Commis",1,1,0,0,0,0,0,0,2,1,{"$error":"#NULL!"},"Just this 1","Less than 1 month","Always","#NULL!","#NULL!","","#NULL!","#NULL!","#NULL!","#NULL!",{"$error":"#NULL!"},"#NULL!",0,0,"#NULL!",""]
[430,"STA81","STA","Female",1,null,"Advanced Certificate in Food Preparation and Culinary Arts","Advanced Certificate","No","Yes",5,5,4,"Yes","Yes it was just right","Full time Employment","0","Employed","Yes","Accommodation and food service activities","Private","Four Seasons Resort and Spa","Commis",1,1,0,0,0,0,0,0,3,1,{"$error":"#NULL!"},"Just this 1","Less than 1 month","Always","#NULL!","#NULL!","","#NULL!","#NULL!","#NULL!","#NULL!",{"$error":"#NULL!"},"#NULL!",0,0,"#NULL!",""]
[431,"STA82","STA","Male",null,1,"Advanced Certificate in Food Preparation and Culinary Arts","Advanced Certificate","No","Yes",5,5,4,"Yes","Yes it was just right","Full time Employment","0","Employed","Yes","Accommodation and food service activities","Private","Eden Bleu Hotel","Commis",1,1,0,0,0,0,0,0,3,4,{"$error":"#NULL!"},"Just this 1","Less than 1 month","Always","#NULL!","#NULL!","","#NULL!","#NULL!","#NULL!","#NULL!",{"$error":"#NULL!"},"#NULL!",0,0,"#NULL!",""]
[432,"STA83","STA","Male",null,1,"Advanced Certificate in Food Preparation and Culinary Arts","Advanced Certificate","Yes","Yes",5,5,5,"Yes","Yes it was just right","Full time Employment",null,"Employed","Yes","Manufacturing","Private","Simple Delight Bakery","Chef",1,1,0,0,0,0,0,0,4,5,null,"Just this 1","Less than 1 month","Always",null,null,null,null,null,null,null,null,null,0,0]
[433,"STA84","STA","Male",null,1,"Advanced Certificate in Food Preparation and Culinary Arts","Advanced Certificate","No","Yes",5,5,5,"Yes","Yes it was just right","Full time Employment","0","Employed","Yes","Arts, entertainment and recreation","Private","Yatch","Cook",1,1,0,0,0,0,0,0,4,5,{"$error":"#NULL!"},"Just this 1","Less than 1 month","Always","#NULL!","#NULL!","","#NULL!","#NULL!","#NULL!","#NULL!",{"$error":"#NULL!"},"#NULL!",0,0,"#NULL!",""]
[434,"STA85","STA","Male",null,1,"Advanced Certificate in Food Preparation and Culinary Arts","Advanced Certificate","No","Yes",5,5,5,"Yes","Yes it was just right","Full time Employment","0","Employed","Yes","Accommodation and food service activities","Private","Sunset Café and Trattoria","Chef",1,1,0,0,0,0,0,0,4,1,{"$error":"#NULL!"},"Just this 1","Less than 1 month","Always","#NULL!","#NULL!","","#NULL!","#NULL!","#NULL!","#NULL!",{"$error":"#NULL!"},"#NULL!",0,0,"#NULL!",""]
[435,"STA86","STA","Male",null,1,"Advanced Certificate in Food Preparation and Culinary Arts","Advanced Certificate","Yes","Yes",5,5,4,"Yes","Yes it was just right","Full time Employment","0","Employed","Yes","Accommodation and food service activities","Private","Allamanda Hotel","Commis",1,1,0,0,0,0,0,0,3,4,{"$error":"#NULL!"},"Just this 1","Less than 1 month","Always","#NULL!","#NULL!","","#NULL!","#NULL!","#NULL!","#NULL!",{"$error":"#NULL!"},"#NULL!",0,0,"#NULL!",""]
[436,"STA87","STA","Female",1,null,"Advanced Certificate in Food Preparation and Culinary Arts","Advanced Certificate","Yes","Yes",5,5,5,"Yes","Yes it was just right","Unemployed","0","Status Unknown",0,0,0,0,0,"#NULL!","#NULL!","#NULL!","#NULL!","#NULL!","#NULL!","#NULL!","#NULL!","#NULL!","#NULL!",{"$error":"#NULL!"},"#NULL!","","#NULL!","No","Yes","0",9,"#NULL!","#NULL!",2,{"$error":"#NULL!"},"No",0,0,"#NULL!",""]
[437,"STA88","STA","Female",1,null,"Advanced Certificate in Food Preparation and Culinary Arts","Advanced Certificate","No","Yes",5,5,5,"Yes","Yes it was just right","Full time Employment","0","Employed","Yes","Accommodation and food service activities","Private","Banyan Tree Resort","Commis",1,1,0,0,0,0,0,0,3,1,{"$error":"#NULL!"},"Just this 1","Less than 1 month","Always","#NULL!","#NULL!","","#NULL!","#NULL!","#NULL!","#NULL!",{"$error":"#NULL!"},"#NULL!",0,0,"#NULL!",""]
[438,"STA89","STA","Male",null,1,"Advanced Certificate in Food Preparation and Culinary Arts","Advanced Certificate","No","Yes",5,5,4,"Yes","Yes it was just right","Full time Employment","0","Employed","Yes","Accommodation and food service activities","Private","News Café","Cook",1,1,0,0,0,0,0,0,3,4,{"$error":"#NULL!"},"Just this 1","Less than 1 month","Always","#NULL!","#NULL!","","#NULL!","#NULL!","#NULL!","#NULL!",{"$error":"#NULL!"},"#NULL!",0,0,"#NULL!",""]
[439,"STA90","STA","Female",1,null,"Advanced Certificate in Food Preparation and Culinary Arts","Advanced Certificate","No","Yes",4,4,4,"Yes","Yes it was just right","Full time Employment","0","Employed","Yes","Manufacturing","Private","Glorious Bakery","Baker",1,1,0,0,0,0,0,0,2,4,{"$error":"#NULL!"},"between 2 to 5","More than 1 month","Always","#NULL!","#NULL!","","#NULL!","#NULL!","#NULL!","#NULL!",{"$error":"#NULL!"},"#NULL!",0,0,"#NULL!",""]
[440,"STA91","STA","Female",1,null,"Advanced Certificate in Wellness and Spa","Advanced Certificate","Yes","Yes",5,1,4,"Yes","Yes it was just right","Part time Employment","0","Employed","No","Unknown","Not Stated","Not Stated",0,"#NULL!","#NULL!","#NULL!","#NULL!","#NULL!","#NULL!","#NULL!","#NULL!","#NULL!","#NULL!",{"$error":"#NULL!"},"#NULL!","","#NULL!","#NULL!","#NULL!","","#NULL!","#NULL!","#NULL!","#NULL!",{"$error":"#NULL!"},"#NULL!",0,0,"#NULL!",""]
[441,"STA92","STA","Female",1,null,"Advanced Certificate in Wellness and Spa","Advanced Certificate","No","Yes",4,4,4,"Yes","Yes it was just right","Full time Employment","0","Employed","Yes","Other service activities","Private","Anna's Spa","Therapist",1,1,0,0,0,0,0,0,"#NULL!",4,{"$error":"#NULL!"},"Just this 1","Less than 1 month","Always","#NULL!","#NULL!","","#NULL!","#NULL!","#NULL!","#NULL!",{"$error":"#NULL!"},"#NULL!",0,0,"#NULL!",""]
[442,"STA93","STA","Female",1,null,"Advanced Certificate in Wellness and Spa","Advanced Certificate","No","Yes",4,1,4,"Yes","Yes it was just right","Unemployed","0","Unemployed",0,0,0,0,0,"#NULL!","#NULL!","#NULL!","#NULL!","#NULL!","#NULL!","#NULL!","#NULL!","#NULL!","#NULL!",{"$error":"#NULL!"},"#NULL!","","#NULL!","Yes","Yes","0",3,2,"Yes",5,{"$error":"#NULL!"},"Yes",0,0,"#NULL!",""]
[443,"STA94","STA","Female",1,null,"Advanced Certificate in Wellness and Spa","Advanced Certificate","No","Yes",4,4,4,"Yes","Yes it was just right","Full time Employment","0","Employed","Yes","Other service activities","Private","Tranquility Spa","Therapist",1,1,0,0,0,0,0,0,"#NULL!",1,{"$error":"#NULL!"},"Just this 1","Less than 1 month","Always","#NULL!","#NULL!","","#NULL!","#NULL!","#NULL!","#NULL!",{"$error":"#NULL!"},"#NULL!",0,0,"#NULL!",""]
[444,"STA95","STA","Female",1,null,"Advanced Certificate in Wellness and Spa","Advanced Certificate","No","Yes",1,1,1,"Yes","Yes it was just right","Further Studies","0","Further Studies",0,0,0,0,0,"#NULL!","#NULL!","#NULL!","#NULL!","#NULL!","#NULL!","#NULL!","#NULL!","#NULL!","#NULL!",{"$error":"#NULL!"},"#NULL!","","#NULL!","#NULL!","#NULL!","","#NULL!","#NULL!","#NULL!","#NULL!",{"$error":"#NULL!"},"#NULL!",0,"National Institute of Health and Social Studies (NIHSS)",4,""]
[445,"STA96","STA","Female",1,null,"Advanced Certificate in Wellness and Spa","Advanced Certificate","Yes","Yes",5,5,5,"Yes","Yes it was just right","Full time Employment","0","Employed","Yes","Other service activities","Private","Avalon Spa","Therapist",1,1,0,0,0,0,0,0,3,4,{"$error":"#NULL!"},"Just this 1","Less than 1 month","Always","#NULL!","#NULL!","","#NULL!","#NULL!","#NULL!","#NULL!",{"$error":"#NULL!"},"#NULL!",0,0,"#NULL!",""]
[446,"STA97","STA","Female",1,null,"Advanced Certificate in Wellness and Spa","Advanced Certificate","Yes","Yes",5,4,4,"Yes","Yes it was just right","Full time Employment","0","Employed","Yes","Other service activities","Private","La Jeunesse Spa","Spa Therapist",1,1,0,0,0,0,0,0,2,4,{"$error":"#NULL!"},"Just this 1","Less than 1 month","Always","#NULL!","#NULL!","","#NULL!","#NULL!","#NULL!","#NULL!",{"$error":"#NULL!"},"#NULL!",0,0,"#NULL!",""]
[447,"STA98","STA","Female",1,null,"Advanced Certificate in Wellness and Spa","Advanced Certificate","No","Yes",5,5,5,"Yes","Yes it was just right","Full time Employment","0","Employed","Yes","Other service activities","Private","Holistic Healing","Therapist",1,1,0,0,0,0,0,0,2,4,{"$error":"#NULL!"},"Just this 1","Less than 1 month","Always","#NULL!","#NULL!","","#NULL!","#NULL!","#NULL!","#NULL!",{"$error":"#NULL!"},"#NULL!",0,0,"#NULL!",""]
[448,"STA99","STA","Female",1,null,"Advanced Certificate in Wellness and Spa","Advanced Certificate","No","Yes",5,4,4,"Yes","Yes it was just right","Full time Employment","0","Employed","Yes","Financial and insurance activities","Private","Mauritius Commercial Bank","Cashier",2,0,1,0,0,0,0,0,3,4,{"$error":"#NULL!"},"between 2 to 5","More than 1 month","Seldom","#NULL!","#NULL!","","#NULL!","#NULL!","#NULL!","#NULL!",{"$error":"#NULL!"},"#NULL!",0,0,"#NULL!",""]
[449,"STA100","STA","Female",1,null,"Advanced Certificate in Wellness and Spa","Advanced Certificate","No","Yes",5,5,5,"Yes","Yes it was just right","Full time Employment","0","Employed","Yes","Other service activities","Private","Eden Holistic Spa","Therapist",1,1,0,0,0,0,0,0,3,1,{"$error":"#NULL!"},"Just this 1","Less than 1 month","Always","#NULL!","#NULL!","","#NULL!","#NULL!","#NULL!","#NULL!",{"$error":"#NULL!"},"#NULL!",0,0,"#NULL!",""]
[450,"STA101","STA","Female",1,null,"Advanced Certificate in Wellness and Spa","Advanced Certificate","No","Yes",5,5,5,"Yes","Yes it was just right","Full time Employment","0","Employed","Yes","Other service activities","Private","Lavish Spa","Therapist",1,1,0,0,0,0,0,0,"#NULL!",4,{"$error":"#NULL!"},"Just this 1","Less than 1 month","Always","#NULL!","#NULL!","","#NULL!","#NULL!","#NULL!","#NULL!",{"$error":"#NULL!"},"#NULL!",0,0,"#NULL!",""]
[451,"STA102","STA","Female",1,null,"Advanced Certificate in Wellness and Spa","Advanced Certificate","No","Yes",4,1,4,"Yes","Yes it was just right","Unemployed","0","Unemployed",0,0,0,0,0,"#NULL!","#NULL!","#NULL!","#NULL!","#NULL!","#NULL!","#NULL!","#NULL!","#NULL!","#NULL!",{"$error":"#NULL!"},"#NULL!","","#NULL!","Yes","Yes","0",3,1,"Yes","#NULL!",{"$error":"#NULL!"},"Yes",0,0,"#NULL!",""]
[452,"STA103","STA","Female",1,null,"Advanced Certificate in Wellness and Spa","Advanced Certificate","No","Yes",4,4,4,"Yes","Yes it was just right","Full time Employment","0","Employed","Yes","Other service activities","Private","Peppermint Spa","Spa Therapist",1,1,0,0,0,0,0,0,2,1,{"$error":"#NULL!"},"Just this 1","Less than 1 month","Always","#NULL!","#NULL!","","#NULL!","#NULL!","#NULL!","#NULL!",{"$error":"#NULL!"},"#NULL!",0,0,"#NULL!",""]
[453,"STA104","STA","Female",1,null,"Advanced Certificate in Wellness and Spa","Advanced Certificate","No","Yes",5,5,5,"Yes","Yes it was just right","Full time Employment","0","Employed","Yes","Other service activities","Private","Experience Hairdressing Salon","Hairdresser",1,1,0,0,0,0,0,0,2,1,{"$error":"#NULL!"},"Just this 1","Less than 1 month","Always","#NULL!","#NULL!","","#NULL!","#NULL!","#NULL!","#NULL!",{"$error":"#NULL!"},"#NULL!",0,0,"#NULL!",""]
[454,"STA105","STA","Female",1,null,"Advanced Certificate in Wellness and Spa","Advanced Certificate","Yes","Yes",5,5,5,"Yes","Yes it was just right","Full time Employment","0","Employed","Yes","Other service activities","Private","Tranquility Spa","Therapist",1,1,0,0,0,0,0,0,3,1,{"$error":"#NULL!"},"Just this 1","Less than 1 month","Always","#NULL!","#NULL!","","#NULL!","#NULL!","#NULL!","#NULL!",{"$error":"#NULL!"},"#NULL!",0,0,"#NULL!",""]
[455,"STA106","STA","Female",1,null,"Advanced Certificate in Wellness and Spa","Advanced Certificate","Not Stated","Not Stated","#NULL!","#NULL!","#NULL!","#NULL!","#NULL!","Unknown","","Status Unknown",0,0,0,0,0,"#NULL!","#NULL!","#NULL!","#NULL!","#NULL!","#NULL!","#NULL!","#NULL!","#NULL!","#NULL!",{"$error":"#NULL!"},"#NULL!","","#NULL!","#NULL!","#NULL!","","#NULL!","#NULL!","#NULL!","#NULL!",{"$error":"#NULL!"},"#NULL!",0,0,"#NULL!",""]
[456,"STA107","STA","Female",1,null,"Advanced Certificate in Wellness and Spa","Advanced Certificate","Not Stated","Not Stated","#NULL!","#NULL!","#NULL!","#NULL!","#NULL!","Unknown","","Status Unknown",0,0,0,0,0,"#NULL!","#NULL!","#NULL!","#NULL!","#NULL!","#NULL!","#NULL!","#NULL!","#NULL!","#NULL!",{"$error":"#NULL!"},"#NULL!","","#NULL!","#NULL!","#NULL!","","#NULL!","#NULL!","#NULL!","#NULL!",{"$error":"#NULL!"},"#NULL!",0,0,"#NULL!",""]
[457,"STA108","STA","Male",null,1,"Certificate in Restaurant and Bar (Apprenticeship)","Certificate Apprenticeship","No","Yes",4,4,4,"Yes","Yes it was just right","Unemployed","0","Unemployed",0,0,0,0,0,"#NULL!","#NULL!","#NULL!","#NULL!","#NULL!","#NULL!","#NULL!","#NULL!","#NULL!","#NULL!",{"$error":"#NULL!"},"#NULL!","","#NULL!","Yes","No","0",2,2,"No",5,{"$error":"#NULL!"},"Yes",0,0,"#NULL!",""]
[458,"STA109","STA","Female",1,null,"Certificate in Restaurant and Bar (Apprenticeship)","Certificate Apprenticeship","No","Yes",5,5,4,"Yes","Yes it was just right","Unemployed","0","Unemployed",0,0,0,0,0,"#NULL!","#NULL!","#NULL!","#NULL!","#NULL!","#NULL!","#NULL!","#NULL!","#NULL!","#NULL!",{"$error":"#NULL!"},"#NULL!","","#NULL!","Yes","No","0",2,1,"No",9,{"$error":"#NULL!"},"Yes",0,0,"#NULL!",""]
[459,"STA110","STA","Female",1,null,"Certificate in Restaurant and Bar (Apprenticeship)","Certificate Apprenticeship","No","Yes",4,4,4,"Yes","Yes it was just right","Unemployed","0","Unemployed",0,0,0,0,0,"#NULL!","#NULL!","#NULL!","#NULL!","#NULL!","#NULL!","#NULL!","#NULL!","#NULL!","#NULL!",{"$error":"#NULL!"},"#NULL!","","#NULL!","Yes","No","0",2,2,"No",9,"Awaiting reply","Yes",0,0,"#NULL!",""]
[460,"STA111","STA","Female",1,null,"Certificate in Restaurant and Bar (Apprenticeship)","Certificate Apprenticeship","No","Yes",5,5,4,"Yes","Yes it was just right","Unemployed","0","Unemployed",0,0,0,0,0,"#NULL!","#NULL!","#NULL!","#NULL!","#NULL!","#NULL!","#NULL!","#NULL!","#NULL!","#NULL!",{"$error":"#NULL!"},"#NULL!","","#NULL!","Yes","No","0",2,2,"No",9,"Awaiting reply","Yes",0,0,"#NULL!",""]
[461,"STA112","STA","Female",1,null,"Certificate in Restaurant and Bar (Apprenticeship)","Certificate Apprenticeship","No","Yes",5,5,4,"Yes","Yes it was just right","Unemployed","0","Unemployed",0,0,0,0,0,"#NULL!","#NULL!","#NULL!","#NULL!","#NULL!","#NULL!","#NULL!","#NULL!","#NULL!","#NULL!",{"$error":"#NULL!"},"#NULL!","","#NULL!","Yes","No","0",2,2,"No",5,{"$error":"#NULL!"},"Yes",0,0,"#NULL!",""]
[462,"STA113","STA","Female",1,null,"Certificate in Restaurant and Bar (Apprenticeship)","Certificate Apprenticeship","No","Yes",4,4,4,"Yes","Yes it was just right","Unemployed","0","Potential labour force entrant ",0,0,0,0,0,"#NULL!","#NULL!","#NULL!","#NULL!","#NULL!","#NULL!","#NULL!","#NULL!","#NULL!","#NULL!",{"$error":"#NULL!"},"#NULL!","","#NULL!","Yes","No","0",2,2,"No",9,"Awaiting reply","#NULL!",0,0,"#NULL!",""]
[463,"STA114","STA","Female",1,null,"Certificate in Restaurant and Bar (Apprenticeship)","Certificate Apprenticeship","No","Yes",5,5,4,"Yes","Yes it was just right","Unemployed","0","Unemployed",0,0,0,0,0,"#NULL!","#NULL!","#NULL!","#NULL!","#NULL!","#NULL!","#NULL!","#NULL!","#NULL!","#NULL!",{"$error":"#NULL!"},"#NULL!","","#NULL!","Yes","No","0",2,2,"No",9,"Awaiting reply","Yes",0,0,"#NULL!",""]
[464,"STA115","STA","Female",1,null,"Certificate in Restaurant and Bar (Apprenticeship)","Certificate Apprenticeship","No","Yes",4,4,4,"Yes","Yes it was just right","Unemployed","0","Unemployed",0,0,0,0,0,"#NULL!","#NULL!","#NULL!","#NULL!","#NULL!","#NULL!","#NULL!","#NULL!","#NULL!","#NULL!",{"$error":"#NULL!"},"#NULL!","","#NULL!","Yes","No","0",2,2,"Yes",5,{"$error":"#NULL!"},"Yes",0,0,"#NULL!",""]
[465,"STA116","STA","Female",1,null,"Certificate in Restaurant and Bar (Apprenticeship)","Certificate Apprenticeship","No","Yes",4,4,4,"Yes","Yes it was just right","Unemployed","0","Unemployed",0,0,0,0,0,"#NULL!","#NULL!","#NULL!","#NULL!","#NULL!","#NULL!","#NULL!","#NULL!","#NULL!","#NULL!",{"$error":"#NULL!"},"#NULL!","","#NULL!","Yes","No","0",2,2,"No",9,"Awaiting reply","Yes",0,0,"#NULL!",""]
[466,"STA117","STA","Female",1,null,"Certificate in Restaurant and Bar (Apprenticeship)","Certificate Apprenticeship","No","Yes",5,5,4,"Yes","Yes it was just right","Unemployed","0","Unemployed",0,0,0,0,0,"#NULL!","#NULL!","#NULL!","#NULL!","#NULL!","#NULL!","#NULL!","#NULL!","#NULL!","#NULL!",{"$error":"#NULL!"},"#NULL!","","#NULL!","Yes","No","0",2,2,"Yes",5,{"$error":"#NULL!"},"Yes",0,0,"#NULL!",""]
[467,"STA118","STA","Female",1,null,"Certificate in Restaurant and Bar (Apprenticeship)","Certificate Apprenticeship","No","Yes",5,5,4,"Yes","Yes it was just right","Unemployed","0","Unemployed",0,0,0,0,0,"#NULL!","#NULL!","#NULL!","#NULL!","#NULL!","#NULL!","#NULL!","#NULL!","#NULL!","#NULL!",{"$error":"#NULL!"},"#NULL!","","#NULL!","Yes","No","0",2,2,"Yes",9,"Awaiting reply","Yes",0,0,"#NULL!",""]
[468,"STA119","STA","Female",1,null,"Certificate in Restaurant and Bar (Apprenticeship)","Certificate Apprenticeship","No","Yes",5,5,4,"Yes","Yes it was just right","Unemployed","0","Unemployed",0,0,0,0,0,"#NULL!","#NULL!","#NULL!","#NULL!","#NULL!","#NULL!","#NULL!","#NULL!","#NULL!","#NULL!",{"$error":"#NULL!"},"#NULL!","","#NULL!","Yes","No","0",2,2,"Yes",9,"Awaiting reply","Yes",0,0,"#NULL!",""]
[469,"STA120","STA","Female",1,null,"Certificate in Restaurant and Bar (Apprenticeship)","Certificate Apprenticeship","No","Yes",5,5,4,"No","Yes it was just right","Full time Employment","0","Employed","Yes","Accommodation and food service activities","Private","Les Dauphins Heureux","Waitress",1,1,0,0,0,0,0,0,2,5,{"$error":"#NULL!"},"between 2 to 5","Less than 1 month","Always","#NULL!","#NULL!","","#NULL!","#NULL!","#NULL!","#NULL!",{"$error":"#NULL!"},"#NULL!",0,0,"#NULL!",""]
[470,"STA121","STA","Female",1,null,"Certificate in Restaurant and Bar (Apprenticeship)","Certificate Apprenticeship","Yes","Yes",4,4,4,"Yes","Yes it was just right","Unemployed","0","Unemployed",0,0,0,0,0,"#NULL!","#NULL!","#NULL!","#NULL!","#NULL!","#NULL!","#NULL!","#NULL!","#NULL!","#NULL!",{"$error":"#NULL!"},"#NULL!","","#NULL!","Yes","No","0",2,2,"No",9,"Awaiting reply","Yes",0,0,"#NULL!",""]
[471,"STA122","STA","Female",1,null,"Certificate in Restaurant and Bar (Apprenticeship)","Certificate Apprenticeship","No","Yes",5,4,3,"Yes","Yes it was just right","Unemployed","0","Unemployed",0,0,0,0,0,"#NULL!","#NULL!","#NULL!","#NULL!","#NULL!","#NULL!","#NULL!","#NULL!","#NULL!","#NULL!",{"$error":"#NULL!"},"#NULL!","","#NULL!","Yes","No","0",2,2,"Yes",5,{"$error":"#NULL!"},"Yes",0,0,"#NULL!",""]
[472,"STA123","STA","Female",1,null,"Certificate in Restaurant and Bar (Apprenticeship)","Certificate Apprenticeship","No","Yes",4,4,4,"No","I do not know","Further Studies","0","Further Studies",0,0,0,0,0,"#NULL!","#NULL!","#NULL!","#NULL!","#NULL!","#NULL!","#NULL!","#NULL!","#NULL!","#NULL!",{"$error":"#NULL!"},"#NULL!","","#NULL!","#NULL!","#NULL!","","#NULL!","#NULL!","#NULL!","#NULL!",{"$error":"#NULL!"},"#NULL!",0,"Seychelles Maritime Academy (SMA)","#NULL!",""]
[473,"STA124","STA","Female",1,null,"Certificate in Restaurant and Bar (Apprenticeship)","Certificate Apprenticeship","Yes","Yes",5,5,5,"Yes","Yes it was just right","Unemployed","0","Unemployed",0,0,0,0,0,"#NULL!","#NULL!","#NULL!","#NULL!","#NULL!","#NULL!","#NULL!","#NULL!","#NULL!","#NULL!",{"$error":"#NULL!"},"#NULL!","","#NULL!","Yes","No","0",2,1,"Yes","#NULL!",{"$error":"#NULL!"},"Yes",0,0,"#NULL!",""]
[474,"STA125","STA","Male",null,1,"Certificate in Restaurant and Bar (Apprenticeship)","Certificate Apprenticeship","No","Yes",5,5,5,"Yes","Yes it was just right","Unemployed","0","Unemployed",0,0,0,0,0,"#NULL!","#NULL!","#NULL!","#NULL!","#NULL!","#NULL!","#NULL!","#NULL!","#NULL!","#NULL!",{"$error":"#NULL!"},"#NULL!","","#NULL!","Yes","No","0",2,1,"Yes",3,{"$error":"#NULL!"},"Yes",0,0,"#NULL!",""]
[475,"STA126","STA","Female",1,null,"Certificate in Restaurant and Bar (Apprenticeship)","Certificate Apprenticeship","Yes","Yes",4,4,5,"Yes","Yes it was just right","Unemployed","0","Unemployed",0,0,0,0,0,"#NULL!","#NULL!","#NULL!","#NULL!","#NULL!","#NULL!","#NULL!","#NULL!","#NULL!","#NULL!",{"$error":"#NULL!"},"#NULL!","","#NULL!","Yes","No","0",2,"#NULL!","#NULL!","#NULL!",{"$error":"#NULL!"},"Yes",0,0,"#NULL!",""]
[476,"STA127","STA","Male",null,1,"Certificate in Restaurant and Bar (Apprenticeship)","Certificate Apprenticeship","No","Yes",4,4,4,"Yes","Yes it was just right","Unemployed","0","Unemployed",0,0,0,0,0,"#NULL!","#NULL!","#NULL!","#NULL!","#NULL!","#NULL!","#NULL!","#NULL!","#NULL!","#NULL!",{"$error":"#NULL!"},"#NULL!","","#NULL!","Yes","No","0",2,2,"No","#NULL!",{"$error":"#NULL!"},"Yes",0,0,"#NULL!",""]
[477,"STA128","STA","Female",1,null,"Certificate in Restaurant and Bar (Apprenticeship)","Certificate Apprenticeship","No","Yes",4,4,4,"Yes","I do not know","Unemployed","0","Unemployed",0,0,0,0,0,"#NULL!","#NULL!","#NULL!","#NULL!","#NULL!","#NULL!","#NULL!","#NULL!","#NULL!","#NULL!",{"$error":"#NULL!"},"#NULL!","","#NULL!","Yes","No","0",2,1,"#NULL!",3,{"$error":"#NULL!"},"Yes",0,0,"#NULL!",""]
[478,"STA129","STA","Male",null,1,"Certificate in Restaurant and Bar (Apprenticeship)","Certificate Apprenticeship","No","Yes",4,4,4,"#NULL!","Yes it was just right","Unemployed","0","Unemployed",0,0,0,0,0,"#NULL!","#NULL!","#NULL!","#NULL!","#NULL!","#NULL!","#NULL!","#NULL!","#NULL!","#NULL!",{"$error":"#NULL!"},"#NULL!","","#NULL!","Yes","No","0",2,"#NULL!","No",3,{"$error":"#NULL!"},"Yes",0,0,"#NULL!",""]
[479,"STA130","STA","Female",1,null,"Certificate in Restaurant and Bar (Apprenticeship)","Certificate Apprenticeship","No","Yes",5,5,4,"Yes","Yes it was just right","Full time Employment","0","Employed","Yes","Accommodation and food service activities","Private","Four Seasons Resort and Spa","Waitress",1,1,0,0,0,0,0,0,2,1,{"$error":"#NULL!"},"Just this 1","Less than 1 month","Always","#NULL!","#NULL!","","#NULL!","#NULL!","#NULL!","#NULL!",{"$error":"#NULL!"},"#NULL!",0,0,"#NULL!",""]
[480,"STA131","STA","Male",null,1,"Certificate in Food Preparation and Culinary Arts (Apprenticeship)","Certificate Apprenticeship","No","Yes",4,4,4,"Yes","Yes it was just right","Unemployed","0","Unemployed",0,0,0,0,0,"#NULL!","#NULL!","#NULL!","#NULL!","#NULL!","#NULL!","#NULL!","#NULL!","#NULL!","#NULL!",{"$error":"#NULL!"},"#NULL!","","#NULL!","Yes","No","0",2,2,"No",9,"Awaiting reply","Yes",0,0,"#NULL!",""]
[481,"STA132","STA","Female",1,null,"Certificate in Food Preparation and Culinary Arts (Apprenticeship)","Certificate Apprenticeship","No","Yes",5,4,4,"Yes","Yes it was just right","Unemployed","0","Unemployed",0,0,0,0,0,"#NULL!","#NULL!","#NULL!","#NULL!","#NULL!","#NULL!","#NULL!","#NULL!","#NULL!","#NULL!",{"$error":"#NULL!"},"#NULL!","","#NULL!","Yes","No","0",2,2,"Yes",9,"Awaiting reply","Yes",0,0,"#NULL!",""]
[482,"STA133","STA","Female",1,null,"Certificate in Food Preparation and Culinary Arts (Apprenticeship)","Certificate Apprenticeship","No","Yes",5,5,5,"Yes","Yes it was just right","Full time Employment","0","Employed","Yes","Accommodation and food service activities","Private","Skychef Servair","Commis Cook",1,1,0,0,0,0,0,0,"#NULL!",8,{"$error":"#NULL!"},"Just this 1","Less than 1 month","Always","#NULL!","#NULL!","","#NULL!","#NULL!","#NULL!","#NULL!",{"$error":"#NULL!"},"#NULL!",0,0,"#NULL!",""]
[483,"STA134","STA","Female",1,null,"Certificate in Food Preparation and Culinary Arts (Apprenticeship)","Certificate Apprenticeship","No","Yes",5,5,5,"Yes","Yes it was just right","Unemployed","0","Unemployed",0,0,0,0,0,"#NULL!","#NULL!","#NULL!","#NULL!","#NULL!","#NULL!","#NULL!","#NULL!","#NULL!","#NULL!",{"$error":"#NULL!"},"#NULL!","","#NULL!","Yes","No","0",2,2,"No",9,"Awaiting reply","Yes",0,0,"#NULL!",""]
[484,"STA135","STA","Male",null,1,"Certificate in Food Preparation and Culinary Arts (Apprenticeship)","Certificate Apprenticeship","No","Yes",5,4,4,"Yes","Yes it was just right","Unemployed","0","Unemployed",0,0,0,0,0,"#NULL!","#NULL!","#NULL!","#NULL!","#NULL!","#NULL!","#NULL!","#NULL!","#NULL!","#NULL!",{"$error":"#NULL!"},"#NULL!","","#NULL!","Yes","No","0",2,1,"No",9,"Wants to change field","Yes",0,0,"#NULL!",""]
[485,"STA136","STA","Male",null,1,"Certificate in Food Preparation and Culinary Arts (Apprenticeship)","Certificate Apprenticeship","No","Yes",5,4,4,"Yes","Yes it was just right","Unemployed","0","Unemployed",0,0,0,0,0,"#NULL!","#NULL!","#NULL!","#NULL!","#NULL!","#NULL!","#NULL!","#NULL!","#NULL!","#NULL!",{"$error":"#NULL!"},"#NULL!","","#NULL!","Yes","No","0",2,2,"Yes",9,"Awaiting reply","Yes",0,0,"#NULL!",""]
[486,"STA137","STA","Female",1,null,"Certificate in Food Preparation and Culinary Arts (Apprenticeship)","Certificate Apprenticeship","No","Yes",5,4,4,"Yes","Yes it was just right","Full time Employment","0","Employed","Yes","Manufacturing","Private","Glorious Bakery","Baker",1,1,0,0,0,0,0,0,2,5,{"$error":"#NULL!"},"Just this 1","Less than 1 month","Always","#NULL!","#NULL!","","#NULL!","#NULL!","#NULL!","#NULL!",{"$error":"#NULL!"},"#NULL!",0,0,"#NULL!",""]
[487,"STA138","STA","Female",1,null,"Certificate in Food Preparation and Culinary Arts (Apprenticeship)","Certificate Apprenticeship","No","Yes",5,4,4,"Yes","Yes it was just right","Unemployed","0","Unemployed",0,0,0,0,0,"#NULL!","#NULL!","#NULL!","#NULL!","#NULL!","#NULL!","#NULL!","#NULL!","#NULL!","#NULL!",{"$error":"#NULL!"},"#NULL!","","#NULL!","Yes","No","0",2,2,"No",5,{"$error":"#NULL!"},"Yes",0,0,"#NULL!",""]
[488,"STA139","STA","Male",null,1,"Certificate in Food Preparation and Culinary Arts (Apprenticeship)","Certificate Apprenticeship","No","Yes",5,5,4,"Yes","Yes it was just right","Unemployed","0","Unemployed",0,0,0,0,0,"#NULL!","#NULL!","#NULL!","#NULL!","#NULL!","#NULL!","#NULL!","#NULL!","#NULL!","#NULL!",{"$error":"#NULL!"},"#NULL!","","#NULL!","Yes","No","0",2,2,"Yes",9,"Awaiting reply","Yes",0,0,"#NULL!",""]
[489,"STA140","STA","Male",null,1,"Certificate in Food Preparation and Culinary Arts (Apprenticeship)","Certificate Apprenticeship","No","Yes",5,5,5,"Yes","Yes it was just right","Unemployed","0","Unemployed",0,0,0,0,0,"#NULL!","#NULL!","#NULL!","#NULL!","#NULL!","#NULL!","#NULL!","#NULL!","#NULL!","#NULL!",{"$error":"#NULL!"},"#NULL!","","#NULL!","Yes","No","0",2,2,"Yes",9,"Awaiting reply","Yes",0,0,"#NULL!",""]
[490,"STA141","STA","Male",null,1,"Certificate in Food Preparation and Culinary Arts (Apprenticeship)","Certificate Apprenticeship","No","Yes",5,5,5,"Yes","Yes it was just right","Unemployed","0","Unemployed",0,0,0,0,0,"#NULL!","#NULL!","#NULL!","#NULL!","#NULL!","#NULL!","#NULL!","#NULL!","#NULL!","#NULL!",{"$error":"#NULL!"},"#NULL!","","#NULL!","Yes","No","0",2,2,"Yes",9,"Awaiting reply","Yes",0,0,"#NULL!",""]
[491,"STA142","STA","Female",1,null,"Certificate in Food Preparation and Culinary Arts (Apprenticeship)","Certificate Apprenticeship","No","Yes",5,5,5,"Yes","Yes it was just right","Unemployed","0","Unemployed",0,0,0,0,0,"#NULL!","#NULL!","#NULL!","#NULL!","#NULL!","#NULL!","#NULL!","#NULL!","#NULL!","#NULL!",{"$error":"#NULL!"},"#NULL!","","#NULL!","Yes","No","0",2,2,"No",9,"Awaiting reply","Yes",0,0,"#NULL!",""]
[492,"STA143","STA","Female",1,null,"Certificate in Food Preparation and Culinary Arts (Apprenticeship)","Certificate Apprenticeship","No","Yes",5,5,3,"Yes","Yes it was just right","Unemployed","0","Unemployed",0,0,0,0,0,"#NULL!","#NULL!","#NULL!","#NULL!","#NULL!","#NULL!","#NULL!","#NULL!","#NULL!","#NULL!",{"$error":"#NULL!"},"#NULL!","","#NULL!","Yes","No","0",2,2,"No",5,{"$error":"#NULL!"},"Yes",0,0,"#NULL!",""]
[493,"STA144","STA","Male",null,1,"Certificate in Food Preparation and Culinary Arts (Apprenticeship)","Certificate Apprenticeship","No","Yes",5,4,2,"Yes","Yes it was just right","Unemployed","0","Unemployed",0,0,0,0,0,"#NULL!","#NULL!","#NULL!","#NULL!","#NULL!","#NULL!","#NULL!","#NULL!","#NULL!","#NULL!",{"$error":"#NULL!"},"#NULL!","","#NULL!","Yes","No","0",2,2,"No",9,"Awaiting reply","Yes",0,0,"#NULL!",""]
[494,"STA145","STA","Male",null,1,"Certificate in Food Preparation and Culinary Arts (Apprenticeship)","Certificate Apprenticeship","No","Yes",5,4,1,"Yes","Yes it was just right","Unemployed","0","Potential labour force entrant ",0,0,0,0,0,"#NULL!","#NULL!","#NULL!","#NULL!","#NULL!","#NULL!","#NULL!","#NULL!","#NULL!","#NULL!",{"$error":"#NULL!"},"#NULL!","","#NULL!","No","Yes","",2,"#NULL!","#NULL!",3,{"$error":"#NULL!"},"No",0,0,"#NULL!",""]
[495,"STA146","STA","Female",1,null,"Certificate in Food Preparation and Culinary Arts (Apprenticeship)","Certificate Apprenticeship","No","Yes",5,4,1,"Yes","Yes it was just right","Unemployed","0","Unemployed",0,0,0,0,0,"#NULL!","#NULL!","#NULL!","#NULL!","#NULL!","#NULL!","#NULL!","#NULL!","#NULL!","#NULL!",{"$error":"#NULL!"},"#NULL!","","#NULL!","Yes","No","0",1,1,"No",3,{"$error":"#NULL!"},"Yes",0,0,"#NULL!",""]
[496,"STA147","STA","Female",1,null,"Certificate in Food Preparation and Culinary Arts (Apprenticeship)","Certificate Apprenticeship","No","Yes",5,1,1,"Yes","Yes it was just right","Part time Employment","0","Employed","Unknown","Unknown","Not Stated","Not Stated",0,"#NULL!","#NULL!","#NULL!","#NULL!","#NULL!","#NULL!","#NULL!","#NULL!","#NULL!","#NULL!",{"$error":"#NULL!"},"#NULL!","","#NULL!","Yes","No","0",2,2,"No",9,{"$error":"#NULL!"},"Yes",0,0,"#NULL!",""]
[497,"STA148","STA","Female",1,null,"Certificate in Food Preparation and Culinary Arts (Apprenticeship)","Certificate Apprenticeship","No","Yes",5,1,1,"Yes","Yes it was just right","Short term contract","0","Employed","Unknown","Unknown","Not Stated","Not Stated",0,"#NULL!","#NULL!","#NULL!","#NULL!","#NULL!","#NULL!","#NULL!","#NULL!","#NULL!","#NULL!",{"$error":"#NULL!"},"#NULL!","","#NULL!","No","No","0",1,1,"#NULL!",2,{"$error":"#NULL!"},"No",0,0,"#NULL!",""]
[498,"STA149","STA","Male",null,1,"Certificate in Food Preparation and Culinary Arts (Apprenticeship)","Certificate Apprenticeship","No","Yes",5,4,5,"Yes","Yes it was just right","Short term contract","0","Employed","Yes","Accommodation and food service activities","Private","Kempinski Hotel","Commis 2",1,1,0,0,0,0,0,0,3,1,{"$error":"#NULL!"},"Just this 1","Less than 1 month","Always","#NULL!","#NULL!","","#NULL!","#NULL!","#NULL!","#NULL!",{"$error":"#NULL!"},"#NULL!",0,0,"#NULL!",""]
[499,"STA150","STA","Female",1,null,"Certificate in Food Preparation and Culinary Arts (Apprenticeship)","Certificate Apprenticeship","No","Yes",5,4,1,"Yes","Yes it was just right","Unemployed","0","Unemployed",0,0,0,0,0,"#NULL!","#NULL!","#NULL!","#NULL!","#NULL!","#NULL!","#NULL!","#NULL!","#NULL!","#NULL!",{"$error":"#NULL!"},"#NULL!","","#NULL!","Yes","No","0",1,1,"No",6,{"$error":"#NULL!"},"Yes",0,0,"#NULL!",""]
[500,"STA151","STA","Female",1,null,"Certificate in Food Preparation and Culinary Arts (Apprenticeship)","Certificate Apprenticeship","No","Yes",5,4,2,"Yes","Yes it was just right","Part time Employment","0","Employed","Unknown","Unknown","Not Stated","Not Stated",0,"#NULL!","#NULL!","#NULL!","#NULL!","#NULL!","#NULL!","#NULL!","#NULL!","#NULL!","#NULL!",{"$error":"#NULL!"},"#NULL!","","#NULL!","Yes","No","0",2,1,"Yes",5,{"$error":"#NULL!"},"Yes",0,0,"#NULL!",""]
[501,"STA152","STA","Female",1,null,"Certificate in Food Preparation and Culinary Arts (Apprenticeship)","Certificate Apprenticeship","No","Yes",5,5,5,"Yes","Yes it was just right","Full time Employment","0","Employed","Yes","Accommodation and food service activities","Private","Kempinski Hotel","Kitchen",1,1,0,0,0,0,0,0,3,1,{"$error":"#NULL!"},"Just this 1","Less than 1 month","Always","#NULL!","#NULL!","","#NULL!","#NULL!","#NULL!","#NULL!",{"$error":"#NULL!"},"#NULL!",0,0,"#NULL!",""]
[502,"STA153","STA","Female",1,null,"Certificate in Accomodation Operation Services (Apprenticeship)","Certificate Apprenticeship","Yes","Yes",5,5,5,"Yes","Yes it was just right","Unemployed","0","Unemployed",0,0,0,0,0,"#NULL!","#NULL!","#NULL!","#NULL!","#NULL!","#NULL!","#NULL!","#NULL!","#NULL!","#NULL!",{"$error":"#NULL!"},"#NULL!","","#NULL!","Yes","Yes","",1,1,"No",9,"Waiting for reply","Yes",0,0,"#NULL!",""]
[503,"STA154","STA","Female",1,null,"Certificate in Accomodation Operation Services (Apprenticeship)","Certificate Apprenticeship","No","Yes",4,4,4,"Yes","Yes it was just right","Part time Employment","0","Employed","Unknown","Unknown","Not Stated","Not Stated",0,"#NULL!","#NULL!","#NULL!","#NULL!","#NULL!","#NULL!","#NULL!","#NULL!","#NULL!","#NULL!",{"$error":"#NULL!"},"#NULL!","","#NULL!","Yes","Yes","0",1,1,"No",4,{"$error":"#NULL!"},"Yes",0,0,"#NULL!",""]
[504,"STA155","STA","Female",1,null,"Certificate in Accomodation Operation Services (Apprenticeship)","Certificate Apprenticeship","No","Yes",5,5,3,"No","No, I should have learned something else","Unemployed","0","Status Unknown",0,0,0,0,0,"#NULL!","#NULL!","#NULL!","#NULL!","#NULL!","#NULL!","#NULL!","#NULL!","#NULL!","#NULL!",{"$error":"#NULL!"},"#NULL!","","#NULL!","No","No","0",2,1,"No",2,{"$error":"#NULL!"},"No",0,0,"#NULL!",""]
[505,"STA156","STA","Female",1,null,"Certificate in Accomodation Operation Services (Apprenticeship)","Certificate Apprenticeship","No","Yes",5,5,5,"Yes","Yes it was just right","Full time Employment","3 months probation","Employed","Yes","Unknown","Private","Not Stated","Room Attendant",1,1,0,0,0,0,0,0,3,1,{"$error":"#NULL!"},"Just this 1","Less than 1 month","Always","#NULL!","#NULL!","","#NULL!","#NULL!","#NULL!","#NULL!",{"$error":"#NULL!"},"#NULL!",0,0,"#NULL!",""]
[506,"STA157","STA","Female",1,null,"Certificate in Accomodation Operation Services (Apprenticeship)","Certificate Apprenticeship","No","Yes",5,4,1,"Yes","Yes it was just right","Unemployed","0","Unemployed",0,0,0,0,0,"#NULL!","#NULL!","#NULL!","#NULL!","#NULL!","#NULL!","#NULL!","#NULL!","#NULL!","#NULL!",{"$error":"#NULL!"},"#NULL!","","#NULL!","Yes","No","0",2,2,"No",9,"Waiting for reply","Yes",0,0,"#NULL!",""]
[507,"STA158","STA","Female",1,null,"Certificate in Accomodation Operation Services (Apprenticeship)","Certificate Apprenticeship","No","No",4,4,3,"Yes","Yes it was just right","Unemployed","0","Unemployed",0,0,0,0,0,"#NULL!","#NULL!","#NULL!","#NULL!","#NULL!","#NULL!","#NULL!","#NULL!","#NULL!","#NULL!",{"$error":"#NULL!"},"#NULL!","","#NULL!","Yes","No","0",2,2,"No",5,{"$error":"#NULL!"},"Yes",0,0,"#NULL!",""]
[508,"STA159","STA","Female",1,null,"Certificate in Accomodation Operation Services (Apprenticeship)","Certificate Apprenticeship","Yes","Yes",4,5,5,"Yes","Yes it was just right","Part time Employment","0","Employed","No","Accommodation and food service activities","Private","Accomodation and Service","Day Care",1,1,0,0,0,0,0,0,2,5,{"$error":"#NULL!"},"between 2 to 5","More than 1 month","Often","#NULL!","#NULL!","","#NULL!","#NULL!","#NULL!","#NULL!",{"$error":"#NULL!"},"#NULL!",0,0,"#NULL!",""]
[509,"STA160","STA","Female",1,null,"Certificate in Accomodation Operation Services (Apprenticeship)","Certificate Apprenticeship","No","Yes",4,5,5,"Yes","Yes it was just right","Part time Employment","0","Employed","No","Accommodation and food service activities","Private","Accomodation and Service","Day Care",1,1,0,0,0,0,0,0,1,"#NULL!",{"$error":"#NULL!"},"between 2 to 5","More than 1 month","Often","#NULL!","#NULL!","","#NULL!","#NULL!","#NULL!","#NULL!",{"$error":"#NULL!"},"#NULL!",0,0,"#NULL!",""]
[510,"STA161","STA","Female",1,null,"Certificate in Accomodation Operation Services (Apprenticeship)","Certificate Apprenticeship","No","Yes",4,5,5,"Yes","Yes it was just right","Full time Employment","0","Employed","No","Wholesale and retail trade; repair of motor vehicles and motorcycles","Private","Shop","Cashier",1,1,0,0,0,0,0,0,2,"#NULL!",{"$error":"#NULL!"},"between 2 to 5","More than 1 month","Often","#NULL!","#NULL!","","#NULL!","#NULL!","#NULL!","#NULL!",{"$error":"#NULL!"},"#NULL!",0,0,"#NULL!",""]
[511,"STA162","STA","Female",1,null,"Certificate in Accomodation Operation Services (Apprenticeship)","Certificate Apprenticeship","No","Yes",4,4,3,"Yes","Yes it was just right","Unemployed","0","Unemployed",0,0,0,0,0,"#NULL!","#NULL!","#NULL!","#NULL!","#NULL!","#NULL!","#NULL!","#NULL!","#NULL!","#NULL!",{"$error":"#NULL!"},"#NULL!","","#NULL!","Yes","No","0",2,1,"No",4,{"$error":"#NULL!"},"Yes",0,0,"#NULL!",""]
[512,"STA163","STA","Female",1,null,"Certificate in Accomodation Operation Services (Apprenticeship)","Certificate Apprenticeship","Yes","Yes",5,5,4,"#NULL!","Yes it was just right","Part time Employment","0","Employed","Unknown","Unknown","Not Stated","Not Stated",0,"#NULL!","#NULL!","#NULL!","#NULL!","#NULL!","#NULL!","#NULL!","#NULL!","#NULL!","#NULL!",{"$error":"#NULL!"},"#NULL!","","#NULL!","Yes","No","0",2,1,"Yes",3,{"$error":"#NULL!"},"Yes",0,0,"#NULL!",""]
[513,"STA164","STA","Female",1,null,"Certificate in Accomodation Operation Services (Apprenticeship)","Certificate Apprenticeship","No","Yes",5,5,5,"Yes","Yes it was just right","Unemployed","0","Unemployed",0,0,0,0,0,"#NULL!","#NULL!","#NULL!","#NULL!","#NULL!","#NULL!","#NULL!","#NULL!","#NULL!","#NULL!",{"$error":"#NULL!"},"#NULL!","","#NULL!","Yes","No","0",1,"#NULL!","No",5,{"$error":"#NULL!"},"Yes",0,0,"#NULL!",""]
[514,"STA165","STA","Female",1,null,"Certificate in Accomodation Operation Services (Apprenticeship)","Certificate Apprenticeship","Yes","Yes",5,5,5,"Yes","Yes it was just right","Unemployed","0","Unemployed",0,0,0,0,0,"#NULL!","#NULL!","#NULL!","#NULL!","#NULL!","#NULL!","#NULL!","#NULL!","#NULL!","#NULL!",{"$error":"#NULL!"},"#NULL!","","#NULL!","Yes","Yes","0",1,1,"No",9,{"$error":"#NULL!"},"Yes",0,0,"#NULL!",""]
[515,"STA166","STA","Female",1,null,"Certificate in Accomodation Operation Services (Apprenticeship)","Certificate Apprenticeship","Yes","Yes",5,5,5,"Yes","Yes it was just right","Full time Employment","3 months probation","Employed","Yes","Accommodation and food service activities","Private","Housekeeping","Room Attendant",1,1,0,0,0,0,0,0,3,1,{"$error":"#NULL!"},"between 2 to 5","Less than 1 month","Always","#NULL!","#NULL!","","#NULL!","#NULL!","#NULL!","#NULL!",{"$error":"#NULL!"},"#NULL!",0,0,"#NULL!",""]
[516,"STA167","STA","Male",null,1,"Certificate in Reception Operations and Services (Apprenticeship)","Certificate Apprenticeship","No","Yes",4,5,3,"Yes","Yes it was just right","Unemployed","0","Unemployed",0,0,0,0,0,"#NULL!","#NULL!","#NULL!","#NULL!","#NULL!","#NULL!","#NULL!","#NULL!","#NULL!","#NULL!",{"$error":"#NULL!"},"#NULL!","","#NULL!","Yes","Yes","0",2,2,"Yes",4,{"$error":"#NULL!"},"Yes",0,0,"#NULL!",""]
[517,"STA168","STA","Female",1,null,"Certificate in Reception Operations and Services (Apprenticeship)","Certificate ","No","Yes",4,4,4,"Yes","Yes it was just right","Unemployed","0","Status Unknown",0,0,0,0,0,"#NULL!","#NULL!","#NULL!","#NULL!","#NULL!","#NULL!","#NULL!","#NULL!","#NULL!","#NULL!",{"$error":"#NULL!"},"#NULL!","","#NULL!","No","No","0",1,1,"No",2,{"$error":"#NULL!"},"No",0,0,"#NULL!",""]
[518,"STA169","STA","Female",1,null,"Certificate in Reception Operations and Services (Apprenticeship)","Certificate Apprenticeship","No","Yes",4,5,5,"Yes","Yes it was just right","Unemployed","0","Unemployed",0,0,0,0,0,"#NULL!","#NULL!","#NULL!","#NULL!","#NULL!","#NULL!","#NULL!","#NULL!","#NULL!","#NULL!",{"$error":"#NULL!"},"#NULL!","","#NULL!","Yes","No","0",1,3,"Yes",3,{"$error":"#NULL!"},"Yes",0,0,"#NULL!",""]
[519,"STA170","STA","Female",1,null,"Certificate in Reception Operations and Services (Apprenticeship)","Certificate Apprenticeship","No","Yes",4,4,1,"Yes","Yes it was just right","Unemployed","0","Unemployed",0,0,0,0,0,"#NULL!","#NULL!","#NULL!","#NULL!","#NULL!","#NULL!","#NULL!","#NULL!","#NULL!","#NULL!",{"$error":"#NULL!"},"#NULL!","","#NULL!","Yes","No","0",2,3,"No",5,{"$error":"#NULL!"},"Yes",0,0,"#NULL!",""]
[520,"STA171","STA","Female",1,null,"Certificate in Reception Operations and Services (Apprenticeship)","Certificate Apprenticeship","No","Yes",5,5,5,"Yes","Yes it was just right","Unemployed","0","Unemployed",0,0,0,0,0,"#NULL!","#NULL!","#NULL!","#NULL!","#NULL!","#NULL!","#NULL!","#NULL!","#NULL!","#NULL!",{"$error":"#NULL!"},"#NULL!","","#NULL!","Yes","No","0",2,3,"No",5,{"$error":"#NULL!"},"Yes",0,0,"#NULL!",""]
[521,"STA172","STA","Female",1,null,"Certificate in Reception Operations and Services (Apprenticeship)","Certificate Apprenticeship","No","Yes",5,5,4,"Yes","Yes it was just right","Unemployed","0","Unemployed",0,0,0,0,0,"#NULL!","#NULL!","#NULL!","#NULL!","#NULL!","#NULL!","#NULL!","#NULL!","#NULL!","#NULL!",{"$error":"#NULL!"},"#NULL!","","#NULL!","Yes","Yes","0",9,1,"No",5,{"$error":"#NULL!"},"Yes",0,0,"#NULL!",""]
[522,"STA173","STA","Female",1,null,"Certificate in Reception Operations and Services (Apprenticeship)","Certificate Apprenticeship","No","Yes",4,4,4,"Yes","Yes it was just right","Unemployed","0","Unemployed",0,0,0,0,0,"#NULL!","#NULL!","#NULL!","#NULL!","#NULL!","#NULL!","#NULL!","#NULL!","#NULL!","#NULL!",{"$error":"#NULL!"},"#NULL!","","#NULL!","Yes","No","0",2,2,"No",5,{"$error":"#NULL!"},"Yes",0,0,"#NULL!",""]
[523,"STA174","STA","Female",1,null,"Certificate in Reception Operations and Services (Apprenticeship)","Certificate Apprenticeship","No","Yes",4,4,4,"Yes","Yes it was just right","Unemployed","0","Unemployed",0,0,0,0,0,"#NULL!","#NULL!","#NULL!","#NULL!","#NULL!","#NULL!","#NULL!","#NULL!","#NULL!","#NULL!",{"$error":"#NULL!"},"#NULL!","","#NULL!","Yes","No","0",2,2,"No",5,{"$error":"#NULL!"},"Yes",0,0,"#NULL!",""]
[524,"STA175","STA","Female",1,null,"Certificate in Reception Operations and Services (Apprenticeship)","Certificate Apprenticeship","Yes","Yes",4,4,4,"Yes","Yes it was just right","Full time Employment","0","Employed","Yes","Transportation and storage","Private","DHL","Customer Service",1,1,0,0,0,0,0,0,3,4,{"$error":"#NULL!"},"between 2 to 5","Less than 1 month","Always","#NULL!","#NULL!","","#NULL!","#NULL!","#NULL!","#NULL!",{"$error":"#NULL!"},"#NULL!",0,0,"#NULL!",""]
[525,"STA176","STA","Female",1,null,"Certificate in Reception Operations and Services (Apprenticeship)","Certificate Apprenticeship","Yes","Yes",4,4,4,"Yes","Yes it was just right","Unemployed","0","Unemployed",0,0,0,0,0,"#NULL!","#NULL!","#NULL!","#NULL!","#NULL!","#NULL!","#NULL!","#NULL!","#NULL!","#NULL!",{"$error":"#NULL!"},"#NULL!","","#NULL!","Yes","No","0",2,2,"No",5,{"$error":"#NULL!"},"Yes",0,0,"#NULL!",""]
[526,"STA177","STA","Female",1,null,"Certificate in Reception Operations and Services (Apprenticeship)","Certificate Apprenticeship","No","Yes",4,5,4,"Yes","Yes it was just right","Unemployed","0","Unemployed",0,0,0,0,0,"#NULL!","#NULL!","#NULL!","#NULL!","#NULL!","#NULL!","#NULL!","#NULL!","#NULL!","#NULL!",{"$error":"#NULL!"},"#NULL!","","#NULL!","Yes","No","0",1,3,"No",5,{"$error":"#NULL!"},"Yes",0,0,"#NULL!",""]
[527,"STA178","STA","Female",1,null,"Certificate in Reception Operations and Services (Apprenticeship)","Certificate Apprenticeship","No","Yes",5,4,4,"Yes","Yes it was just right","Unemployed","0","Unemployed",0,0,0,0,0,"#NULL!","#NULL!","#NULL!","#NULL!","#NULL!","#NULL!","#NULL!","#NULL!","#NULL!","#NULL!",{"$error":"#NULL!"},"#NULL!","","#NULL!","Yes","No","0",2,2,"Yes",5,{"$error":"#NULL!"},"Yes",0,0,"#NULL!",""]
[528,"STA179","STA","Female",1,null,"Certificate in Reception Operations and Services (Apprenticeship)","Certificate Apprenticeship","No","Yes",4,4,1,"Yes","Yes it was just right","Unemployed","0","Unemployed",0,0,0,0,0,"#NULL!","#NULL!","#NULL!","#NULL!","#NULL!","#NULL!","#NULL!","#NULL!","#NULL!","#NULL!",{"$error":"#NULL!"},"#NULL!","","#NULL!","Yes","No","0",2,2,"No",5,{"$error":"#NULL!"},"Yes",0,0,"#NULL!",""]
[529,"STA180","STA","Female",1,null,"Certificate in Reception Operations and Services (Apprenticeship)","Certificate Apprenticeship","No","Yes",5,5,1,"Yes","Yes it was just right","Unemployed","0","Unemployed",0,0,0,0,0,"#NULL!","#NULL!","#NULL!","#NULL!","#NULL!","#NULL!","#NULL!","#NULL!","#NULL!","#NULL!",{"$error":"#NULL!"},"#NULL!","","#NULL!","Yes","No","0",2,2,"No",5,{"$error":"#NULL!"},"Yes",0,0,"#NULL!",""]
[530,"STA181","STA","Female",1,null,"Certificate in Reception Operations and Services (Apprenticeship)","Certificate Apprenticeship","No","Yes",5,4,1,"Yes","Yes it was just right","Unemployed","0","Unemployed",0,0,0,0,0,"#NULL!","#NULL!","#NULL!","#NULL!","#NULL!","#NULL!","#NULL!","#NULL!","#NULL!","#NULL!",{"$error":"#NULL!"},"#NULL!","","#NULL!","Yes","No","0",1,2,"No",5,{"$error":"#NULL!"},"Yes",0,0,"#NULL!",""]
[531,"STA182","STA","Male",null,1,"Certificate in Reception Operations and Services (Apprenticeship)","Certificate Apprenticeship","No","Yes",5,4,2,"Yes","Yes it was just right","Unemployed","0","Unemployed",0,0,0,0,0,"#NULL!","#NULL!","#NULL!","#NULL!","#NULL!","#NULL!","#NULL!","#NULL!","#NULL!","#NULL!",{"$error":"#NULL!"},"#NULL!","","#NULL!","Yes","No","0",2,2,"Yes",9,"Waiting for reply","Yes",0,0,"#NULL!",""]

{"sheet":"Home","index":2,"n_rows":30,"n_cols":7,"rows_kept":30,"cut":false,"hidden":false,"merged":[]}
[]
[]
[]
[]
[]
[]
[]
[]
[]
[]
[]
[]
[]
[]
[]
[]
[]
[]
[]
[]
[]
[]
[]
[]
[]
[]
[]
[]
[]
[null,null,null,null,null,"Programme followed","(All)"]

{"sheet":"General Information","index":3,"n_rows":30,"n_cols":7,"rows_kept":30,"cut":false,"hidden":false,"merged":[]}
[]
[]
[]
[]
[]
[]
[]
[]
[]
[]
[]
[]
[]
[]
[]
[]
[]
[]
[]
[]
[]
[]
[]
[]
[]
[]
[]
[]
[]
[null,null,null,null,null,"Programme followed","(All)"]

{"sheet":"Employment Information","index":4,"n_rows":53,"n_cols":29,"rows_kept":53,"cut":false,"hidden":false,"merged":[]}
[]
[]
[]
[]
[]
[]
[]
[]
[]
[]
[]
[]
[]
[]
[]
[]
[]
[]
[]
[]
[]
[]
[]
[]
[]
[]
[]
[]
[]
[null,null,null,null,null,"Programme followed","(All)"]
[]
[]
[]
[]
[]
[]
[]
[]
[]
[]
[]
[]
[]
[]
[]
[]
[]
[null,null,null,null,null,null,null,null,null,null,null,null,null,null,null,null,null,null,null,null,null,null,null,null,"Industry","Count of ID",null,null,1]
[null,null,null,null,null,null,null,null,null,null,null,null,null,null,null,null,null,null,null,null,null,null,null,null,{"$f":"INDEX(Pivot!$F$154:$G$169,$AC$48+ROWS($X$49:X49)-1,COLUMNS($X$49:X49))","v":"Ministry of Health"},{"$f":"INDEX(Pivot!$F$154:$G$169,$AC$48+ROWS($X$49:Y49)-1,COLUMNS($X$49:Y49))","v":14}]
[null,null,null,null,null,null,null,null,null,null,null,null,null,null,null,null,null,null,null,null,null,null,null,null,{"$f":"INDEX(Pivot!$F$154:$G$169,$AC$48+ROWS($X$49:X50)-1,COLUMNS($X$49:X50))","v":"Ministry of Education and Human Resource Development"},{"$f":"INDEX(Pivot!$F$154:$G$169,$AC$48+ROWS($X$49:Y50)-1,COLUMNS($X$49:Y50))","v":14}]
[null,null,null,null,null,null,null,null,null,null,null,null,null,null,null,null,null,null,null,null,null,null,null,null,{"$f":"INDEX(Pivot!$F$154:$G$169,$AC$48+ROWS($X$49:X51)-1,COLUMNS($X$49:X51))","v":"Air Seychelles"},{"$f":"INDEX(Pivot!$F$154:$G$169,$AC$48+ROWS($X$49:Y51)-1,COLUMNS($X$49:Y51))","v":10}]
[null,null,null,null,null,null,null,null,null,null,null,null,null,null,null,null,null,null,null,null,null,null,null,null,{"$f":"INDEX(Pivot!$F$154:$G$169,$AC$48+ROWS($X$49:X52)-1,COLUMNS($X$49:X52))","v":"Mauritius Commercial Bank"},{"$f":"INDEX(Pivot!$F$154:$G$169,$AC$48+ROWS($X$49:Y52)-1,COLUMNS($X$49:Y52))","v":7}]
[null,null,null,null,null,null,null,null,null,null,null,null,null,null,null,null,null,null,null,null,null,null,null,null,{"$f":"INDEX(Pivot!$F$154:$G$169,$AC$48+ROWS($X$49:X53)-1,COLUMNS($X$49:X53))","v":"Constance Ephelia Resort"},{"$f":"INDEX(Pivot!$F$154:$G$169,$AC$48+ROWS($X$49:Y53)-1,COLUMNS($X$49:Y53))","v":7}]

{"sheet":"Further Studies","index":5,"n_rows":36,"n_cols":28,"rows_kept":36,"cut":false,"hidden":false,"merged":[]}
[]
[]
[]
[]
[]
[]
[]
[]
[]
[]
[]
[]
[]
[]
[]
[]
[]
[]
[]
[]
[]
[]
[]
[]
[]
[null,null,null,null,null,null,null,null,null,null,null,null,null,null,null,null,null,null,null,null,null,null,null,"Programme","Number",null,null,1]
[null,null,null,null,null,null,null,null,null,null,null,null,null,null,null,null,null,null,null,null,null,null,null,{"$f":"INDEX(Pivot!$F$281:$G$323,$AB$26+ROWS($Z$27:Z27)-1,COLUMNS($Z$27:Z27))","v":"BSC in Tourism Management"},{"$f":"INDEX(Pivot!$F$281:$G$323,$AB$26+ROWS($Z$27:AA27)-1,COLUMNS($Z$27:AA27))","v":1}]
[null,null,null,null,null,null,null,null,null,null,null,null,null,null,null,null,null,null,null,null,null,null,null,{"$f":"INDEX(Pivot!$F$281:$G$323,$AB$26+ROWS($Z$27:Z28)-1,COLUMNS($Z$27:Z28))","v":"ACCA"},{"$f":"INDEX(Pivot!$F$281:$G$323,$AB$26+ROWS($Z$27:AA28)-1,COLUMNS($Z$27:AA28))","v":1}]
[null,null,null,null,null,null,null,null,null,null,null,null,null,null,null,null,null,null,null,null,null,null,null,{"$f":"INDEX(Pivot!$F$281:$G$323,$AB$26+ROWS($Z$27:Z29)-1,COLUMNS($Z$27:Z29))","v":"Advanced Certificate in Agriculture"},{"$f":"INDEX(Pivot!$F$281:$G$323,$AB$26+ROWS($Z$27:AA29)-1,COLUMNS($Z$27:AA29))","v":1}]
[null,null,null,null,null,"Programme followed","(All)",null,null,null,null,null,null,null,null,null,null,null,null,null,null,null,null,{"$f":"INDEX(Pivot!$F$281:$G$323,$AB$26+ROWS($Z$27:Z30)-1,COLUMNS($Z$27:Z30))","v":"Upgrading Programme"},{"$f":"INDEX(Pivot!$F$281:$G$323,$AB$26+ROWS($Z$27:AA30)-1,COLUMNS($Z$27:AA30))","v":1}]
[null,null,null,null,null,null,null,null,null,null,null,null,null,null,null,null,null,null,null,null,null,null,null,{"$f":"INDEX(Pivot!$F$281:$G$323,$AB$26+ROWS($Z$27:Z31)-1,COLUMNS($Z$27:Z31))","v":"Diploma in Administration and Management"},{"$f":"INDEX(Pivot!$F$281:$G$323,$AB$26+ROWS($Z$27:AA31)-1,COLUMNS($Z$27:AA31))","v":1}]
[null,null,null,null,null,null,null,null,null,null,null,null,null,null,null,null,null,null,null,null,null,null,null,{"$f":"INDEX(Pivot!$F$281:$G$323,$AB$26+ROWS($Z$27:Z32)-1,COLUMNS($Z$27:Z32))","v":"Art in Primary & Secondary School"},{"$f":"INDEX(Pivot!$F$281:$G$323,$AB$26+ROWS($Z$27:AA32)-1,COLUMNS($Z$27:AA32))","v":1}]
[null,null,null,null,null,null,null,null,null,null,null,null,null,null,null,null,null,null,null,null,null,null,null,{"$f":"INDEX(Pivot!$F$281:$G$323,$AB$26+ROWS($Z$27:Z33)-1,COLUMNS($Z$27:Z33))","v":"Diploma in Construction"},{"$f":"INDEX(Pivot!$F$281:$G$323,$AB$26+ROWS($Z$27:AA33)-1,COLUMNS($Z$27:AA33))","v":1}]
[null,null,null,null,null,null,null,null,null,null,null,null,null,null,null,null,null,null,null,null,null,null,null,{"$f":"INDEX(Pivot!$F$281:$G$323,$AB$26+ROWS($Z$27:Z34)-1,COLUMNS($Z$27:Z34))","v":"BA (Hons) Accounting and Finance"},{"$f":"INDEX(Pivot!$F$281:$G$323,$AB$26+ROWS($Z$27:AA34)-1,COLUMNS($Z$27:AA34))","v":1}]
[null,null,null,null,null,null,null,null,null,null,null,null,null,null,null,null,null,null,null,null,null,null,null,{"$f":"INDEX(Pivot!$F$281:$G$323,$AB$26+ROWS($Z$27:Z35)-1,COLUMNS($Z$27:Z35))","v":"Diploma in Mechanical and Electrical Engineering "},{"$f":"INDEX(Pivot!$F$281:$G$323,$AB$26+ROWS($Z$27:AA35)-1,COLUMNS($Z$27:AA35))","v":1}]
[null,null,null,null,null,null,null,null,null,null,null,null,null,null,null,null,null,null,null,null,null,null,null,{"$f":"INDEX(Pivot!$F$281:$G$323,$AB$26+ROWS($Z$27:Z36)-1,COLUMNS($Z$27:Z36))","v":"BA in Accounting and Finance with Specialised in forex and investment"},{"$f":"INDEX(Pivot!$F$281:$G$323,$AB$26+ROWS($Z$27:AA36)-1,COLUMNS($Z$27:AA36))","v":1}]